Department Family,Entity,Payment Date,Expense Type,Expense Area,Supplier,Transaction Number,Amount,Description
BIS,Skills Funding Agency,03/05/2016,16-18 Employer Ownership Programme - Centralised Contract Management,Main Funding,DENNE CONSTRUCTION LTD,EMPR_61,"14,160.00",Programme System File
BIS,Skills Funding Agency,03/05/2016,16-18 Employer Ownership Programme - Non Centralised Contract Management,Main Funding,DENNE CONSTRUCTION LTD,NUPS16_1374,"6,740.00",Programme Template
BIS,Skills Funding Agency,03/05/2016,19+ Employer Ownership Programme - Centralised Contract Management,Main Funding,DENNE CONSTRUCTION LTD,EMPC_11,-20,Programme System File
BIS,Skills Funding Agency,03/05/2016,19+ Employer Ownership Programme - Centralised Contract Management,Main Funding,DENNE CONSTRUCTION LTD,EMPR_53,"5,664.00",Programme System File
BIS,Skills Funding Agency,03/05/2016,19+ Employer Ownership Programme - Non Centralised Contract Management,Main Funding,DENNE CONSTRUCTION LTD,NUPS16_1375,"88,046.00",Programme Template
BIS,Skills Funding Agency,03/05/2016,Catering Supplies,Chief Executive Office - Executive Office,D ARCH & SON,SPINVB_31107,"1,051.70",Purchase Invoice
BIS,Skills Funding Agency,03/05/2016,Communications Team Expenditure,Chief Executive Office - Media & Public Affairs,DEPARTMENT FOR BUSINESS INNOVATION & SKILLS (NEWPORT),SPINVB_31204,"2,964.50",Purchase Invoice
BIS,Skills Funding Agency,03/05/2016,Communications Team Expenditure,Chief Executive Office - Media & Public Affairs,PRECISE MEDIA MONITORING LTD,SPINVB_31239,"1,800.00",Purchase Invoice
BIS,Skills Funding Agency,03/05/2016,Communications Team Expenditure,Chief Executive Office - Media & Public Affairs,REPUTATION (RI) UK LIMITED,SPINVB_31148,"3,600.00",Purchase Invoice
BIS,Skills Funding Agency,03/05/2016,Communications Team Expenditure,Operations Finance - Executive Office,PERTEMPS RECRUITMENT PARTNERSHIP LTD,SPINVB_31194,904.24,Purchase Invoice
BIS,Skills Funding Agency,03/05/2016,Communications Team Expenditure,Operations Finance - Executive Office,PERTEMPS RECRUITMENT PARTNERSHIP LTD,SPINVB_31233,839.22,Purchase Invoice
BIS,Skills Funding Agency,03/05/2016,Licences,Funding & Programmes - Delivery & Performance - Data Collections,IBM UNITED KINGDOM LTD,SPINVB_31197,"4,713.60",Purchase Invoice
BIS,Skills Funding Agency,03/05/2016,Life Long Learning Accounts,Main Funding,ATOS IT SERVICES UK,SPINVB_31177,"28,020.46",Purchase Invoice
BIS,Skills Funding Agency,03/05/2016,Life Long Learning Accounts,Main Funding,ATOS IT SERVICES UK,SPINVB_31178,"39,144.00",Purchase Invoice
BIS,Skills Funding Agency,03/05/2016,Life Long Learning Accounts,Main Funding,CFBT EDUCATION TRUST,SPINVB_28918,"3,960.00",Purchase Invoice
BIS,Skills Funding Agency,03/05/2016,Managed IT Service,Funding & Programmes - Delivery & Performance - Data Warehouse,MASTEK UK LIMITED,SPINVB_31249,"10,584.00",Purchase Invoice
BIS,Skills Funding Agency,03/05/2016,Managed IT Service,Operations ICT - Information & Communication Technology - Technical,CGI IT UK LIMITED,SPINVB_30862,"9,599.40",Purchase Invoice
BIS,Skills Funding Agency,03/05/2016,Managed IT Service,Operations ICT - Projects,ORANGE BUS LIMITED,SPINVB_31226,"105,270.00",Purchase Invoice
BIS,Skills Funding Agency,03/05/2016,Managed IT Service,Operations ICT - Projects,SCROLL LLP,SPINVB_30719,"11,340.00",Purchase Invoice
BIS,Skills Funding Agency,03/05/2016,National Careers Service Face to Face,Main Funding,CAREERS YORKSHIRE & THE HUMBER LTD,NUPS16_1376,"9,121.00",Programme Template
BIS,Skills Funding Agency,03/05/2016,Next Step Development,Main Funding,TRIBAL EDUCATION LTD,SPCRNB_1110,-540,Purchase Credit Note
BIS,Skills Funding Agency,03/05/2016,Next Step Development,Main Funding,TRIBAL EDUCATION LTD,SPINVB_31089,"48,493.20",Purchase Invoice
BIS,Skills Funding Agency,03/05/2016,Offender Learning and Skills Service - Information & Guidance,Main Funding,CAREERS YORKSHIRE & THE HUMBER LTD,NUPS16_1377,"8,258.00",Programme Template
BIS,Skills Funding Agency,03/05/2016,Professional Services,Finance Division - Accounting Services,COMPANIES HOUSE,DD_354,4,Purchase Invoice
BIS,Skills Funding Agency,03/05/2016,Rates,Chief Executive Office - Executive Office,ACAS LEEDS,SPINVB_31240,"54,670.00",Purchase Invoice
BIS,Skills Funding Agency,03/05/2016,Rates,Chief Executive Office - Executive Office,HOMES & COMMUNITIES AGENCY,SPCRNNO_468,"-6,351.59",Purchase Credit Note
BIS,Skills Funding Agency,03/05/2016,Rates,Chief Executive Office - Executive Office,HOMES & COMMUNITIES AGENCY,SPINVB_31257,"22,684.26",Purchase Invoice
BIS,Skills Funding Agency,03/05/2016,Rates,Chief Executive Office - Executive Office,THE INSOLVENCY SERVICE,SPINVB_30932,"9,796.80",Purchase Invoice
BIS,Skills Funding Agency,03/05/2016,Rent,Chief Executive Office - Executive Office,THE INSOLVENCY SERVICE,SPINVB_30932,"37,929.35",Purchase Invoice
BIS,Skills Funding Agency,03/05/2016,Service Charges,Chief Executive Office - Executive Office,HOMES & COMMUNITIES AGENCY,SPCRNNO_467,"-6,165.87",Purchase Credit Note
BIS,Skills Funding Agency,03/05/2016,Service Charges,Chief Executive Office - Executive Office,HOMES & COMMUNITIES AGENCY,SPCRNNO_468,"-36,824.22",Purchase Credit Note
BIS,Skills Funding Agency,03/05/2016,Service Charges,Chief Executive Office - Executive Office,HOMES & COMMUNITIES AGENCY,SPINVB_31257,"153,536.02",Purchase Invoice
BIS,Skills Funding Agency,03/05/2016,Service Charges,Chief Executive Office - Executive Office,THE INSOLVENCY SERVICE,SPINVB_30932,"16,822.00",Purchase Invoice
BIS,Skills Funding Agency,03/05/2016,Software Maintenance & Repair,Operations ICT - Mission IT / Business As Usual Major Releases,LOCKHEED MARTIN BUSINESS TECHNOLOGY SOLUTIONS LIMITED,SPINVB_31236,"3,071.95",Purchase Invoice
BIS,Skills Funding Agency,03/05/2016,Software Maintenance & Repair,Operations ICT - Mission IT / Business As Usual Major Releases,LOCKHEED MARTIN BUSINESS TECHNOLOGY SOLUTIONS LIMITED,SPINVB_31237,"9,557.18",Purchase Invoice
BIS,Skills Funding Agency,03/05/2016,Temporary Staff,Funding & Programmes - Executive Office,CAPITA BUSINESS SERVICES LTD,IPINVELECT3_2045,"8,253.28",Purchase Invoice
BIS,Skills Funding Agency,03/05/2016,Temporary Staff,National Careers & Learner Services,CAPITA BUSINESS SERVICES LTD,IPINVELECT3_2045,"3,212.05",Purchase Invoice
BIS,Skills Funding Agency,03/05/2016,Temporary Staff,Operations Finance - Accounting Services,HAYS SPECIALIST RECRUITMENT LTD,IPINVELECT3_2046,"2,232.00",Purchase Invoice
BIS,Skills Funding Agency,03/05/2016,Temporary Staff,Operations ICT - Information & Communication Technology - Technical,CAPITA BUSINESS SERVICES LTD,IPINVELECT3_2045,"9,787.08",Purchase Invoice
BIS,Skills Funding Agency,03/05/2016,Temporary Staff,Operations ICT - Projects,CAPITA BUSINESS SERVICES LTD,IPINVELECT3_2045,"12,494.70",Purchase Invoice
BIS,Skills Funding Agency,03/05/2016,Temporary Staff,Operations ICT - Technical Design Authority,CAPITA BUSINESS SERVICES LTD,IPINVELECT3_2045,"10,375.80",Purchase Invoice
BIS,Skills Funding Agency,03/05/2016,Temporary Staff,Operations ICT - Technical Design Authority,HAYS SPECIALIST RECRUITMENT LTD,IPINVELECT3_2046,"1,488.00",Purchase Invoice
BIS,Skills Funding Agency,03/05/2016,Training Fees Staff,Chief Executive Office - Communications,CAPITA BUSINESS SERVICES LTD,SPINVB_31258,"3,500.00",Purchase Invoice
BIS,Skills Funding Agency,03/05/2016,Training Venue & Refreshments,Employer & Provider Services London,CAPITA TRAVEL AND EVENTS LTD,IPINVELECT3_2044,"1,055.00",Purchase Invoice
BIS,Skills Funding Agency,03/05/2016,Wide Area Networks,Operations ICT - Technical Design Authority,QUESTMARK LTD,SPINVB_31231,"4,782.00",Purchase Invoice
BIS,Skills Funding Agency,04/05/2016,Career Development Loans - Programme Support Costs,Main Funding,CPM UNITED KINGDOM LTD,SPINVB_30827,"3,800.80",Purchase Invoice
BIS,Skills Funding Agency,04/05/2016,Career Development Loans - Programme Support Costs,Main Funding,CPM UNITED KINGDOM LTD,SPINVB_31100,"3,381.65",Purchase Invoice
BIS,Skills Funding Agency,04/05/2016,Career Development Loans - Programme Support Costs,Main Funding,EXPERIAN LTD,SPINVB_31111,75.6,Purchase Invoice
BIS,Skills Funding Agency,04/05/2016,Catering Contracts,HR - Facilities Central,WESTBURY STREET HOLDINGS,SPINVB_31296,309.12,Purchase Invoice
BIS,Skills Funding Agency,04/05/2016,Diesel Car Mileage Passenger Supplement,Operations Finance - Executive Office,Agency Staff Member,SCLAIM_45567,11.1,Staff Expenses Claim
BIS,Skills Funding Agency,04/05/2016,Diesel Car Mileage,Apprenticeships & Delivery Services - Marketing,Agency Staff Member,SCLAIM_45528,28.8,Staff Expenses Claim
BIS,Skills Funding Agency,04/05/2016,Diesel Car Mileage,Central Delivery Service - European Social Fund - Audit Compliance,Agency Staff Member,SCLAIM_45549,25.2,Staff Expenses Claim
BIS,Skills Funding Agency,04/05/2016,Diesel Car Mileage,Central Delivery Service - European Social Fund - Audit Compliance,Agency Staff Member,SCLAIM_45550,47.7,Staff Expenses Claim
BIS,Skills Funding Agency,04/05/2016,Diesel Car Mileage,Central Delivery Service - European Social Fund - Audit Compliance,Agency Staff Member,SCLAIM_45553,17.1,Staff Expenses Claim
BIS,Skills Funding Agency,04/05/2016,Diesel Car Mileage,Central Delivery Service - Leeds,Agency Staff Member,SCLAIM_45527,274.5,Staff Expenses Claim
BIS,Skills Funding Agency,04/05/2016,Diesel Car Mileage,Central Delivery Service - Leeds,Agency Staff Member,SCLAIM_45545,88.2,Staff Expenses Claim
BIS,Skills Funding Agency,04/05/2016,Diesel Car Mileage,Central Delivery Service - Leeds,Agency Staff Member,SCLAIM_45546,103.5,Staff Expenses Claim
BIS,Skills Funding Agency,04/05/2016,Diesel Car Mileage,Employer & Provider Services North West,Agency Staff Member,SCLAIM_45517,144.9,Staff Expenses Claim
BIS,Skills Funding Agency,04/05/2016,Diesel Car Mileage,Employer & Provider Services North West,Agency Staff Member,SCLAIM_45518,111.6,Staff Expenses Claim
BIS,Skills Funding Agency,04/05/2016,Diesel Car Mileage,Employer & Provider Services North West,Agency Staff Member,SCLAIM_45547,82.8,Staff Expenses Claim
BIS,Skills Funding Agency,04/05/2016,Diesel Car Mileage,Employer & Provider Services South East,Agency Staff Member,SCLAIM_45526,236.7,Staff Expenses Claim
BIS,Skills Funding Agency,04/05/2016,Diesel Car Mileage,Employer & Provider Services South East,Agency Staff Member,SCLAIM_45536,277.2,Staff Expenses Claim
BIS,Skills Funding Agency,04/05/2016,Diesel Car Mileage,Employer & Provider Services South East,Agency Staff Member,SCLAIM_45540,537.3,Staff Expenses Claim
BIS,Skills Funding Agency,04/05/2016,Diesel Car Mileage,Employer & Provider Services South East,Agency Staff Member,SCLAIM_45560,122.4,Staff Expenses Claim
BIS,Skills Funding Agency,04/05/2016,Diesel Car Mileage,Funding & Programmes - Localism Policy Implementation,Agency Staff Member,SCLAIM_45512,126,Staff Expenses Claim
BIS,Skills Funding Agency,04/05/2016,Diesel Car Mileage,Funding & Programmes - Provider Management & Intervention South,Agency Staff Member,SCLAIM_45524,417.15,Staff Expenses Claim
BIS,Skills Funding Agency,04/05/2016,Diesel Car Mileage,Large Companies Unit,Agency Staff Member,SCLAIM_45514,214.2,Staff Expenses Claim
BIS,Skills Funding Agency,04/05/2016,Diesel Car Mileage,Large Companies Unit,Agency Staff Member,SCLAIM_45515,225.9,Staff Expenses Claim
BIS,Skills Funding Agency,04/05/2016,Diesel Car Mileage,Large Companies Unit,Agency Staff Member,SCLAIM_45566,405.9,Staff Expenses Claim
BIS,Skills Funding Agency,04/05/2016,Diesel Car Mileage,Marketing & Communications,Agency Staff Member,SCLAIM_45534,9,Staff Expenses Claim
BIS,Skills Funding Agency,04/05/2016,Diesel Car Mileage,National Careers & Learner Services,Agency Staff Member,SCLAIM_45506,5.4,Staff Expenses Claim
BIS,Skills Funding Agency,04/05/2016,Diesel Car Mileage,National Careers & Learner Services,Agency Staff Member,SCLAIM_45509,410.4,Staff Expenses Claim
BIS,Skills Funding Agency,04/05/2016,Diesel Car Mileage,National Careers & Learner Services,Agency Staff Member,SCLAIM_45542,9,Staff Expenses Claim
BIS,Skills Funding Agency,04/05/2016,Diesel Car Mileage,National Careers & Learner Services,Agency Staff Member,SCLAIM_45552,81,Staff Expenses Claim
BIS,Skills Funding Agency,04/05/2016,Diesel Car Mileage,National Careers & Learner Services,Agency Staff Member,SCLAIM_45559,61.65,Staff Expenses Claim
BIS,Skills Funding Agency,04/05/2016,Diesel Car Mileage,Operations Finance - Executive Office,Agency Staff Member,SCLAIM_45567,99.9,Staff Expenses Claim
BIS,Skills Funding Agency,04/05/2016,Diesel Car Mileage,Operations Finance - Financial Management,Agency Staff Member,SCLAIM_45543,92.7,Staff Expenses Claim
BIS,Skills Funding Agency,04/05/2016,National Careers Service Face to Face,Main Funding,CXK LIMITED,SPINVB_27410,90,Purchase Invoice
BIS,Skills Funding Agency,04/05/2016,Next Step Development,Main Funding,TRIBAL EDUCATION LTD,SPINVB_31250,"77,575.20",Purchase Invoice
BIS,Skills Funding Agency,04/05/2016,Other Fuel Car Mileage,Central Delivery Service - European Social Fund - Audit Compliance,Agency Staff Member,SCLAIM_45507,-96,Staff Expenses Claim
BIS,Skills Funding Agency,04/05/2016,Other Fuel Car Mileage,Central Delivery Service - European Social Fund - Audit Compliance,Agency Staff Member,SCLAIM_45551,-7.5,Staff Expenses Claim
BIS,Skills Funding Agency,04/05/2016,Other Fuel Car Mileage,Employer & Provider Services South East,Agency Staff Member,SCLAIM_45541,-94.5,Staff Expenses Claim
BIS,Skills Funding Agency,04/05/2016,Other Fuel Car Mileage,Operations Finance - Executive Office,Agency Staff Member,SCLAIM_45567,-49.5,Staff Expenses Claim
BIS,Skills Funding Agency,04/05/2016,Other Travel,Apprenticeships & Delivery Services - Executive Office,Agency Staff Member,SCLAIM_45555,4.5,Staff Expenses Claim
BIS,Skills Funding Agency,04/05/2016,Other Travel,Apprenticeships & Delivery Services - Marketing,Agency Staff Member,SCLAIM_45500,19.6,Staff Expenses Claim
BIS,Skills Funding Agency,04/05/2016,Other Travel,Apprenticeships & Delivery Services - Marketing,Agency Staff Member,SCLAIM_45521,8.4,Staff Expenses Claim
BIS,Skills Funding Agency,04/05/2016,Other Travel,Apprenticeships & Delivery Services - Marketing,Agency Staff Member,SCLAIM_45522,4.9,Staff Expenses Claim
BIS,Skills Funding Agency,04/05/2016,Other Travel,Apprenticeships & Delivery Services - Marketing,Agency Staff Member,SCLAIM_45571,44,Staff Expenses Claim
BIS,Skills Funding Agency,04/05/2016,Other Travel,Central Delivery Service - European Social Fund - Audit Compliance,Agency Staff Member,SCLAIM_45519,13,Staff Expenses Claim
BIS,Skills Funding Agency,04/05/2016,Other Travel,Central Delivery Service - European Social Fund - Audit Compliance,Agency Staff Member,SCLAIM_45549,48,Staff Expenses Claim
BIS,Skills Funding Agency,04/05/2016,Other Travel,Central Delivery Service - European Social Fund - Audit Compliance,Agency Staff Member,SCLAIM_45550,46.5,Staff Expenses Claim
BIS,Skills Funding Agency,04/05/2016,Other Travel,Central Delivery Service - European Social Fund - Audit Compliance,Agency Staff Member,SCLAIM_45553,13.2,Staff Expenses Claim
BIS,Skills Funding Agency,04/05/2016,Other Travel,Central Delivery Service - European Social Fund - Audit Compliance,Agency Staff Member,SCLAIM_45562,8,Staff Expenses Claim
BIS,Skills Funding Agency,04/05/2016,Other Travel,Central Delivery Service - European Social Fund - Audit Compliance,Agency Staff Member,SCLAIM_45572,40,Staff Expenses Claim
BIS,Skills Funding Agency,04/05/2016,Other Travel,Central Delivery Service - Leeds,Agency Staff Member,SCLAIM_45499,8,Staff Expenses Claim
BIS,Skills Funding Agency,04/05/2016,Other Travel,Central Delivery Service - Leeds,Agency Staff Member,SCLAIM_45523,16,Staff Expenses Claim
BIS,Skills Funding Agency,04/05/2016,Other Travel,Central Delivery Service - Leeds,Agency Staff Member,SCLAIM_45527,13.4,Staff Expenses Claim
BIS,Skills Funding Agency,04/05/2016,Other Travel,Central Delivery Service - Leeds,Agency Staff Member,SCLAIM_45537,5,Staff Expenses Claim
BIS,Skills Funding Agency,04/05/2016,Other Travel,Central Delivery Service - Leeds,Agency Staff Member,SCLAIM_45544,54,Staff Expenses Claim
BIS,Skills Funding Agency,04/05/2016,Other Travel,Employer & Provider Services North East & Yorkshire,Agency Staff Member,SCLAIM_45535,5.5,Staff Expenses Claim
BIS,Skills Funding Agency,04/05/2016,Other Travel,Employer & Provider Services North West,Agency Staff Member,SCLAIM_45516,31.4,Staff Expenses Claim
BIS,Skills Funding Agency,04/05/2016,Other Travel,Employer & Provider Services North West,Agency Staff Member,SCLAIM_45517,40,Staff Expenses Claim
BIS,Skills Funding Agency,04/05/2016,Other Travel,Employer & Provider Services North West,Agency Staff Member,SCLAIM_45525,25.3,Staff Expenses Claim
BIS,Skills Funding Agency,04/05/2016,Other Travel,Employer & Provider Services South East,Agency Staff Member,SCLAIM_45502,10.5,Staff Expenses Claim
BIS,Skills Funding Agency,04/05/2016,Other Travel,Employer & Provider Services South East,Agency Staff Member,SCLAIM_45504,3.34,Staff Expenses Claim
BIS,Skills Funding Agency,04/05/2016,Other Travel,Employer & Provider Services South East,Agency Staff Member,SCLAIM_45505,3.34,Staff Expenses Claim
BIS,Skills Funding Agency,04/05/2016,Other Travel,Employer & Provider Services South East,Agency Staff Member,SCLAIM_45511,29.5,Staff Expenses Claim
BIS,Skills Funding Agency,04/05/2016,Other Travel,Employer & Provider Services South East,Agency Staff Member,SCLAIM_45536,22.75,Staff Expenses Claim
BIS,Skills Funding Agency,04/05/2016,Other Travel,Employer & Provider Services South East,Agency Staff Member,SCLAIM_45560,18.5,Staff Expenses Claim
BIS,Skills Funding Agency,04/05/2016,Other Travel,Finance Division - Provider Financial Assurance Audit,Agency Staff Member,SCLAIM_45539,8,Staff Expenses Claim
BIS,Skills Funding Agency,04/05/2016,Other Travel,Funding & Programmes - Provider Management & Intervention South,Agency Staff Member,SCLAIM_45524,14.7,Staff Expenses Claim
BIS,Skills Funding Agency,04/05/2016,Other Travel,Large Companies Unit,Agency Staff Member,SCLAIM_45514,6,Staff Expenses Claim
BIS,Skills Funding Agency,04/05/2016,Other Travel,Large Companies Unit,Agency Staff Member,SCLAIM_45515,2.4,Staff Expenses Claim
BIS,Skills Funding Agency,04/05/2016,Other Travel,Large Companies Unit,Agency Staff Member,SCLAIM_45566,3,Staff Expenses Claim
BIS,Skills Funding Agency,04/05/2016,Other Travel,Marketing & Communications,Agency Staff Member,SCLAIM_45534,16.2,Staff Expenses Claim
BIS,Skills Funding Agency,04/05/2016,Other Travel,National Careers & Learner Services,Agency Staff Member,SCLAIM_45506,7.6,Staff Expenses Claim
BIS,Skills Funding Agency,04/05/2016,Other Travel,National Careers & Learner Services,Agency Staff Member,SCLAIM_45509,25.4,Staff Expenses Claim
BIS,Skills Funding Agency,04/05/2016,Other Travel,National Careers & Learner Services,Agency Staff Member,SCLAIM_45531,28.5,Staff Expenses Claim
BIS,Skills Funding Agency,04/05/2016,Other Travel,National Careers & Learner Services,Agency Staff Member,SCLAIM_45542,4.8,Staff Expenses Claim
BIS,Skills Funding Agency,04/05/2016,Other Travel,National Careers & Learner Services,Agency Staff Member,SCLAIM_45552,7.6,Staff Expenses Claim
BIS,Skills Funding Agency,04/05/2016,Other Travel,National Careers & Learner Services,Agency Staff Member,SCLAIM_45554,10,Staff Expenses Claim
BIS,Skills Funding Agency,04/05/2016,Other Travel,National Careers & Learner Services,Agency Staff Member,SCLAIM_45558,22.1,Staff Expenses Claim
BIS,Skills Funding Agency,04/05/2016,Other Travel,National Careers & Learner Services,Agency Staff Member,SCLAIM_45559,6.5,Staff Expenses Claim
BIS,Skills Funding Agency,04/05/2016,Other Travel,Operations Finance - Executive Office,Agency Staff Member,SCLAIM_45567,9,Staff Expenses Claim
BIS,Skills Funding Agency,04/05/2016,Other Travel,Operations Finance - Financial Management,Agency Staff Member,SCLAIM_45543,35.6,Staff Expenses Claim
BIS,Skills Funding Agency,04/05/2016,Other Travel,Operations ICT - Information & Communication Technology - Technical,Agency Staff Member,SCLAIM_45568,40.5,Staff Expenses Claim
BIS,Skills Funding Agency,04/05/2016,Other Travel,Operations ICT - Information & Communication Technology - Technical,Agency Staff Member,SCLAIM_45569,52.5,Staff Expenses Claim
BIS,Skills Funding Agency,04/05/2016,Other Travel,Operations ICT - Information & Communication Technology - Technical,Agency Staff Member,SCLAIM_45570,39,Staff Expenses Claim
BIS,Skills Funding Agency,04/05/2016,Petrol Car Mileage,Central Delivery Service - European Social Fund - Audit Compliance,Agency Staff Member,SCLAIM_45507,510.3,Staff Expenses Claim
BIS,Skills Funding Agency,04/05/2016,Petrol Car Mileage,Central Delivery Service - European Social Fund - Audit Compliance,Agency Staff Member,SCLAIM_45519,148.5,Staff Expenses Claim
BIS,Skills Funding Agency,04/05/2016,Petrol Car Mileage,Central Delivery Service - European Social Fund - Audit Compliance,Agency Staff Member,SCLAIM_45529,21.6,Staff Expenses Claim
BIS,Skills Funding Agency,04/05/2016,Petrol Car Mileage,Central Delivery Service - European Social Fund - Audit Compliance,Agency Staff Member,SCLAIM_45530,63.9,Staff Expenses Claim
BIS,Skills Funding Agency,04/05/2016,Petrol Car Mileage,Central Delivery Service - European Social Fund - Audit Compliance,Agency Staff Member,SCLAIM_45562,18,Staff Expenses Claim
BIS,Skills Funding Agency,04/05/2016,Petrol Car Mileage,Central Delivery Service - European Social Fund - Audit Compliance,Agency Staff Member,SCLAIM_45572,99.9,Staff Expenses Claim
BIS,Skills Funding Agency,04/05/2016,Petrol Car Mileage,Central Delivery Service - Leeds,Agency Staff Member,SCLAIM_45537,12.6,Staff Expenses Claim
BIS,Skills Funding Agency,04/05/2016,Petrol Car Mileage,Chief Executive Office - Communications,Agency Staff Member,SCLAIM_45498,14.4,Staff Expenses Claim
BIS,Skills Funding Agency,04/05/2016,Petrol Car Mileage,Employer & Provider Services North East & Yorkshire,Agency Staff Member,SCLAIM_45535,217.8,Staff Expenses Claim
BIS,Skills Funding Agency,04/05/2016,Petrol Car Mileage,Employer & Provider Services North East & Yorkshire,Agency Staff Member,SCLAIM_45556,325.8,Staff Expenses Claim
BIS,Skills Funding Agency,04/05/2016,Petrol Car Mileage,Employer & Provider Services North West,Agency Staff Member,SCLAIM_45516,136.8,Staff Expenses Claim
BIS,Skills Funding Agency,04/05/2016,Petrol Car Mileage,Employer & Provider Services North West,Agency Staff Member,SCLAIM_45525,121.95,Staff Expenses Claim
BIS,Skills Funding Agency,04/05/2016,Petrol Car Mileage,Employer & Provider Services South East,Agency Staff Member,SCLAIM_45502,387,Staff Expenses Claim
BIS,Skills Funding Agency,04/05/2016,Petrol Car Mileage,Employer & Provider Services South East,Agency Staff Member,SCLAIM_45503,181.8,Staff Expenses Claim
BIS,Skills Funding Agency,04/05/2016,Petrol Car Mileage,Employer & Provider Services South East,Agency Staff Member,SCLAIM_45504,40.5,Staff Expenses Claim
BIS,Skills Funding Agency,04/05/2016,Petrol Car Mileage,Employer & Provider Services South East,Agency Staff Member,SCLAIM_45505,40.5,Staff Expenses Claim
BIS,Skills Funding Agency,04/05/2016,Petrol Car Mileage,Employer & Provider Services South East,Agency Staff Member,SCLAIM_45511,109.8,Staff Expenses Claim
BIS,Skills Funding Agency,04/05/2016,Petrol Car Mileage,Employer & Provider Services South East,Agency Staff Member,SCLAIM_45538,118.8,Staff Expenses Claim
BIS,Skills Funding Agency,04/05/2016,Petrol Car Mileage,Employer & Provider Services South East,Agency Staff Member,SCLAIM_45541,170.1,Staff Expenses Claim
BIS,Skills Funding Agency,04/05/2016,Petrol Car Mileage,Finance Division - Provider Financial Assurance Audit,Agency Staff Member,SCLAIM_45539,27.9,Staff Expenses Claim
BIS,Skills Funding Agency,04/05/2016,Petrol Car Mileage,National Careers & Learner Services,Agency Staff Member,SCLAIM_45533,69.3,Staff Expenses Claim
BIS,Skills Funding Agency,04/05/2016,Petrol Car Mileage,National Careers & Learner Services,Agency Staff Member,SCLAIM_45558,243.9,Staff Expenses Claim
BIS,Skills Funding Agency,04/05/2016,Professional Subscriptions,Finance Division - Provider Finance,Agency Staff Member,SCLAIMPRO_948,180,Staff Expenses Claim
BIS,Skills Funding Agency,04/05/2016,Rail Warrants & Tickets,Apprenticeships & Delivery Services - Executive Office,Agency Staff Member,SCLAIM_45555,78.6,Staff Expenses Claim
BIS,Skills Funding Agency,04/05/2016,Rail Warrants & Tickets,Apprenticeships & Delivery Services - Marketing,Agency Staff Member,SCLAIM_45501,36.3,Staff Expenses Claim
BIS,Skills Funding Agency,04/05/2016,Rail Warrants & Tickets,Apprenticeships & Delivery Services - Marketing,Agency Staff Member,SCLAIM_45571,4.9,Staff Expenses Claim
BIS,Skills Funding Agency,04/05/2016,Rail Warrants & Tickets,Employer & Provider Services South East,Agency Staff Member,SCLAIM_45511,4.9,Staff Expenses Claim
BIS,Skills Funding Agency,04/05/2016,Rail Warrants & Tickets,Employer & Provider Services South East,Agency Staff Member,SCLAIM_45526,8.5,Staff Expenses Claim
BIS,Skills Funding Agency,04/05/2016,Rail Warrants & Tickets,Funding & Programmes - Funding Systems and Information,Agency Staff Member,SCLAIM_45513,159.8,Staff Expenses Claim
BIS,Skills Funding Agency,04/05/2016,Rail Warrants & Tickets,Large Companies Unit,Agency Staff Member,SCLAIM_45514,33.5,Staff Expenses Claim
BIS,Skills Funding Agency,04/05/2016,Rail Warrants & Tickets,National Careers & Learner Services,Agency Staff Member,SCLAIM_45561,75,Staff Expenses Claim
BIS,Skills Funding Agency,04/05/2016,Self-Drive Car Hire,Central Delivery Service - European Social Fund - Audit Compliance,Agency Staff Member,SCLAIM_45551,28.76,Staff Expenses Claim
BIS,Skills Funding Agency,04/05/2016,Self-Drive Car Hire,Central Delivery Service - European Social Fund - Audit Compliance,Agency Staff Member,SCLAIM_45553,9.33,Staff Expenses Claim
BIS,Skills Funding Agency,04/05/2016,Self-Drive Car Hire,Central Delivery Service - European Social Fund - Audit Compliance,Agency Staff Member,SCLAIM_45572,20,Staff Expenses Claim
BIS,Skills Funding Agency,04/05/2016,Self-Drive Car Hire,Central Delivery Service - Leeds,Agency Staff Member,SCLAIM_45523,19.59,Staff Expenses Claim
BIS,Skills Funding Agency,04/05/2016,Self-Drive Car Hire,Employer & Provider Services South East,Agency Staff Member,SCLAIM_45536,28.54,Staff Expenses Claim
BIS,Skills Funding Agency,04/05/2016,Self-Drive Car Hire,Finance Division - Provider Financial Assurance Audit,Agency Staff Member,SCLAIM_45539,21.4,Staff Expenses Claim
BIS,Skills Funding Agency,04/05/2016,Self-Drive Car Hire,National Careers & Learner Services,Agency Staff Member,SCLAIM_45559,70.96,Staff Expenses Claim
BIS,Skills Funding Agency,04/05/2016,Self-Drive Car Hire,Operations Finance - Executive Office,Agency Staff Member,SCLAIM_45567,113.38,Staff Expenses Claim
BIS,Skills Funding Agency,04/05/2016,Subsistence,Apprenticeships & Delivery Services - Marketing,Agency Staff Member,SCLAIM_45500,35,Staff Expenses Claim
BIS,Skills Funding Agency,04/05/2016,Subsistence,Apprenticeships & Delivery Services - Marketing,Agency Staff Member,SCLAIM_45501,95,Staff Expenses Claim
BIS,Skills Funding Agency,04/05/2016,Subsistence,Apprenticeships & Delivery Services - Marketing,Agency Staff Member,SCLAIM_45521,35,Staff Expenses Claim
BIS,Skills Funding Agency,04/05/2016,Subsistence,Apprenticeships & Delivery Services - Marketing,Agency Staff Member,SCLAIM_45522,105,Staff Expenses Claim
BIS,Skills Funding Agency,04/05/2016,Subsistence,Apprenticeships & Delivery Services - Marketing,Agency Staff Member,SCLAIM_45571,50,Staff Expenses Claim
BIS,Skills Funding Agency,04/05/2016,Subsistence,Central Delivery Service - European Social Fund - Audit Compliance,Agency Staff Member,SCLAIM_45549,60,Staff Expenses Claim
BIS,Skills Funding Agency,04/05/2016,Subsistence,Central Delivery Service - European Social Fund - Audit Compliance,Agency Staff Member,SCLAIM_45550,70,Staff Expenses Claim
BIS,Skills Funding Agency,04/05/2016,Subsistence,Central Delivery Service - European Social Fund - Audit Compliance,Agency Staff Member,SCLAIM_45551,80,Staff Expenses Claim
BIS,Skills Funding Agency,04/05/2016,Subsistence,Central Delivery Service - European Social Fund - Audit Compliance,Agency Staff Member,SCLAIM_45562,55,Staff Expenses Claim
BIS,Skills Funding Agency,04/05/2016,Subsistence,Central Delivery Service - European Social Fund - Audit Compliance,Agency Staff Member,SCLAIM_45572,50,Staff Expenses Claim
BIS,Skills Funding Agency,04/05/2016,Subsistence,Central Delivery Service - Leeds,Agency Staff Member,SCLAIM_45544,50,Staff Expenses Claim
BIS,Skills Funding Agency,04/05/2016,Subsistence,Central Delivery Service - London,Agency Staff Member,SCLAIM_45565,20,Staff Expenses Claim
BIS,Skills Funding Agency,04/05/2016,Subsistence,Employer & Provider Services South East,Agency Staff Member,SCLAIM_45536,10,Staff Expenses Claim
BIS,Skills Funding Agency,04/05/2016,Subsistence,Employer & Provider Services South East,Agency Staff Member,SCLAIM_45560,25,Staff Expenses Claim
BIS,Skills Funding Agency,04/05/2016,Subsistence,Finance Division - Provider Financial Assurance Audit,Agency Staff Member,SCLAIM_45539,100,Staff Expenses Claim
BIS,Skills Funding Agency,04/05/2016,Subsistence,Funding & Programmes - Localism Policy Implementation,Agency Staff Member,SCLAIM_45520,10,Staff Expenses Claim
BIS,Skills Funding Agency,04/05/2016,Subsistence,Large Companies Unit,Agency Staff Member,SCLAIM_45566,50,Staff Expenses Claim
BIS,Skills Funding Agency,04/05/2016,Subsistence,National Careers & Learner Services,Agency Staff Member,SCLAIM_45532,100,Staff Expenses Claim
BIS,Skills Funding Agency,04/05/2016,Subsistence,National Careers & Learner Services,Agency Staff Member,SCLAIM_45542,95,Staff Expenses Claim
BIS,Skills Funding Agency,04/05/2016,Subsistence,National Careers & Learner Services,Agency Staff Member,SCLAIM_45554,30,Staff Expenses Claim
BIS,Skills Funding Agency,04/05/2016,Subsistence,National Careers & Learner Services,Agency Staff Member,SCLAIM_45559,60,Staff Expenses Claim
BIS,Skills Funding Agency,04/05/2016,Subsistence,Operations Finance - Executive Office,Agency Staff Member,SCLAIM_45557,3.99,Staff Expenses Claim
BIS,Skills Funding Agency,04/05/2016,Subsistence,Operations Finance - Executive Office,Agency Staff Member,SCLAIM_45567,50,Staff Expenses Claim
BIS,Skills Funding Agency,04/05/2016,Subsistence,Operations Finance - Financial Management,Agency Staff Member,SCLAIM_45543,40,Staff Expenses Claim
BIS,Skills Funding Agency,04/05/2016,Subsistence,Operations ICT - Information & Communication Technology - Technical,Agency Staff Member,SCLAIM_45568,45,Staff Expenses Claim
BIS,Skills Funding Agency,04/05/2016,Subsistence,Operations ICT - Information & Communication Technology - Technical,Agency Staff Member,SCLAIM_45570,20,Staff Expenses Claim
BIS,Skills Funding Agency,04/05/2016,Sundry Items,National Careers & Learner Services,Agency Staff Member,SCLAIM_45542,10,Staff Expenses Claim
BIS,Skills Funding Agency,04/05/2016,Sundry Items,Operations Finance - Financial Management,Agency Staff Member,SCLAIM_45543,-70,Staff Expenses Claim
BIS,Skills Funding Agency,04/05/2016,Taxis,Apprenticeships & Delivery Services - Executive Office,Agency Staff Member,SCLAIM_45555,21.45,Staff Expenses Claim
BIS,Skills Funding Agency,04/05/2016,Taxis,Apprenticeships & Delivery Services - Marketing,Agency Staff Member,SCLAIM_45500,54,Staff Expenses Claim
BIS,Skills Funding Agency,04/05/2016,Taxis,Apprenticeships & Delivery Services - Marketing,Agency Staff Member,SCLAIM_45501,65.1,Staff Expenses Claim
BIS,Skills Funding Agency,04/05/2016,Taxis,Apprenticeships & Delivery Services - Marketing,Agency Staff Member,SCLAIM_45521,10.5,Staff Expenses Claim
BIS,Skills Funding Agency,04/05/2016,Taxis,Apprenticeships & Delivery Services - Marketing,Agency Staff Member,SCLAIM_45522,89,Staff Expenses Claim
BIS,Skills Funding Agency,04/05/2016,Taxis,Central Delivery Service - European Social Fund - Audit Compliance,Agency Staff Member,SCLAIM_45562,20,Staff Expenses Claim
BIS,Skills Funding Agency,04/05/2016,Taxis,Employer & Provider Services South East,Agency Staff Member,SCLAIM_45560,32.1,Staff Expenses Claim
BIS,Skills Funding Agency,04/05/2016,Taxis,National Careers & Learner Services,Agency Staff Member,SCLAIM_45531,40.3,Staff Expenses Claim
BIS,Skills Funding Agency,04/05/2016,Taxis,National Careers & Learner Services,Agency Staff Member,SCLAIM_45542,105.9,Staff Expenses Claim
BIS,Skills Funding Agency,04/05/2016,Taxis,National Careers & Learner Services,Agency Staff Member,SCLAIM_45554,12,Staff Expenses Claim
BIS,Skills Funding Agency,04/05/2016,Taxis,Operations Finance - Executive Office,Agency Staff Member,SCLAIM_45557,29.25,Staff Expenses Claim
BIS,Skills Funding Agency,04/05/2016,Taxis,Operations Finance - Financial Management,Agency Staff Member,SCLAIM_45543,18.6,Staff Expenses Claim
BIS,Skills Funding Agency,04/05/2016,Taxis,Operations ICT - Information & Communication Technology - Technical,Agency Staff Member,SCLAIM_45570,5,Staff Expenses Claim
BIS,Skills Funding Agency,04/05/2016,Temporary Staff,Operations Finance - Accounting Services,HAYS SPECIALIST RECRUITMENT LTD,IPINVELECT3_2047,"2,790.00",Purchase Invoice
BIS,Skills Funding Agency,04/05/2016,Temporary Staff,Operations ICT - Technical Design Authority,HAYS SPECIALIST RECRUITMENT LTD,IPINVELECT3_2047,"1,860.00",Purchase Invoice
BIS,Skills Funding Agency,06/05/2016,Career Development Loans - Programme Support Costs,Main Funding,EXPERIAN LTD,SPINVB_31317,107.1,Purchase Invoice
BIS,Skills Funding Agency,06/05/2016,Catering Contracts,Operations Finance - Financial Management,WESTBURY STREET HOLDINGS,SPINVB_31344,"9,278.24",Purchase Invoice
BIS,Skills Funding Agency,06/05/2016,Communications Team Expenditure,Chief Executive Office - Media & Public Affairs,NLA MEDIA ACCESS LTD,SPINVB_31337,"76,304.94",Purchase Invoice
BIS,Skills Funding Agency,06/05/2016,Communications Team Expenditure,Operations Finance - Executive Office,PERTEMPS RECRUITMENT PARTNERSHIP LTD,SPINVB_31333,880.6,Purchase Invoice
BIS,Skills Funding Agency,06/05/2016,Conference Fees,Funding & Programmes - Funding Systems and Information,PROFESSIONAL CONFERENCES LTD,SPINVB_31334,142.8,Purchase Invoice
BIS,Skills Funding Agency,06/05/2016,Electricity,Chief Executive Office - Executive Office,EDF ENERGY PLC,SPINVNO_3821,"7,561.35",Purchase Invoice
BIS,Skills Funding Agency,06/05/2016,Electricity,Chief Executive Office - Executive Office,EDF ENERGY PLC,SPINVNO_3822,"11,534.12",Purchase Invoice
BIS,Skills Funding Agency,06/05/2016,Postage,Chief Executive Office - Executive Office,ROYAL MAIL HOLDINGS PLC,SPINVNO_3823,"1,150.59",Purchase Invoice
BIS,Skills Funding Agency,06/05/2016,Reprographics,Funding & Programmes - Funding Systems and Information,WILLIAMS LEA LIMITED,SPINVB_31323,147.26,Purchase Invoice
BIS,Skills Funding Agency,06/05/2016,Temporary Staff,Funding & Programmes - Executive Office,CAPITA BUSINESS SERVICES LTD,IPINVELECT3_2048,"21,921.12",Purchase Invoice
BIS,Skills Funding Agency,06/05/2016,Temporary Staff,HR - Human Resources,SF RECRUITMENT LTD,SPINVB_31244,567,Purchase Invoice
BIS,Skills Funding Agency,06/05/2016,Temporary Staff,HR - Human Resources,SF RECRUITMENT LTD,SPINVB_31319,378,Purchase Invoice
BIS,Skills Funding Agency,06/05/2016,Temporary Staff,National Careers & Learner Services,CAPITA BUSINESS SERVICES LTD,IPINVELECT3_2048,"2,688.53",Purchase Invoice
BIS,Skills Funding Agency,06/05/2016,Temporary Staff,Operations ICT - Information & Communication Technology - Technical,CAPITA BUSINESS SERVICES LTD,IPINVELECT3_2048,"2,111.28",Purchase Invoice
BIS,Skills Funding Agency,06/05/2016,Temporary Staff,Operations ICT - Project Delivery,PARITY RESOURCES LTD,SPINVB_31234,"3,310.50",Purchase Invoice
BIS,Skills Funding Agency,06/05/2016,Temporary Staff,Operations ICT - Technical Design Authority,CAPITA BUSINESS SERVICES LTD,IPINVELECT3_2048,"4,150.32",Purchase Invoice
BIS,Skills Funding Agency,06/05/2016,Temporary Staff,Operations ICT - Technical Design Authority,EXPERIS LIMITED,SPINVB_31246,"1,915.34",Purchase Invoice
BIS,Skills Funding Agency,06/05/2016,Water,Chief Executive Office - Executive Office,SEVERN TRENT WATER LTD,SPINVNO_3824,"2,460.68",Purchase Invoice
BIS,Skills Funding Agency,06/05/2016,Young People's Helpline,Main Funding,ANNA MORRISON CONSULTANCY SERVICES LIMITED,SPINVB_31329,"49,930.50",Purchase Invoice
BIS,Skills Funding Agency,09/05/2016,European Social Fund 2007-13 Priority 3 Regional Competitiveness and Employment Technical Assistance,Main Funding,DEPARTMENT FOR WORK & PENSIONS,SPINVNO_3817,"213,007.00",Purchase Invoice
BIS,Skills Funding Agency,09/05/2016,European Social Fund 2007-13 Priority 3 Regional Competitiveness and Employment Technical Assistance,Main Funding,DEPARTMENT FOR WORK & PENSIONS,SPINVNO_3818,"24,000.00",Purchase Invoice
BIS,Skills Funding Agency,10/05/2016,Archiving,HR - Human Resources,IRON MOUNTAIN UK LTD,IPINVELECT3_2049,"22,011.25",Purchase Invoice
BIS,Skills Funding Agency,10/05/2016,Catering Supplies,Operations Finance - Financial Management,D ARCH & SON,SPINVB_31363,820.3,Purchase Invoice
BIS,Skills Funding Agency,10/05/2016,Dilapidations,Chief Executive Office - Executive Office,BRITISH WATERWAYS BOARD,SPINVNO_3825,"45,000.00",Purchase Invoice
BIS,Skills Funding Agency,10/05/2016,Framework for Excellence,Main Funding,GFK NOP LTD,SPINVB_31224,"46,942.80",Purchase Invoice
BIS,Skills Funding Agency,10/05/2016,Hosting,Operations ICT - Technical Design Authority,FORDWAY SOLUTIONS LIMITED,SPINVB_31340,"101,050.27",Purchase Invoice
BIS,Skills Funding Agency,10/05/2016,Hosting,Operations ICT - Technical Design Authority,FORDWAY SOLUTIONS LIMITED,SPINVB_31341,"89,493.64",Purchase Invoice
BIS,Skills Funding Agency,10/05/2016,Hosting,Operations ICT - Technical Design Authority,FORDWAY SOLUTIONS LIMITED,SPINVB_31342,"12,479.58",Purchase Invoice
BIS,Skills Funding Agency,10/05/2016,Hosting,Operations ICT - Technical Design Authority,FORDWAY SOLUTIONS LIMITED,SPINVB_31343,"2,709.01",Purchase Invoice
BIS,Skills Funding Agency,10/05/2016,Information Technology Systems Development,Funding & Programmes - Delivery & Performance - Data Collections,MATRAXIS LTD,SPINVB_31289,"1,954.80",Purchase Invoice
BIS,Skills Funding Agency,10/05/2016,Information Technology Systems Development,Operations ICT - Projects,MATRAXIS LTD,SPINVB_31290,"1,144.80",Purchase Invoice
BIS,Skills Funding Agency,10/05/2016,Landline Telephone Service,Operations ICT - Information & Communication Technology - Technical,IDN TELECOM LTD,IPINVELECT3_2051,464.81,Purchase Invoice
BIS,Skills Funding Agency,10/05/2016,Licences,Operations ICT - Technical Design Authority,GMO GLOBALSIGN LTD,SPAYONACCT_342,"18,000.00",Payment on Account
BIS,Skills Funding Agency,10/05/2016,Life Long Learning Accounts,Main Funding,ATOS IT SERVICES UK,SPINVB_31359,"28,486.15",Purchase Invoice
BIS,Skills Funding Agency,10/05/2016,Life Long Learning Accounts,Main Funding,ATOS IT SERVICES UK,SPINVB_31360,"39,144.00",Purchase Invoice
BIS,Skills Funding Agency,10/05/2016,Life Long Learning Accounts,Main Funding,NCC GROUP SECURITY SERVICES LTD,SPINVB_31222,"31,040.50",Purchase Invoice
BIS,Skills Funding Agency,10/05/2016,Managed IT Service,Apprenticeships & Delivery Services - Executive Office,ORANGE BUS LIMITED,SPINVB_31288,"39,694.28",Purchase Invoice
BIS,Skills Funding Agency,10/05/2016,Managed IT Service,Funding & Programmes - Delivery & Performance - Data Collections,TRUEPENNY PEOPLE UK LTD,SPINVB_31260,"30,356.78",Purchase Invoice
BIS,Skills Funding Agency,10/05/2016,Managed IT Service,Funding & Programmes - Delivery & Performance - Data Warehouse,CENTRE4 RESOURCES LIMITED,SPINVB_31366,"45,360.00",Purchase Invoice
BIS,Skills Funding Agency,10/05/2016,Managed IT Service,Funding & Programmes - Executive Office,ANALYSE-CONCEPT LTD,SPINVB_31268,"14,280.00",Purchase Invoice
BIS,Skills Funding Agency,10/05/2016,Managed IT Service,Funding & Programmes - Executive Office,ANALYSE-CONCEPT LTD,SPINVB_31269,"19,740.00",Purchase Invoice
BIS,Skills Funding Agency,10/05/2016,Managed IT Service,Funding & Programmes - Executive Office,ANALYSE-CONCEPT LTD,SPINVB_31271,"13,910.40",Purchase Invoice
BIS,Skills Funding Agency,10/05/2016,Managed IT Service,Funding & Programmes - Executive Office,ANALYSE-CONCEPT LTD,SPINVB_31272,"15,120.00",Purchase Invoice
BIS,Skills Funding Agency,10/05/2016,Managed IT Service,Funding & Programmes - Executive Office,ANALYSE-CONCEPT LTD,SPINVB_31273,"2,520.00",Purchase Invoice
BIS,Skills Funding Agency,10/05/2016,Managed IT Service,Funding & Programmes - Executive Office,DIGI2AL LTD,SPINVB_31327,"9,676.80",Purchase Invoice
BIS,Skills Funding Agency,10/05/2016,Managed IT Service,Funding & Programmes - Executive Office,PANLOGIC LTD,SPINVB_31291,"7,932.00",Purchase Invoice
BIS,Skills Funding Agency,10/05/2016,Managed IT Service,Funding & Programmes - Executive Office,PANLOGIC LTD,SPINVB_31292,"7,932.00",Purchase Invoice
BIS,Skills Funding Agency,10/05/2016,Managed IT Service,Funding & Programmes - Executive Office,PANLOGIC LTD,SPINVB_31293,"14,277.60",Purchase Invoice
BIS,Skills Funding Agency,10/05/2016,Managed IT Service,Funding & Programmes - Funding Systems and Information,ANALYSE-CONCEPT LTD,SPINVB_31266,"17,220.00",Purchase Invoice
BIS,Skills Funding Agency,10/05/2016,Managed IT Service,Funding & Programmes - Funding Systems and Information,ANALYSE-CONCEPT LTD,SPINVB_31267,"2,520.00",Purchase Invoice
BIS,Skills Funding Agency,10/05/2016,Managed IT Service,Funding & Programmes - Funding Systems and Information,ANALYSE-CONCEPT LTD,SPINVB_31270,"2,318.40",Purchase Invoice
BIS,Skills Funding Agency,10/05/2016,Managed IT Service,Funding & Programmes - Funding Systems and Information,ANALYSE-CONCEPT LTD,SPINVB_31294,87.9,Purchase Invoice
BIS,Skills Funding Agency,10/05/2016,Managed IT Service,Operations ICT - Projects,ORANGE BUS LIMITED,SPCRNB_1111,"-2,376.00",Purchase Credit Note
BIS,Skills Funding Agency,10/05/2016,Managed IT Service,Operations ICT - Projects,ORANGE BUS LIMITED,SPINVB_31248,"8,376.22",Purchase Invoice
BIS,Skills Funding Agency,10/05/2016,Other Events,Apprenticeships & Delivery Services - Marketing,CAPITA TRAVEL AND EVENTS LTD,IPINVELECT3_2050,"6,342.18",Purchase Invoice
BIS,Skills Funding Agency,10/05/2016,Professional Services - Single Assignments,Operations ICT - Projects,CAPGEMINI UK PLC,SPINVB_31280,"252,683.82",Purchase Invoice
BIS,Skills Funding Agency,10/05/2016,Professional Services - Single Assignments,Operations ICT - Projects,CAPGEMINI UK PLC,SPINVB_31285,"10,923.30",Purchase Invoice
BIS,Skills Funding Agency,10/05/2016,Temporary Staff,Funding & Programmes - Delivery & Performance - Data Warehouse,SMART SOURCING PLC,SPINVB_31356,"8,934.86",Purchase Invoice
BIS,Skills Funding Agency,10/05/2016,Training Venue & Refreshments,Transformation & Corporate Strategy,CAPITA TRAVEL AND EVENTS LTD,IPINVELECT3_2050,"18,012.00",Purchase Invoice
BIS,Skills Funding Agency,10/05/2016,Water,Chief Executive Office - Executive Office,SEVERN TRENT WATER LTD,SPINVNO_3826,"2,898.83",Purchase Invoice
BIS,Skills Funding Agency,11/05/2016,16-18 Apprenticeship Grant for Employers,Main Funding,ESSEX�CELLULAR�TELEPHONES�LTD,SPINVCHQ_574,"3,000.00",Purchase Invoice
BIS,Skills Funding Agency,11/05/2016,16-18 Apprenticeship Grant for Employers,Main Funding,T�KING�ASSOCIATES�LTD,SPINVCHQ_575,"1,500.00",Purchase Invoice
BIS,Skills Funding Agency,11/05/2016,19-24 Apprenticeship Grant for Employers,Main Funding,T�KING�ASSOCIATES�LTD,SPINVCHQ_575,"1,500.00",Purchase Invoice
BIS,Skills Funding Agency,11/05/2016,Additionality Deductions,Operations Finance - Financial Management,Agency Staff Member,SCLAIM_45575,-7.2,Staff Expenses Claim
BIS,Skills Funding Agency,11/05/2016,Catering Contracts,Operations Finance - Financial Management,WESTBURY STREET HOLDINGS,SPINVB_31372,"8,602.19",Purchase Invoice
BIS,Skills Funding Agency,11/05/2016,Course Fees,Apprenticeships & Delivery Services - Marketing,Agency Staff Member,SCLAIM_45586,130,Staff Expenses Claim
BIS,Skills Funding Agency,11/05/2016,Diesel Car Mileage Passenger Supplement,Funding & Programmes - Provider Management & Intervention North,Agency Staff Member,SCLAIM_45578,0.4,Staff Expenses Claim
BIS,Skills Funding Agency,11/05/2016,Diesel Car Mileage,Apprenticeships & Delivery Services - Marketing,Agency Staff Member,SCLAIM_45583,91.8,Staff Expenses Claim
BIS,Skills Funding Agency,11/05/2016,Diesel Car Mileage,Central Delivery Service - Birmingham,Agency Staff Member,SCLAIM_45620,291.2,Staff Expenses Claim
BIS,Skills Funding Agency,11/05/2016,Diesel Car Mileage,Central Delivery Service - Birmingham,Agency Staff Member,SCLAIM_45621,118.8,Staff Expenses Claim
BIS,Skills Funding Agency,11/05/2016,Diesel Car Mileage,Central Delivery Service - European Social Fund - Audit Compliance,Agency Staff Member,SCLAIM_45597,54,Staff Expenses Claim
BIS,Skills Funding Agency,11/05/2016,Diesel Car Mileage,Central Delivery Service - European Social Fund - Audit Compliance,Agency Staff Member,SCLAIM_45607,334.8,Staff Expenses Claim
BIS,Skills Funding Agency,11/05/2016,Diesel Car Mileage,Central Delivery Service - European Social Fund - Audit Compliance,Agency Staff Member,SCLAIM_45625,129.6,Staff Expenses Claim
BIS,Skills Funding Agency,11/05/2016,Diesel Car Mileage,Employer & Provider Services North East & Yorkshire,Agency Staff Member,SCLAIM_45581,109.8,Staff Expenses Claim
BIS,Skills Funding Agency,11/05/2016,Diesel Car Mileage,Employer & Provider Services North East & Yorkshire,Agency Staff Member,SCLAIM_45595,346.5,Staff Expenses Claim
BIS,Skills Funding Agency,11/05/2016,Diesel Car Mileage,Employer & Provider Services South East,Agency Staff Member,SCLAIM_45580,133.2,Staff Expenses Claim
BIS,Skills Funding Agency,11/05/2016,Diesel Car Mileage,Funding & Programmes - Provider Management & Intervention North,Agency Staff Member,SCLAIM_45578,227.7,Staff Expenses Claim
BIS,Skills Funding Agency,11/05/2016,Diesel Car Mileage,Funding & Programmes - Provider Management & Intervention North,Agency Staff Member,SCLAIM_45627,154.8,Staff Expenses Claim
BIS,Skills Funding Agency,11/05/2016,Diesel Car Mileage,Funding & Programmes - Provider Management & Intervention South,Agency Staff Member,SCLAIM_45589,4.5,Staff Expenses Claim
BIS,Skills Funding Agency,11/05/2016,Diesel Car Mileage,Funding & Programmes - Provider Management & Intervention South,Agency Staff Member,SCLAIM_45601,32.4,Staff Expenses Claim
BIS,Skills Funding Agency,11/05/2016,Diesel Car Mileage,Large Companies Unit,Agency Staff Member,SCLAIM_45612,315.9,Staff Expenses Claim
BIS,Skills Funding Agency,11/05/2016,Diesel Car Mileage,Large Companies Unit,Agency Staff Member,SCLAIM_45613,60.3,Staff Expenses Claim
BIS,Skills Funding Agency,11/05/2016,Diesel Car Mileage,Large Companies Unit,Agency Staff Member,SCLAIM_45614,462.6,Staff Expenses Claim
BIS,Skills Funding Agency,11/05/2016,Diesel Car Mileage,Large Companies Unit,Agency Staff Member,SCLAIM_45615,190.8,Staff Expenses Claim
BIS,Skills Funding Agency,11/05/2016,Diesel Car Mileage,Large Companies Unit,Agency Staff Member,SCLAIM_45616,321.3,Staff Expenses Claim
BIS,Skills Funding Agency,11/05/2016,Diesel Car Mileage,National Careers & Learner Services,Agency Staff Member,SCLAIM_45623,219.6,Staff Expenses Claim
BIS,Skills Funding Agency,11/05/2016,Diesel Car Mileage,Operations Finance - Executive Office,Agency Staff Member,SCLAIM_45582,21.6,Staff Expenses Claim
BIS,Skills Funding Agency,11/05/2016,Diesel Car Mileage,Operations Finance - Financial Management,Agency Staff Member,SCLAIM_45575,61.2,Staff Expenses Claim
BIS,Skills Funding Agency,11/05/2016,Diesel Car Mileage,Southern Division,Agency Staff Member,SCLAIM_45573,157.5,Staff Expenses Claim
BIS,Skills Funding Agency,11/05/2016,Hosting,Operations ICT - Technical Design Authority,SPECIALIST COMPUTER CENTRES PLC,SPINVB_31262,"1,980.00",Purchase Invoice
BIS,Skills Funding Agency,11/05/2016,Hotel Accommodation,Large Companies Unit,Agency Staff Member,SCLAIM_45616,13.5,Staff Expenses Claim
BIS,Skills Funding Agency,11/05/2016,Licences,Operations ICT - Business IT - Agency Services,MAGIQUE GALILEO SOFTWARE LTD,SPINVB_31369,756,Purchase Invoice
BIS,Skills Funding Agency,11/05/2016,Licences,Operations ICT - Technical Design Authority,RIDGIAN LIMITED,SPINVB_31299,"1,080.00",Purchase Invoice
BIS,Skills Funding Agency,11/05/2016,Managed IT Service,Funding & Programmes - Funding Systems and Information,TRIBAL EDUCATION LTD,SPCRNB_1107,"-36,787.20",Purchase Credit Note
BIS,Skills Funding Agency,11/05/2016,Managed IT Service,Funding & Programmes - Funding Systems and Information,TRIBAL EDUCATION LTD,SPINVB_31145,"96,207.60",Purchase Invoice
BIS,Skills Funding Agency,11/05/2016,Other Fuel Car Mileage,Central Delivery Service - European Social Fund - Audit Compliance,Agency Staff Member,SCLAIM_45597,-16.5,Staff Expenses Claim
BIS,Skills Funding Agency,11/05/2016,Other Fuel Car Mileage,Central Delivery Service - European Social Fund - Audit Compliance,Agency Staff Member,SCLAIM_45607,-127.4,Staff Expenses Claim
BIS,Skills Funding Agency,11/05/2016,Other Fuel Car Mileage,Employer & Provider Services North East & Yorkshire,Agency Staff Member,SCLAIM_45624,345.6,Staff Expenses Claim
BIS,Skills Funding Agency,11/05/2016,Other Travel,Apprenticeships & Delivery Services - Marketing,Agency Staff Member,SCLAIM_45583,1,Staff Expenses Claim
BIS,Skills Funding Agency,11/05/2016,Other Travel,Apprenticeships & Delivery Services - Marketing,Agency Staff Member,SCLAIM_45586,11.2,Staff Expenses Claim
BIS,Skills Funding Agency,11/05/2016,Other Travel,Central Delivery Service - Birmingham,Agency Staff Member,SCLAIM_45621,11.6,Staff Expenses Claim
BIS,Skills Funding Agency,11/05/2016,Other Travel,Central Delivery Service - European Social Fund - Audit Compliance,Agency Staff Member,SCLAIM_45597,11.1,Staff Expenses Claim
BIS,Skills Funding Agency,11/05/2016,Other Travel,Central Delivery Service - European Social Fund - Audit Compliance,Agency Staff Member,SCLAIM_45607,32,Staff Expenses Claim
BIS,Skills Funding Agency,11/05/2016,Other Travel,Central Delivery Service - European Social Fund - Audit Compliance,Agency Staff Member,SCLAIM_45617,5,Staff Expenses Claim
BIS,Skills Funding Agency,11/05/2016,Other Travel,Employer & Provider Services North East & Yorkshire,Agency Staff Member,SCLAIM_45581,22.1,Staff Expenses Claim
BIS,Skills Funding Agency,11/05/2016,Other Travel,Employer & Provider Services North East & Yorkshire,Agency Staff Member,SCLAIM_45593,22,Staff Expenses Claim
BIS,Skills Funding Agency,11/05/2016,Other Travel,Employer & Provider Services North East & Yorkshire,Agency Staff Member,SCLAIM_45594,15.6,Staff Expenses Claim
BIS,Skills Funding Agency,11/05/2016,Other Travel,Employer & Provider Services North East & Yorkshire,Agency Staff Member,SCLAIM_45596,24,Staff Expenses Claim
BIS,Skills Funding Agency,11/05/2016,Other Travel,Employer & Provider Services North East & Yorkshire,Agency Staff Member,SCLAIM_45626,46,Staff Expenses Claim
BIS,Skills Funding Agency,11/05/2016,Other Travel,Employer & Provider Services North West,Agency Staff Member,SCLAIM_45592,17.4,Staff Expenses Claim
BIS,Skills Funding Agency,11/05/2016,Other Travel,Employer & Provider Services North West,Agency Staff Member,SCLAIM_45608,57.6,Staff Expenses Claim
BIS,Skills Funding Agency,11/05/2016,Other Travel,Employer & Provider Services South East,Agency Staff Member,SCLAIM_45580,21.34,Staff Expenses Claim
BIS,Skills Funding Agency,11/05/2016,Other Travel,Employer & Provider Services South East,Agency Staff Member,SCLAIM_45605,3,Staff Expenses Claim
BIS,Skills Funding Agency,11/05/2016,Other Travel,Employer & Provider Services South East,Agency Staff Member,SCLAIM_45618,3.34,Staff Expenses Claim
BIS,Skills Funding Agency,11/05/2016,Other Travel,Employer & Provider Services South East,Agency Staff Member,SCLAIM_45619,3.34,Staff Expenses Claim
BIS,Skills Funding Agency,11/05/2016,Other Travel,Funding & Programmes - Provider Management & Intervention North,Agency Staff Member,SCLAIM_45627,17,Staff Expenses Claim
BIS,Skills Funding Agency,11/05/2016,Other Travel,Funding & Programmes - Provider Management & Intervention South,Agency Staff Member,SCLAIM_45589,6.5,Staff Expenses Claim
BIS,Skills Funding Agency,11/05/2016,Other Travel,Large Companies Unit,Agency Staff Member,SCLAIM_45613,99.7,Staff Expenses Claim
BIS,Skills Funding Agency,11/05/2016,Other Travel,Large Companies Unit,Agency Staff Member,SCLAIM_45614,88,Staff Expenses Claim
BIS,Skills Funding Agency,11/05/2016,Other Travel,Large Companies Unit,Agency Staff Member,SCLAIM_45615,28.8,Staff Expenses Claim
BIS,Skills Funding Agency,11/05/2016,Other Travel,Large Companies Unit,Agency Staff Member,SCLAIM_45616,57.2,Staff Expenses Claim
BIS,Skills Funding Agency,11/05/2016,Other Travel,National Careers & Learner Services,Agency Staff Member,SCLAIM_45588,28.9,Staff Expenses Claim
BIS,Skills Funding Agency,11/05/2016,Other Travel,National Careers & Learner Services,Agency Staff Member,SCLAIM_45604,15.7,Staff Expenses Claim
BIS,Skills Funding Agency,11/05/2016,Other Travel,National Careers & Learner Services,Agency Staff Member,SCLAIM_45623,33.6,Staff Expenses Claim
BIS,Skills Funding Agency,11/05/2016,Other Travel,National Careers & Learner Services,Agency Staff Member,SCLAIM_45631,23,Staff Expenses Claim
BIS,Skills Funding Agency,11/05/2016,Other Travel,Operations Finance - Executive Office,Agency Staff Member,SCLAIM_45576,3.7,Staff Expenses Claim
BIS,Skills Funding Agency,11/05/2016,Other Travel,Operations Finance - Executive Office,Agency Staff Member,SCLAIM_45582,3.3,Staff Expenses Claim
BIS,Skills Funding Agency,11/05/2016,Other Travel,Operations Finance - Executive Office,Agency Staff Member,SCLAIM_45602,4,Staff Expenses Claim
BIS,Skills Funding Agency,11/05/2016,Other Travel,Operations Finance - Executive Office,Agency Staff Member,SCLAIM_45622,50.5,Staff Expenses Claim
BIS,Skills Funding Agency,11/05/2016,Other Travel,Operations Finance - Executive Office,Agency Staff Member,SCLAIM_45634,21.7,Staff Expenses Claim
BIS,Skills Funding Agency,11/05/2016,Other Travel,Operations ICT - Information & Communication Technology - Technical,Agency Staff Member,SCLAIM_45577,12,Staff Expenses Claim
BIS,Skills Funding Agency,11/05/2016,Other Travel,Southern Division,Agency Staff Member,SCLAIM_45573,7.7,Staff Expenses Claim
BIS,Skills Funding Agency,11/05/2016,Petrol Car Mileage Passenger Supplement,Employer & Provider Services North West,Agency Staff Member,SCLAIM_45592,1.9,Staff Expenses Claim
BIS,Skills Funding Agency,11/05/2016,Petrol Car Mileage Passenger Supplement,National Careers & Learner Services,Agency Staff Member,SCLAIM_45588,5.3,Staff Expenses Claim
BIS,Skills Funding Agency,11/05/2016,Petrol Car Mileage Passenger Supplement,National Careers & Learner Services,Agency Staff Member,SCLAIM_45604,1.25,Staff Expenses Claim
BIS,Skills Funding Agency,11/05/2016,Petrol Car Mileage Passenger Supplement,Operations ICT - Information & Communication Technology - Technical,Agency Staff Member,SCLAIM_45577,14.6,Staff Expenses Claim
BIS,Skills Funding Agency,11/05/2016,Petrol Car Mileage,Apprenticeships & Delivery Services - Marketing,Agency Staff Member,SCLAIM_45586,23.4,Staff Expenses Claim
BIS,Skills Funding Agency,11/05/2016,Petrol Car Mileage,Apprenticeships & Delivery Services - Marketing,Agency Staff Member,SCLAIM_45599,190.8,Staff Expenses Claim
BIS,Skills Funding Agency,11/05/2016,Petrol Car Mileage,Central Delivery Service - European Social Fund - Audit Compliance,Agency Staff Member,SCLAIM_45598,127.8,Staff Expenses Claim
BIS,Skills Funding Agency,11/05/2016,Petrol Car Mileage,Central Delivery Service - European Social Fund - Audit Compliance,Agency Staff Member,SCLAIM_45617,257.4,Staff Expenses Claim
BIS,Skills Funding Agency,11/05/2016,Petrol Car Mileage,Central Delivery Service - European Social Fund - Audit Compliance,Agency Staff Member,SCLAIM_45630,148.5,Staff Expenses Claim
BIS,Skills Funding Agency,11/05/2016,Petrol Car Mileage,Chief Executive Office - Communications,Agency Staff Member,SCLAIM_45579,14.4,Staff Expenses Claim
BIS,Skills Funding Agency,11/05/2016,Petrol Car Mileage,Chief Executive Office - Executive Office,Agency Staff Member,SCLAIM_45584,162,Staff Expenses Claim
BIS,Skills Funding Agency,11/05/2016,Petrol Car Mileage,Employer & Provider Services London,Agency Staff Member,SCLAIM_45632,13.5,Staff Expenses Claim
BIS,Skills Funding Agency,11/05/2016,Petrol Car Mileage,Employer & Provider Services London,Agency Staff Member,SCLAIM_45633,41.4,Staff Expenses Claim
BIS,Skills Funding Agency,11/05/2016,Petrol Car Mileage,Employer & Provider Services North East & Yorkshire,Agency Staff Member,SCLAIM_45593,438.3,Staff Expenses Claim
BIS,Skills Funding Agency,11/05/2016,Petrol Car Mileage,Employer & Provider Services North East & Yorkshire,Agency Staff Member,SCLAIM_45594,64.8,Staff Expenses Claim
BIS,Skills Funding Agency,11/05/2016,Petrol Car Mileage,Employer & Provider Services North East & Yorkshire,Agency Staff Member,SCLAIM_45606,81.9,Staff Expenses Claim
BIS,Skills Funding Agency,11/05/2016,Petrol Car Mileage,Employer & Provider Services North East & Yorkshire,Agency Staff Member,SCLAIM_45626,57.15,Staff Expenses Claim
BIS,Skills Funding Agency,11/05/2016,Petrol Car Mileage,Employer & Provider Services North West,Agency Staff Member,SCLAIM_45592,99.9,Staff Expenses Claim
BIS,Skills Funding Agency,11/05/2016,Petrol Car Mileage,Employer & Provider Services North West,Agency Staff Member,SCLAIM_45608,171,Staff Expenses Claim
BIS,Skills Funding Agency,11/05/2016,Petrol Car Mileage,Employer & Provider Services South East,Agency Staff Member,SCLAIM_45605,58.5,Staff Expenses Claim
BIS,Skills Funding Agency,11/05/2016,Petrol Car Mileage,Employer & Provider Services South East,Agency Staff Member,SCLAIM_45618,39.6,Staff Expenses Claim
BIS,Skills Funding Agency,11/05/2016,Petrol Car Mileage,Employer & Provider Services South East,Agency Staff Member,SCLAIM_45619,40.5,Staff Expenses Claim
BIS,Skills Funding Agency,11/05/2016,Petrol Car Mileage,Funding & Programmes - Provider Management & Intervention North,Agency Staff Member,SCLAIM_45600,54,Staff Expenses Claim
BIS,Skills Funding Agency,11/05/2016,Petrol Car Mileage,Funding & Programmes - Provider Management & Intervention South,Agency Staff Member,SCLAIM_45610,43.2,Staff Expenses Claim
BIS,Skills Funding Agency,11/05/2016,Petrol Car Mileage,National Careers & Learner Services,Agency Staff Member,SCLAIM_45588,142.2,Staff Expenses Claim
BIS,Skills Funding Agency,11/05/2016,Petrol Car Mileage,National Careers & Learner Services,Agency Staff Member,SCLAIM_45604,26.55,Staff Expenses Claim
BIS,Skills Funding Agency,11/05/2016,Petrol Car Mileage,Operations Finance - Executive Office,Agency Staff Member,SCLAIM_45576,118.8,Staff Expenses Claim
BIS,Skills Funding Agency,11/05/2016,Petrol Car Mileage,Operations Finance - Executive Office,Agency Staff Member,SCLAIM_45590,222.3,Staff Expenses Claim
BIS,Skills Funding Agency,11/05/2016,Petrol Car Mileage,Operations Finance - Executive Office,Agency Staff Member,SCLAIM_45602,153,Staff Expenses Claim
BIS,Skills Funding Agency,11/05/2016,Petrol Car Mileage,Operations Finance - Executive Office,Agency Staff Member,SCLAIM_45634,37.8,Staff Expenses Claim
BIS,Skills Funding Agency,11/05/2016,Petrol Car Mileage,Operations ICT - Information & Communication Technology - Technical,Agency Staff Member,SCLAIM_45577,131.4,Staff Expenses Claim
BIS,Skills Funding Agency,11/05/2016,Photocopier Rental,Operations ICT - Business IT - Agency Services,XEROX FINANCE LTD,SPINVB_31229,"34,112.52",Purchase Invoice
BIS,Skills Funding Agency,11/05/2016,Professional Services,Operations Finance - Legal & Governance Services,IN�PLACE�OF�STRIFE,SPINVCHQ_576,"2,100.00",Purchase Invoice
BIS,Skills Funding Agency,11/05/2016,Rail Warrants & Tickets,Apprenticeships & Delivery Services - Marketing,Agency Staff Member,SCLAIM_45583,2.4,Staff Expenses Claim
BIS,Skills Funding Agency,11/05/2016,Rail Warrants & Tickets,Employer & Provider Services London,Agency Staff Member,SCLAIM_45632,18.9,Staff Expenses Claim
BIS,Skills Funding Agency,11/05/2016,Rail Warrants & Tickets,Employer & Provider Services London,Agency Staff Member,SCLAIM_45633,2.5,Staff Expenses Claim
BIS,Skills Funding Agency,11/05/2016,Rail Warrants & Tickets,Employer & Provider Services North West,Agency Staff Member,SCLAIM_45592,14.5,Staff Expenses Claim
BIS,Skills Funding Agency,11/05/2016,Rail Warrants & Tickets,Funding & Programmes - Provider Management & Intervention North,Agency Staff Member,SCLAIM_45600,18.5,Staff Expenses Claim
BIS,Skills Funding Agency,11/05/2016,Rail Warrants & Tickets,Large Companies Unit,Agency Staff Member,SCLAIM_45613,46.1,Staff Expenses Claim
BIS,Skills Funding Agency,11/05/2016,Rail Warrants & Tickets,Large Companies Unit,Agency Staff Member,SCLAIM_45614,57,Staff Expenses Claim
BIS,Skills Funding Agency,11/05/2016,Rail Warrants & Tickets,Large Companies Unit,Agency Staff Member,SCLAIM_45615,9.6,Staff Expenses Claim
BIS,Skills Funding Agency,11/05/2016,Rail Warrants & Tickets,Large Companies Unit,Agency Staff Member,SCLAIM_45616,139.9,Staff Expenses Claim
BIS,Skills Funding Agency,11/05/2016,Rail Warrants & Tickets,Operations Finance - Executive Office,Agency Staff Member,SCLAIM_45576,14.5,Staff Expenses Claim
BIS,Skills Funding Agency,11/05/2016,Rail Warrants & Tickets,Operations Finance - Executive Office,Agency Staff Member,SCLAIM_45602,20.9,Staff Expenses Claim
BIS,Skills Funding Agency,11/05/2016,Rail Warrants & Tickets,Operations Finance - Executive Office,Agency Staff Member,SCLAIM_45622,161.6,Staff Expenses Claim
BIS,Skills Funding Agency,11/05/2016,Self-Drive Car Hire,Central Delivery Service - European Social Fund - Audit Compliance,Agency Staff Member,SCLAIM_45597,87.25,Staff Expenses Claim
BIS,Skills Funding Agency,11/05/2016,Self-Drive Car Hire,Employer & Provider Services South East,Agency Staff Member,SCLAIM_45605,9.07,Staff Expenses Claim
BIS,Skills Funding Agency,11/05/2016,Self-Drive Car Hire,Funding & Programmes - Provider Management & Intervention South,Agency Staff Member,SCLAIM_45591,9.76,Staff Expenses Claim
BIS,Skills Funding Agency,11/05/2016,Self-Drive Car Hire,Funding & Programmes - Provider Management & Intervention South,Agency Staff Member,SCLAIM_45601,76.09,Staff Expenses Claim
BIS,Skills Funding Agency,11/05/2016,Self-Drive Car Hire,Funding & Programmes - Provider Management & Intervention South,Agency Staff Member,SCLAIM_45610,15.7,Staff Expenses Claim
BIS,Skills Funding Agency,11/05/2016,Self-Drive Car Hire,Operations Finance - Executive Office,Agency Staff Member,SCLAIM_45582,34.57,Staff Expenses Claim
BIS,Skills Funding Agency,11/05/2016,Self-Drive Car Hire,Southern Division,Agency Staff Member,SCLAIM_45573,51.2,Staff Expenses Claim
BIS,Skills Funding Agency,11/05/2016,Software Maintenance & Repair,Operations ICT - Business IT - Agency Services,CGI IT UK LIMITED,SPINVB_31264,"186,121.58",Purchase Invoice
BIS,Skills Funding Agency,11/05/2016,Software Maintenance & Repair,Operations ICT - Business IT - Citizen Services,HOTCOURSES DATA LTD,SPINVB_31263,"17,648.40",Purchase Invoice
BIS,Skills Funding Agency,11/05/2016,Subsistence,Apprenticeships & Delivery Services - Marketing,Agency Staff Member,SCLAIM_45583,35,Staff Expenses Claim
BIS,Skills Funding Agency,11/05/2016,Subsistence,Apprenticeships & Delivery Services - Marketing,Agency Staff Member,SCLAIM_45599,25,Staff Expenses Claim
BIS,Skills Funding Agency,11/05/2016,Subsistence,Central Delivery Service - European Social Fund - Audit Compliance,Agency Staff Member,SCLAIM_45597,95,Staff Expenses Claim
BIS,Skills Funding Agency,11/05/2016,Subsistence,Large Companies Unit,Agency Staff Member,SCLAIM_45612,150,Staff Expenses Claim
BIS,Skills Funding Agency,11/05/2016,Subsistence,Large Companies Unit,Agency Staff Member,SCLAIM_45613,120,Staff Expenses Claim
BIS,Skills Funding Agency,11/05/2016,Subsistence,Large Companies Unit,Agency Staff Member,SCLAIM_45614,185,Staff Expenses Claim
BIS,Skills Funding Agency,11/05/2016,Subsistence,Large Companies Unit,Agency Staff Member,SCLAIM_45616,25,Staff Expenses Claim
BIS,Skills Funding Agency,11/05/2016,Subsistence,National Careers & Learner Services,Agency Staff Member,SCLAIM_45604,10,Staff Expenses Claim
BIS,Skills Funding Agency,11/05/2016,Subsistence,National Careers & Learner Services,Agency Staff Member,SCLAIM_45623,150,Staff Expenses Claim
BIS,Skills Funding Agency,11/05/2016,Subsistence,Operations Finance - Executive Office,Agency Staff Member,SCLAIM_45576,50,Staff Expenses Claim
BIS,Skills Funding Agency,11/05/2016,Subsistence,Operations Finance - Executive Office,Agency Staff Member,SCLAIM_45582,100,Staff Expenses Claim
BIS,Skills Funding Agency,11/05/2016,Subsistence,Operations Finance - Executive Office,Agency Staff Member,SCLAIM_45629,40,Staff Expenses Claim
BIS,Skills Funding Agency,11/05/2016,Subsistence,Operations ICT - Information & Communication Technology - Digital,Agency Staff Member,SCLAIM_45628,92.53,Staff Expenses Claim
BIS,Skills Funding Agency,11/05/2016,Subsistence,Operations ICT - Information & Communication Technology - Technical,Agency Staff Member,SCLAIM_45577,25,Staff Expenses Claim
BIS,Skills Funding Agency,11/05/2016,Sundry Items,Accounting Services,WESTBURY STREET HOLDINGS,SPINVB_31372,0.01,Purchase Invoice
BIS,Skills Funding Agency,11/05/2016,Sundry Items,Large Companies Unit,Agency Staff Member,SCLAIM_45615,-94.5,Staff Expenses Claim
BIS,Skills Funding Agency,11/05/2016,Sundry Items,Large Companies Unit,Agency Staff Member,SCLAIM_45616,-162,Staff Expenses Claim
BIS,Skills Funding Agency,11/05/2016,Sundry Items,National Careers & Learner Services,Agency Staff Member,SCLAIM_45585,50,Staff Expenses Claim
BIS,Skills Funding Agency,11/05/2016,Sundry Items,National Careers & Learner Services,Agency Staff Member,SCLAIM_45588,6,Staff Expenses Claim
BIS,Skills Funding Agency,11/05/2016,Taxis,Employer & Provider Services North East & Yorkshire,Agency Staff Member,SCLAIM_45581,5.9,Staff Expenses Claim
BIS,Skills Funding Agency,11/05/2016,Taxis,Employer & Provider Services North East & Yorkshire,Agency Staff Member,SCLAIM_45626,24.6,Staff Expenses Claim
BIS,Skills Funding Agency,11/05/2016,Taxis,Large Companies Unit,Agency Staff Member,SCLAIM_45613,97,Staff Expenses Claim
BIS,Skills Funding Agency,11/05/2016,Taxis,National Careers & Learner Services,Agency Staff Member,SCLAIM_45585,36,Staff Expenses Claim
BIS,Skills Funding Agency,11/05/2016,Taxis,Operations Finance - Executive Office,Agency Staff Member,SCLAIM_45576,15.5,Staff Expenses Claim
BIS,Skills Funding Agency,11/05/2016,Taxis,Operations Finance - Executive Office,Agency Staff Member,SCLAIM_45629,17.3,Staff Expenses Claim
BIS,Skills Funding Agency,11/05/2016,Temporary Staff,Operations ICT - Information & Communication Technology - Technical,HAYS SPECIALIST RECRUITMENT LTD,IPINVELECT3_2052,"1,860.00",Purchase Invoice
BIS,Skills Funding Agency,11/05/2016,Temporary Staff,Operations ICT - Projects,SMART SOURCING PLC,SPINVB_31355,"7,680.00",Purchase Invoice
BIS,Skills Funding Agency,11/05/2016,Temporary Staff,Operations ICT - Technical Design Authority,NCC GROUP SECURITY SERVICES LTD,SPINVB_31223,"25,548.34",Purchase Invoice
BIS,Skills Funding Agency,13/05/2016,16-18 Apprenticeship Grant for Employers - Centralised Contract Management,Main Funding,ANDREW COLLINGE TRAINING LTD,AGEC_1035,"-73,500.00",Programme System File
BIS,Skills Funding Agency,13/05/2016,16-18 Apprenticeship Grant for Employers - Centralised Contract Management,Main Funding,ANDREW COLLINGE TRAINING LTD,AGER_3179,"73,500.00",Programme System File
BIS,Skills Funding Agency,13/05/2016,16-18 Apprenticeship Grant for Employers - Centralised Contract Management,Main Funding,AVANT PARTNERSHIP LTD,AGER_2992,"-1,500.00",Programme System File
BIS,Skills Funding Agency,13/05/2016,16-18 Apprenticeship Grant for Employers - Centralised Contract Management,Main Funding,BARNET AND SOUTHGATE COLLEGE,AGER_3333,"-1,500.00",Programme System File
BIS,Skills Funding Agency,13/05/2016,16-18 Apprenticeship Grant for Employers - Centralised Contract Management,Main Funding,BESTLAND SOLUTIONS LTD,AGEC_945,"-4,500.00",Programme System File
BIS,Skills Funding Agency,13/05/2016,16-18 Apprenticeship Grant for Employers - Centralised Contract Management,Main Funding,BESTLAND SOLUTIONS LTD,AGER_2976,"4,500.00",Programme System File
BIS,Skills Funding Agency,13/05/2016,16-18 Apprenticeship Grant for Employers - Centralised Contract Management,Main Funding,BOSTON COLLEGE,AGEC_1314,"-10,500.00",Programme System File
BIS,Skills Funding Agency,13/05/2016,16-18 Apprenticeship Grant for Employers - Centralised Contract Management,Main Funding,BOSTON COLLEGE,AGER_3688,"10,500.00",Programme System File
BIS,Skills Funding Agency,13/05/2016,16-18 Apprenticeship Grant for Employers - Centralised Contract Management,Main Funding,BOURNEMOUTH & POOLE COLLEGE,AGEC_1339,"-81,000.00",Programme System File
BIS,Skills Funding Agency,13/05/2016,16-18 Apprenticeship Grant for Employers - Centralised Contract Management,Main Funding,BOURNEMOUTH & POOLE COLLEGE,AGER_3731,"81,000.00",Programme System File
BIS,Skills Funding Agency,13/05/2016,16-18 Apprenticeship Grant for Employers - Centralised Contract Management,Main Funding,BRISTOL CITY COUNCIL,AGEC_984,"-34,500.00",Programme System File
BIS,Skills Funding Agency,13/05/2016,16-18 Apprenticeship Grant for Employers - Centralised Contract Management,Main Funding,BRISTOL CITY COUNCIL,AGER_3067,"34,500.00",Programme System File
BIS,Skills Funding Agency,13/05/2016,16-18 Apprenticeship Grant for Employers - Centralised Contract Management,Main Funding,CALDERDALE COLLEGE,AGER_3126,"-3,000.00",Programme System File
BIS,Skills Funding Agency,13/05/2016,16-18 Apprenticeship Grant for Employers - Centralised Contract Management,Main Funding,CAPITAL ENGINEERING GROUP HOLDINGS LTD,AGER_2986,"-1,500.00",Programme System File
BIS,Skills Funding Agency,13/05/2016,16-18 Apprenticeship Grant for Employers - Centralised Contract Management,Main Funding,CARLISLE COLLEGE,AGEC_1022,"-3,000.00",Programme System File
BIS,Skills Funding Agency,13/05/2016,16-18 Apprenticeship Grant for Employers - Centralised Contract Management,Main Funding,CARLISLE COLLEGE,AGER_3141,"3,000.00",Programme System File
BIS,Skills Funding Agency,13/05/2016,16-18 Apprenticeship Grant for Employers - Centralised Contract Management,Main Funding,CHICHESTER COLLEGE,AGER_3692,"3,000.00",Programme System File
BIS,Skills Funding Agency,13/05/2016,16-18 Apprenticeship Grant for Employers - Centralised Contract Management,Main Funding,COLLEGE OF WEST ANGLIA,AGEC_1317,"-1,500.00",Programme System File
BIS,Skills Funding Agency,13/05/2016,16-18 Apprenticeship Grant for Employers - Centralised Contract Management,Main Funding,COLLEGE OF WEST ANGLIA,AGER_3685,"7,500.00",Programme System File
BIS,Skills Funding Agency,13/05/2016,16-18 Apprenticeship Grant for Employers - Centralised Contract Management,Main Funding,CORNWALL COLLEGE,AGEC_1036,"-12,000.00",Programme System File
BIS,Skills Funding Agency,13/05/2016,16-18 Apprenticeship Grant for Employers - Centralised Contract Management,Main Funding,CORNWALL COLLEGE,AGER_3173,"25,500.00",Programme System File
BIS,Skills Funding Agency,13/05/2016,16-18 Apprenticeship Grant for Employers - Centralised Contract Management,Main Funding,COVENTRY & WARWICKSHIRE CHAMBERS OF COMMERCE TRAINING LIMITED,AGEC_1020,"-42,000.00",Programme System File
BIS,Skills Funding Agency,13/05/2016,16-18 Apprenticeship Grant for Employers - Centralised Contract Management,Main Funding,COVENTRY & WARWICKSHIRE CHAMBERS OF COMMERCE TRAINING LIMITED,AGER_3138,"42,000.00",Programme System File
BIS,Skills Funding Agency,13/05/2016,16-18 Apprenticeship Grant for Employers - Centralised Contract Management,Main Funding,DERBY COLLEGE,AGEC_1048,"-36,000.00",Programme System File
BIS,Skills Funding Agency,13/05/2016,16-18 Apprenticeship Grant for Employers - Centralised Contract Management,Main Funding,DERBY COLLEGE,AGER_3191,"36,000.00",Programme System File
BIS,Skills Funding Agency,13/05/2016,16-18 Apprenticeship Grant for Employers - Centralised Contract Management,Main Funding,EALING HAMMERSMITH & WEST LONDON COLLEGE,AGEC_988,"-3,000.00",Programme System File
BIS,Skills Funding Agency,13/05/2016,16-18 Apprenticeship Grant for Employers - Centralised Contract Management,Main Funding,EALING HAMMERSMITH & WEST LONDON COLLEGE,AGER_3071,"3,000.00",Programme System File
BIS,Skills Funding Agency,13/05/2016,16-18 Apprenticeship Grant for Employers - Centralised Contract Management,Main Funding,EAST DURHAM COLLEGE,AGEC_1056,"-7,500.00",Programme System File
BIS,Skills Funding Agency,13/05/2016,16-18 Apprenticeship Grant for Employers - Centralised Contract Management,Main Funding,EAST DURHAM COLLEGE,AGER_3202,"7,500.00",Programme System File
BIS,Skills Funding Agency,13/05/2016,16-18 Apprenticeship Grant for Employers - Centralised Contract Management,Main Funding,EAST KENT COLLEGE,AGEC_1264,"-51,000.00",Programme System File
BIS,Skills Funding Agency,13/05/2016,16-18 Apprenticeship Grant for Employers - Centralised Contract Management,Main Funding,EAST KENT COLLEGE,AGER_3597,"51,000.00",Programme System File
BIS,Skills Funding Agency,13/05/2016,16-18 Apprenticeship Grant for Employers - Centralised Contract Management,Main Funding,EDUCATION & TRAINING SKILLS LTD,AGEC_1066,"-1,500.00",Programme System File
BIS,Skills Funding Agency,13/05/2016,16-18 Apprenticeship Grant for Employers - Centralised Contract Management,Main Funding,EDUCATION & TRAINING SKILLS LTD,AGER_3214,"1,500.00",Programme System File
BIS,Skills Funding Agency,13/05/2016,16-18 Apprenticeship Grant for Employers - Centralised Contract Management,Main Funding,FRANCESCO GROUP HOLDINGS LTD,AGEC_1075,"-1,500.00",Programme System File
BIS,Skills Funding Agency,13/05/2016,16-18 Apprenticeship Grant for Employers - Centralised Contract Management,Main Funding,FRANCESCO GROUP HOLDINGS LTD,AGER_3232,"1,500.00",Programme System File
BIS,Skills Funding Agency,13/05/2016,16-18 Apprenticeship Grant for Employers - Centralised Contract Management,Main Funding,GATESHEAD COLLEGE,AGEC_1078,"-13,500.00",Programme System File
BIS,Skills Funding Agency,13/05/2016,16-18 Apprenticeship Grant for Employers - Centralised Contract Management,Main Funding,GATESHEAD COLLEGE,AGER_3236,"13,500.00",Programme System File
BIS,Skills Funding Agency,13/05/2016,16-18 Apprenticeship Grant for Employers - Centralised Contract Management,Main Funding,GRIMSBY INSTITUTE OF FURTHER & HIGHER EDUCATION,AGEC_1326,"-70,500.00",Programme System File
BIS,Skills Funding Agency,13/05/2016,16-18 Apprenticeship Grant for Employers - Centralised Contract Management,Main Funding,GRIMSBY INSTITUTE OF FURTHER & HIGHER EDUCATION,AGER_3699,"70,500.00",Programme System File
BIS,Skills Funding Agency,13/05/2016,16-18 Apprenticeship Grant for Employers - Centralised Contract Management,Main Funding,HILLINGDON TRAINING LTD,AGEC_1102,"-13,500.00",Programme System File
BIS,Skills Funding Agency,13/05/2016,16-18 Apprenticeship Grant for Employers - Centralised Contract Management,Main Funding,HILLINGDON TRAINING LTD,AGER_3284,"13,500.00",Programme System File
BIS,Skills Funding Agency,13/05/2016,16-18 Apprenticeship Grant for Employers - Centralised Contract Management,Main Funding,HUDSON & HUGHES TRAINING LTD,AGEC_990,"-1,500.00",Programme System File
BIS,Skills Funding Agency,13/05/2016,16-18 Apprenticeship Grant for Employers - Centralised Contract Management,Main Funding,HUDSON & HUGHES TRAINING LTD,AGER_3074,"1,500.00",Programme System File
BIS,Skills Funding Agency,13/05/2016,16-18 Apprenticeship Grant for Employers - Centralised Contract Management,Main Funding,ICON VOCATIONAL TRAINING LTD,AGEC_1117,"-13,500.00",Programme System File
BIS,Skills Funding Agency,13/05/2016,16-18 Apprenticeship Grant for Employers - Centralised Contract Management,Main Funding,ICON VOCATIONAL TRAINING LTD,AGER_3306,"13,500.00",Programme System File
BIS,Skills Funding Agency,13/05/2016,16-18 Apprenticeship Grant for Employers - Centralised Contract Management,Main Funding,IXION GROUP CONTRACTS LTD,AGER_3036,"3,000.00",Programme System File
BIS,Skills Funding Agency,13/05/2016,16-18 Apprenticeship Grant for Employers - Centralised Contract Management,Main Funding,JGA LTD,AGEC_1268,"-3,000.00",Programme System File
BIS,Skills Funding Agency,13/05/2016,16-18 Apprenticeship Grant for Employers - Centralised Contract Management,Main Funding,JGA LTD,AGER_3601,"3,000.00",Programme System File
BIS,Skills Funding Agency,13/05/2016,16-18 Apprenticeship Grant for Employers - Centralised Contract Management,Main Funding,JOHN LAING TRAINING LTD,AGER_3312,"-1,500.00",Programme System File
BIS,Skills Funding Agency,13/05/2016,16-18 Apprenticeship Grant for Employers - Centralised Contract Management,Main Funding,JOHN LEGGOTT SIXTH FORM COLLEGE,AGEC_993,"-1,500.00",Programme System File
BIS,Skills Funding Agency,13/05/2016,16-18 Apprenticeship Grant for Employers - Centralised Contract Management,Main Funding,JOHN LEGGOTT SIXTH FORM COLLEGE,AGER_3079,"1,500.00",Programme System File
BIS,Skills Funding Agency,13/05/2016,16-18 Apprenticeship Grant for Employers - Centralised Contract Management,Main Funding,KINGSTON MAURWARD COLLEGE,AGEC_1126,"-13,500.00",Programme System File
BIS,Skills Funding Agency,13/05/2016,16-18 Apprenticeship Grant for Employers - Centralised Contract Management,Main Funding,KINGSTON MAURWARD COLLEGE,AGER_3329,"13,500.00",Programme System File
BIS,Skills Funding Agency,13/05/2016,16-18 Apprenticeship Grant for Employers - Centralised Contract Management,Main Funding,KINGSTON UPON HULL CITY COUNCIL,AGEC_1109,"-25,500.00",Programme System File
BIS,Skills Funding Agency,13/05/2016,16-18 Apprenticeship Grant for Employers - Centralised Contract Management,Main Funding,KINGSTON UPON HULL CITY COUNCIL,AGER_3295,"25,500.00",Programme System File
BIS,Skills Funding Agency,13/05/2016,16-18 Apprenticeship Grant for Employers - Centralised Contract Management,Main Funding,LAMBETH COLLEGE AT CLAPHAM CENTRE,AGEC_1135,"-19,500.00",Programme System File
BIS,Skills Funding Agency,13/05/2016,16-18 Apprenticeship Grant for Employers - Centralised Contract Management,Main Funding,LAMBETH COLLEGE AT CLAPHAM CENTRE,AGER_3346,"19,500.00",Programme System File
BIS,Skills Funding Agency,13/05/2016,16-18 Apprenticeship Grant for Employers - Centralised Contract Management,Main Funding,LAWN TENNIS ASSOCIATION LTD,AGEC_953,"-1,500.00",Programme System File
BIS,Skills Funding Agency,13/05/2016,16-18 Apprenticeship Grant for Employers - Centralised Contract Management,Main Funding,LAWN TENNIS ASSOCIATION LTD,AGER_2995,"1,500.00",Programme System File
BIS,Skills Funding Agency,13/05/2016,16-18 Apprenticeship Grant for Employers - Centralised Contract Management,Main Funding,LEARNDIRECT LTD,AGER_3351,"27,000.00",Programme System File
BIS,Skills Funding Agency,13/05/2016,16-18 Apprenticeship Grant for Employers - Centralised Contract Management,Main Funding,LEARNING PARTNERSHIP FOR CORNWALL AND THE ISLES OF SCILLY LIMITED,AGER_3605,"6,000.00",Programme System File
BIS,Skills Funding Agency,13/05/2016,16-18 Apprenticeship Grant for Employers - Centralised Contract Management,Main Funding,LEICESTER COLLEGE CO FREEMENS PARK CAMPUS,AGEC_1139,"-45,000.00",Programme System File
BIS,Skills Funding Agency,13/05/2016,16-18 Apprenticeship Grant for Employers - Centralised Contract Management,Main Funding,LEICESTER COLLEGE CO FREEMENS PARK CAMPUS,AGER_3354,"45,000.00",Programme System File
BIS,Skills Funding Agency,13/05/2016,16-18 Apprenticeship Grant for Employers - Centralised Contract Management,Main Funding,LIFETIME TRAINING GROUP LTD,AGEC_1141,"-12,000.00",Programme System File
BIS,Skills Funding Agency,13/05/2016,16-18 Apprenticeship Grant for Employers - Centralised Contract Management,Main Funding,LIFETIME TRAINING GROUP LTD,AGER_3357,"12,000.00",Programme System File
BIS,Skills Funding Agency,13/05/2016,16-18 Apprenticeship Grant for Employers - Centralised Contract Management,Main Funding,LIGA (UK) LTD,AGEC_980,"-27,000.00",Programme System File
BIS,Skills Funding Agency,13/05/2016,16-18 Apprenticeship Grant for Employers - Centralised Contract Management,Main Funding,LIGA (UK) LTD,AGER_3053,"27,000.00",Programme System File
BIS,Skills Funding Agency,13/05/2016,16-18 Apprenticeship Grant for Employers - Centralised Contract Management,Main Funding,LONDON BOROUGH OF WALTHAM FOREST,AGEC_992,"-4,500.00",Programme System File
BIS,Skills Funding Agency,13/05/2016,16-18 Apprenticeship Grant for Employers - Centralised Contract Management,Main Funding,LONDON BOROUGH OF WALTHAM FOREST,AGER_3077,"4,500.00",Programme System File
BIS,Skills Funding Agency,13/05/2016,16-18 Apprenticeship Grant for Employers - Centralised Contract Management,Main Funding,LONDON COLLEGE OF BEAUTY THERAPY LTD,AGEC_1149,"-3,000.00",Programme System File
BIS,Skills Funding Agency,13/05/2016,16-18 Apprenticeship Grant for Employers - Centralised Contract Management,Main Funding,LONDON COLLEGE OF BEAUTY THERAPY LTD,AGER_3369,"3,000.00",Programme System File
BIS,Skills Funding Agency,13/05/2016,16-18 Apprenticeship Grant for Employers - Centralised Contract Management,Main Funding,MANCHESTER COLLEGE,AGER_2993,"1,500.00",Programme System File
BIS,Skills Funding Agency,13/05/2016,16-18 Apprenticeship Grant for Employers - Centralised Contract Management,Main Funding,MARDELL ASSOCIATES LTD,AGEC_1215,"-6,000.00",Programme System File
BIS,Skills Funding Agency,13/05/2016,16-18 Apprenticeship Grant for Employers - Centralised Contract Management,Main Funding,MARDELL ASSOCIATES LTD,AGER_3519,"6,000.00",Programme System File
BIS,Skills Funding Agency,13/05/2016,16-18 Apprenticeship Grant for Employers - Centralised Contract Management,Main Funding,MARITIME & ENGINEERING COLLEGE NORTH WEST,AGER_3339,"1,500.00",Programme System File
BIS,Skills Funding Agency,13/05/2016,16-18 Apprenticeship Grant for Employers - Centralised Contract Management,Main Funding,MATRIX TRAINING & DEVELOPMENT LTD,AGEC_1151,"-3,000.00",Programme System File
BIS,Skills Funding Agency,13/05/2016,16-18 Apprenticeship Grant for Employers - Centralised Contract Management,Main Funding,MATRIX TRAINING & DEVELOPMENT LTD,AGER_3373,"3,000.00",Programme System File
BIS,Skills Funding Agency,13/05/2016,16-18 Apprenticeship Grant for Employers - Centralised Contract Management,Main Funding,MEADOWHALL TRAINING LIMITED,AGER_3728,"-1,500.00",Programme System File
BIS,Skills Funding Agency,13/05/2016,16-18 Apprenticeship Grant for Employers - Centralised Contract Management,Main Funding,MIDLAND GROUP TRAINING SERVICES LTD,AGEC_1156,"-1,500.00",Programme System File
BIS,Skills Funding Agency,13/05/2016,16-18 Apprenticeship Grant for Employers - Centralised Contract Management,Main Funding,MIDLAND GROUP TRAINING SERVICES LTD,AGER_3385,"1,500.00",Programme System File
BIS,Skills Funding Agency,13/05/2016,16-18 Apprenticeship Grant for Employers - Centralised Contract Management,Main Funding,NACRO,AGEC_1158,"-3,000.00",Programme System File
BIS,Skills Funding Agency,13/05/2016,16-18 Apprenticeship Grant for Employers - Centralised Contract Management,Main Funding,NACRO,AGER_3391,3000,Programme System File
BIS,Skills Funding Agency,13/05/2016,16-18 Apprenticeship Grant for Employers - Centralised Contract Management,Main Funding,NELSON & COLNE COLLEGE,AGEC_1160,"-24,000.00",Programme System File
BIS,Skills Funding Agency,13/05/2016,16-18 Apprenticeship Grant for Employers - Centralised Contract Management,Main Funding,NELSON & COLNE COLLEGE,AGER_3402,"24,000.00",Programme System File
BIS,Skills Funding Agency,13/05/2016,16-18 Apprenticeship Grant for Employers - Centralised Contract Management,Main Funding,NEWCASTLE COLLEGE,AGEC_1000,"-1,500.00",Programme System File
BIS,Skills Funding Agency,13/05/2016,16-18 Apprenticeship Grant for Employers - Centralised Contract Management,Main Funding,NEWCASTLE COLLEGE,AGEC_996,"-13,500.00",Programme System File
BIS,Skills Funding Agency,13/05/2016,16-18 Apprenticeship Grant for Employers - Centralised Contract Management,Main Funding,NEWCASTLE COLLEGE,AGEC_998,"-43,500.00",Programme System File
BIS,Skills Funding Agency,13/05/2016,16-18 Apprenticeship Grant for Employers - Centralised Contract Management,Main Funding,NEWCASTLE COLLEGE,AGER_3091,"13,500.00",Programme System File
BIS,Skills Funding Agency,13/05/2016,16-18 Apprenticeship Grant for Employers - Centralised Contract Management,Main Funding,NEWCASTLE COLLEGE,AGER_3093,"43,500.00",Programme System File
BIS,Skills Funding Agency,13/05/2016,16-18 Apprenticeship Grant for Employers - Centralised Contract Management,Main Funding,NEWCASTLE COLLEGE,AGER_3095,"3,000.00",Programme System File
BIS,Skills Funding Agency,13/05/2016,16-18 Apprenticeship Grant for Employers - Centralised Contract Management,Main Funding,NEWHAM COLLEGE OF HIGHER EDUCATION,AGEC_1168,"-3,000.00",Programme System File
BIS,Skills Funding Agency,13/05/2016,16-18 Apprenticeship Grant for Employers - Centralised Contract Management,Main Funding,NEWHAM COLLEGE OF HIGHER EDUCATION,AGER_3412,"3,000.00",Programme System File
BIS,Skills Funding Agency,13/05/2016,16-18 Apprenticeship Grant for Employers - Centralised Contract Management,Main Funding,NHTA LTD,AGEC_1167,"-24,000.00",Programme System File
BIS,Skills Funding Agency,13/05/2016,16-18 Apprenticeship Grant for Employers - Centralised Contract Management,Main Funding,NHTA LTD,AGER_3411,"24,000.00",Programme System File
BIS,Skills Funding Agency,13/05/2016,16-18 Apprenticeship Grant for Employers - Centralised Contract Management,Main Funding,NORTH DEVON COLLEGE,AGER_3416,"6,000.00",Programme System File
BIS,Skills Funding Agency,13/05/2016,16-18 Apprenticeship Grant for Employers - Centralised Contract Management,Main Funding,"NORTH EAST CHAMBER OF COMMERCE, TRADE AND INDUSTRY",AGER_3396,"-3,000.00",Programme System File
BIS,Skills Funding Agency,13/05/2016,16-18 Apprenticeship Grant for Employers - Centralised Contract Management,Main Funding,NORTH LANCS TRAINING GROUP LTD,AGER_3428,"3,000.00",Programme System File
BIS,Skills Funding Agency,13/05/2016,16-18 Apprenticeship Grant for Employers - Centralised Contract Management,Main Funding,NORTH LIVERPOOL REGENERATION COMPANY LTD,AGEC_1003,"-1,500.00",Programme System File
BIS,Skills Funding Agency,13/05/2016,16-18 Apprenticeship Grant for Employers - Centralised Contract Management,Main Funding,NORTH LIVERPOOL REGENERATION COMPANY LTD,AGER_3100,"1,500.00",Programme System File
BIS,Skills Funding Agency,13/05/2016,16-18 Apprenticeship Grant for Employers - Centralised Contract Management,Main Funding,NORTHAMPTONSHIRE INDUSTRIAL TRAINING ASSOCIATION LTD,AGEC_1169,"-13,500.00",Programme System File
BIS,Skills Funding Agency,13/05/2016,16-18 Apprenticeship Grant for Employers - Centralised Contract Management,Main Funding,NORTHAMPTONSHIRE INDUSTRIAL TRAINING ASSOCIATION LTD,AGER_3413,"13,500.00",Programme System File
BIS,Skills Funding Agency,13/05/2016,16-18 Apprenticeship Grant for Employers - Centralised Contract Management,Main Funding,PERA TRAINING LTD,AGEC_977,"-1,500.00",Programme System File
BIS,Skills Funding Agency,13/05/2016,16-18 Apprenticeship Grant for Employers - Centralised Contract Management,Main Funding,PERA TRAINING LTD,AGER_3050,"1,500.00",Programme System File
BIS,Skills Funding Agency,13/05/2016,16-18 Apprenticeship Grant for Employers - Centralised Contract Management,Main Funding,QA LIMITED,AGEC_1115,"-46,500.00",Programme System File
BIS,Skills Funding Agency,13/05/2016,16-18 Apprenticeship Grant for Employers - Centralised Contract Management,Main Funding,QA LIMITED,AGER_3303,"46,500.00",Programme System File
BIS,Skills Funding Agency,13/05/2016,16-18 Apprenticeship Grant for Employers - Centralised Contract Management,Main Funding,RESOURCES N E LTD,AGEC_957,"-6,000.00",Programme System File
BIS,Skills Funding Agency,13/05/2016,16-18 Apprenticeship Grant for Employers - Centralised Contract Management,Main Funding,RESOURCES N E LTD,AGER_3002,"6,000.00",Programme System File
BIS,Skills Funding Agency,13/05/2016,16-18 Apprenticeship Grant for Employers - Centralised Contract Management,Main Funding,ROTHERHAM COLLEGE OF ARTS & TECHNOLOGY,AGEC_1199,"-7,500.00",Programme System File
BIS,Skills Funding Agency,13/05/2016,16-18 Apprenticeship Grant for Employers - Centralised Contract Management,Main Funding,ROTHERHAM COLLEGE OF ARTS & TECHNOLOGY,AGER_3490,"7,500.00",Programme System File
BIS,Skills Funding Agency,13/05/2016,16-18 Apprenticeship Grant for Employers - Centralised Contract Management,Main Funding,SANDWELL TRAINING ASSOCIATION LTD,AGEC_1203,"-10,500.00",Programme System File
BIS,Skills Funding Agency,13/05/2016,16-18 Apprenticeship Grant for Employers - Centralised Contract Management,Main Funding,SANDWELL TRAINING ASSOCIATION LTD,AGER_3499,"10,500.00",Programme System File
BIS,Skills Funding Agency,13/05/2016,16-18 Apprenticeship Grant for Employers - Centralised Contract Management,Main Funding,SERCO LTD,AGEC_1209,"-3,000.00",Programme System File
BIS,Skills Funding Agency,13/05/2016,16-18 Apprenticeship Grant for Employers - Centralised Contract Management,Main Funding,SERCO LTD,AGER_3511,"3,000.00",Programme System File
BIS,Skills Funding Agency,13/05/2016,16-18 Apprenticeship Grant for Employers - Centralised Contract Management,Main Funding,SKILLS FOR SECURITY LTD,AGEC_1341,"-13,500.00",Programme System File
BIS,Skills Funding Agency,13/05/2016,16-18 Apprenticeship Grant for Employers - Centralised Contract Management,Main Funding,SKILLS FOR SECURITY LTD,AGER_3726,"13,500.00",Programme System File
BIS,Skills Funding Agency,13/05/2016,16-18 Apprenticeship Grant for Employers - Centralised Contract Management,Main Funding,SOUTH DOWNS COLLEGE,AGEC_1226,-19500,Programme System File
BIS,Skills Funding Agency,13/05/2016,16-18 Apprenticeship Grant for Employers - Centralised Contract Management,Main Funding,SOUTH DOWNS COLLEGE,AGER_3533,"19,500.00",Programme System File
BIS,Skills Funding Agency,13/05/2016,16-18 Apprenticeship Grant for Employers - Centralised Contract Management,Main Funding,SOUTH LEICESTERSHIRE COLLEGE,AGEC_1234,"-12,000.00",Programme System File
BIS,Skills Funding Agency,13/05/2016,16-18 Apprenticeship Grant for Employers - Centralised Contract Management,Main Funding,SOUTH LEICESTERSHIRE COLLEGE,AGER_3543,"12,000.00",Programme System File
BIS,Skills Funding Agency,13/05/2016,16-18 Apprenticeship Grant for Employers - Centralised Contract Management,Main Funding,SOUTH TYNESIDE COUNCIL,AGER_2778,"1,500.00",Programme System File
BIS,Skills Funding Agency,13/05/2016,16-18 Apprenticeship Grant for Employers - Centralised Contract Management,Main Funding,SPAN TRAINING & DEVELOPMENT LTD,AGEC_1336,"-22,500.00",Programme System File
BIS,Skills Funding Agency,13/05/2016,16-18 Apprenticeship Grant for Employers - Centralised Contract Management,Main Funding,SPAN TRAINING & DEVELOPMENT LTD,AGER_3716,"22,500.00",Programme System File
BIS,Skills Funding Agency,13/05/2016,16-18 Apprenticeship Grant for Employers - Centralised Contract Management,Main Funding,STOKE ON TRENT COLLEGE,AGEC_1248,"-10,500.00",Programme System File
BIS,Skills Funding Agency,13/05/2016,16-18 Apprenticeship Grant for Employers - Centralised Contract Management,Main Funding,STOKE ON TRENT COLLEGE,AGER_3568,"10,500.00",Programme System File
BIS,Skills Funding Agency,13/05/2016,16-18 Apprenticeship Grant for Employers - Centralised Contract Management,Main Funding,TDR TRAINING LTD,AGEC_1257,"-10,500.00",Programme System File
BIS,Skills Funding Agency,13/05/2016,16-18 Apprenticeship Grant for Employers - Centralised Contract Management,Main Funding,TDR TRAINING LTD,AGER_3586,"10,500.00",Programme System File
BIS,Skills Funding Agency,13/05/2016,16-18 Apprenticeship Grant for Employers - Centralised Contract Management,Main Funding,TEAM WEARSIDE LTD,AGEC_1259,"-1,500.00",Programme System File
BIS,Skills Funding Agency,13/05/2016,16-18 Apprenticeship Grant for Employers - Centralised Contract Management,Main Funding,TEAM WEARSIDE LTD,AGER_3592,"1,500.00",Programme System File
BIS,Skills Funding Agency,13/05/2016,16-18 Apprenticeship Grant for Employers - Centralised Contract Management,Main Funding,THELIGHTBULB LTD,AGER_3359,"-3,000.00",Programme System File
BIS,Skills Funding Agency,13/05/2016,16-18 Apprenticeship Grant for Employers - Centralised Contract Management,Main Funding,UK TRAINING & DEVELOPMENT LTD,AGEC_1276,"-1,500.00",Programme System File
BIS,Skills Funding Agency,13/05/2016,16-18 Apprenticeship Grant for Employers - Centralised Contract Management,Main Funding,UK TRAINING & DEVELOPMENT LTD,AGER_3617,"1,500.00",Programme System File
BIS,Skills Funding Agency,13/05/2016,16-18 Apprenticeship Grant for Employers - Centralised Contract Management,Main Funding,UNIVERSITY COLLEGE BIRMINGHAM,AGEC_1205,"-3,000.00",Programme System File
BIS,Skills Funding Agency,13/05/2016,16-18 Apprenticeship Grant for Employers - Centralised Contract Management,Main Funding,UNIVERSITY COLLEGE BIRMINGHAM,AGER_3509,"3,000.00",Programme System File
BIS,Skills Funding Agency,13/05/2016,16-18 Apprenticeship Grant for Employers - Centralised Contract Management,Main Funding,UNIVERSITY OF SHEFFIELD,AGEC_1002,"-1,500.00",Programme System File
BIS,Skills Funding Agency,13/05/2016,16-18 Apprenticeship Grant for Employers - Centralised Contract Management,Main Funding,UNIVERSITY OF SHEFFIELD,AGER_3099,"1,500.00",Programme System File
BIS,Skills Funding Agency,13/05/2016,16-18 Apprenticeship Grant for Employers - Centralised Contract Management,Main Funding,WAKEFIELD CITY COUNCIL,AGEC_991,"-3,000.00",Programme System File
BIS,Skills Funding Agency,13/05/2016,16-18 Apprenticeship Grant for Employers - Centralised Contract Management,Main Funding,WAKEFIELD CITY COUNCIL,AGER_3075,"3,000.00",Programme System File
BIS,Skills Funding Agency,13/05/2016,16-18 Apprenticeship Grant for Employers - Centralised Contract Management,Main Funding,WALSALL COLLEGE CO ST PAULS STREET CAMPUS,AGEC_1282,"-40,500.00",Programme System File
BIS,Skills Funding Agency,13/05/2016,16-18 Apprenticeship Grant for Employers - Centralised Contract Management,Main Funding,WALSALL COLLEGE CO ST PAULS STREET CAMPUS,AGER_3633,"40,500.00",Programme System File
BIS,Skills Funding Agency,13/05/2016,16-18 Apprenticeship Grant for Employers - Centralised Contract Management,Main Funding,WALTHAM FOREST COLLEGE,AGEC_1285,"-36,000.00",Programme System File
BIS,Skills Funding Agency,13/05/2016,16-18 Apprenticeship Grant for Employers - Centralised Contract Management,Main Funding,WALTHAM FOREST COLLEGE,AGER_3638,"36,000.00",Programme System File
BIS,Skills Funding Agency,13/05/2016,16-18 Apprenticeship Grant for Employers - Centralised Contract Management,Main Funding,WAVERLEY BOROUGH COUNCIL,AGER_3710,"-1,500.00",Programme System File
BIS,Skills Funding Agency,13/05/2016,16-18 Apprenticeship Grant for Employers - Centralised Contract Management,Main Funding,WEST CHESHIRE COLLEGE,AGEC_1293,"-6,000.00",Programme System File
BIS,Skills Funding Agency,13/05/2016,16-18 Apprenticeship Grant for Employers - Centralised Contract Management,Main Funding,WEST CHESHIRE COLLEGE,AGER_3649,"10,500.00",Programme System File
BIS,Skills Funding Agency,13/05/2016,16-18 Apprenticeship Grant for Employers - Centralised Contract Management,Main Funding,WEST NOTTINGHAMSHIRE COLLEGE,AGEC_1299,"-121,500.00",Programme System File
BIS,Skills Funding Agency,13/05/2016,16-18 Apprenticeship Grant for Employers - Centralised Contract Management,Main Funding,WEST NOTTINGHAMSHIRE COLLEGE,AGER_3659,"121,500.00",Programme System File
BIS,Skills Funding Agency,13/05/2016,16-18 Apprenticeship Grant for Employers - Centralised Contract Management,Main Funding,WEST THAMES COLLEGE,AGEC_1292,"-9,000.00",Programme System File
BIS,Skills Funding Agency,13/05/2016,16-18 Apprenticeship Grant for Employers - Centralised Contract Management,Main Funding,WEST THAMES COLLEGE,AGER_3646,"9,000.00",Programme System File
BIS,Skills Funding Agency,13/05/2016,16-18 Apprenticeship Grant for Employers - Centralised Contract Management,Main Funding,WEYMOUTH COLLEGE,AGEC_1297,"-34,500.00",Programme System File
BIS,Skills Funding Agency,13/05/2016,16-18 Apprenticeship Grant for Employers - Centralised Contract Management,Main Funding,WEYMOUTH COLLEGE,AGER_3657,"34,500.00",Programme System File
BIS,Skills Funding Agency,13/05/2016,16-18 Apprenticeship Grant for Employers - Centralised Contract Management,Main Funding,WIGAN METRO BOROUGH COUNCIL,AGEC_1304,"-4,500.00",Programme System File
BIS,Skills Funding Agency,13/05/2016,16-18 Apprenticeship Grant for Employers - Centralised Contract Management,Main Funding,WIGAN METRO BOROUGH COUNCIL,AGER_3666,"4,500.00",Programme System File
BIS,Skills Funding Agency,13/05/2016,16-18 Apprenticeship Grant for Employers - Centralised Contract Management,Main Funding,YMCA TRAINING,AGER_3645,"1,500.00",Programme System File
BIS,Skills Funding Agency,13/05/2016,16-18 Apprenticeship Grant for Employers - Centralised Contract Management,Main Funding,YORK COLLEGE,AGEC_1315,"-40,500.00",Programme System File
BIS,Skills Funding Agency,13/05/2016,16-18 Apprenticeship Grant for Employers - Centralised Contract Management,Main Funding,YORK COLLEGE,AGER_3682,"40,500.00",Programme System File
BIS,Skills Funding Agency,13/05/2016,16-18 Apprenticeship Grant for Employers,Main Funding,BARNSLEY COLLEGE,NUPS16_928,"-1,500.00",Programme Template
BIS,Skills Funding Agency,13/05/2016,16-18 Apprenticeship Grant for Employers,Main Funding,BOSTON COLLEGE,NUPS16_1007,"1,500.00",Programme Template
BIS,Skills Funding Agency,13/05/2016,16-18 Apprenticeship Grant for Employers,Main Funding,BOURNEMOUTH & POOLE COLLEGE,NUPS16_1008,"1,500.00",Programme Template
BIS,Skills Funding Agency,13/05/2016,16-18 Apprenticeship Grant for Employers,Main Funding,BOURNEMOUTH & POOLE COLLEGE,NUPS16_929,"-3,000.00",Programme Template
BIS,Skills Funding Agency,13/05/2016,16-18 Apprenticeship Grant for Employers,Main Funding,BRISTOL CITY COUNCIL,NUPS16_981,"-1,500.00",Programme Template
BIS,Skills Funding Agency,13/05/2016,16-18 Apprenticeship Grant for Employers,Main Funding,CAPEL MANOR COLLEGE,NUPS16_1017,"1,500.00",Programme Template
BIS,Skills Funding Agency,13/05/2016,16-18 Apprenticeship Grant for Employers,Main Funding,CARLISLE COLLEGE,NUPS16_1019,"1,500.00",Programme Template
BIS,Skills Funding Agency,13/05/2016,16-18 Apprenticeship Grant for Employers,Main Funding,CARLISLE COLLEGE,NUPS16_932,"1,500.00",Programme Template
BIS,Skills Funding Agency,13/05/2016,16-18 Apprenticeship Grant for Employers,Main Funding,CHICHESTER COLLEGE,NUPS16_1141,"1,500.00",Programme Template
BIS,Skills Funding Agency,13/05/2016,16-18 Apprenticeship Grant for Employers,Main Funding,COLLEGE OF WEST ANGLIA,NUPS16_1143,"1,500.00",Programme Template
BIS,Skills Funding Agency,13/05/2016,16-18 Apprenticeship Grant for Employers,Main Funding,CORNWALL COLLEGE,NUPS16_1028,"12,000.00",Programme Template
BIS,Skills Funding Agency,13/05/2016,16-18 Apprenticeship Grant for Employers,Main Funding,DERBY COLLEGE,NUPS16_1031,"4,500.00",Programme Template
BIS,Skills Funding Agency,13/05/2016,16-18 Apprenticeship Grant for Employers,Main Funding,LEICESTER COLLEGE CO FREEMENS PARK CAMPUS,NUPS16_1071,"3,000.00",Programme Template
BIS,Skills Funding Agency,13/05/2016,16-18 Apprenticeship Grant for Employers,Main Funding,LESLIE FRANCES HAIR FASHIONS LTD,NUPS16_905,"-1,500.00",Programme Template
BIS,Skills Funding Agency,13/05/2016,16-18 Apprenticeship Grant for Employers,Main Funding,LOOKFANTASTIC TRAINING LIMITED,NUPS16_894,"-1,500.00",Programme Template
BIS,Skills Funding Agency,13/05/2016,16-18 Apprenticeship Grant for Employers,Main Funding,NEWHAM COLLEGE OF HIGHER EDUCATION,NUPS16_1086,"4,500.00",Programme Template
BIS,Skills Funding Agency,13/05/2016,16-18 Apprenticeship Grant for Employers,Main Funding,"NORTH EAST CHAMBER OF COMMERCE, TRADE AND INDUSTRY",NUPS16_1081,"1,500.00",Programme Template
BIS,Skills Funding Agency,13/05/2016,16-18 Apprenticeship Grant for Employers,Main Funding,"NORTH EAST CHAMBER OF COMMERCE, TRADE AND INDUSTRY",NUPS16_908,"-4,500.00",Programme Template
BIS,Skills Funding Agency,13/05/2016,16-18 Apprenticeship Grant for Employers,Main Funding,NORTH LANCS TRAINING GROUP LTD,NUPS16_1090,"7,500.00",Programme Template
BIS,Skills Funding Agency,13/05/2016,16-18 Apprenticeship Grant for Employers,Main Funding,QA LIMITED,NUPS16_1061,"4,500.00",Programme Template
BIS,Skills Funding Agency,13/05/2016,16-18 Apprenticeship Grant for Employers,Main Funding,QA LIMITED,NUPS16_912,"1,500.00",Programme Template
BIS,Skills Funding Agency,13/05/2016,16-18 Apprenticeship Grant for Employers,Main Funding,SOUTH LEICESTERSHIRE COLLEGE,NUPS16_974,"-1,500.00",Programme Template
BIS,Skills Funding Agency,13/05/2016,16-18 Apprenticeship Grant for Employers,Main Funding,STOKE ON TRENT COLLEGE,NUPS16_1122,"1,500.00",Programme Template
BIS,Skills Funding Agency,13/05/2016,16-18 Apprenticeship Grant for Employers,Main Funding,STOKE ON TRENT COLLEGE,NUPS16_965,"-1,500.00",Programme Template
BIS,Skills Funding Agency,13/05/2016,16-18 Apprenticeship Grant for Employers,Main Funding,THELIGHTBULB LTD,NUPS16_1072,"1,500.00",Programme Template
BIS,Skills Funding Agency,13/05/2016,16-18 Apprenticeship Grant for Employers,Main Funding,UK TRAINING & DEVELOPMENT LTD,NUPS16_1128,"1,500.00",Programme Template
BIS,Skills Funding Agency,13/05/2016,16-18 Apprenticeship Grant for Employers,Main Funding,UK TRAINING & DEVELOPMENT LTD,NUPS16_919,"-1,500.00",Programme Template
BIS,Skills Funding Agency,13/05/2016,16-18 Apprenticeship Grant for Employers,Main Funding,WALSALL COLLEGE CO ST PAULS STREET CAMPUS,NUPS16_1129,"3,000.00",Programme Template
BIS,Skills Funding Agency,13/05/2016,16-18 Apprenticeship Grant for Employers,Main Funding,WEST CHESHIRE COLLEGE,NUPS16_1131,"1,500.00",Programme Template
BIS,Skills Funding Agency,13/05/2016,16-18 Apprenticeship Grant for Employers,Main Funding,WEST CHESHIRE COLLEGE,NUPS16_971,"-1,500.00",Programme Template
BIS,Skills Funding Agency,13/05/2016,16-18 Apprenticeship Grant for Employers,Main Funding,WEST NOTTINGHAMSHIRE COLLEGE,NUPS16_1132,"6,000.00",Programme Template
BIS,Skills Funding Agency,13/05/2016,16-18 Apprenticeship Grant for Employers,Main Funding,WEST NOTTINGHAMSHIRE COLLEGE,NUPS16_980,"1,500.00",Programme Template
BIS,Skills Funding Agency,13/05/2016,16-18 Apprenticeship Grant for Employers,Main Funding,WEST THAMES COLLEGE,NUPS16_979,"-3,000.00",Programme Template
BIS,Skills Funding Agency,13/05/2016,16-18 Apprenticeship Grant for Employers,Main Funding,WIRRAL METRO COLLEGE,NUPS16_1134,"3,000.00",Programme Template
BIS,Skills Funding Agency,13/05/2016,16-18 Apprenticeships - Centralised Contract Management,Main Funding,5 E LTD,AP16C_1288,"-6,606.06",Programme System File
BIS,Skills Funding Agency,13/05/2016,16-18 Apprenticeships - Centralised Contract Management,Main Funding,5 E LTD,AP16C_2051,"-10,241.55",Programme System File
BIS,Skills Funding Agency,13/05/2016,16-18 Apprenticeships - Centralised Contract Management,Main Funding,5 E LTD,AP16R_10588,"18,486.34",Programme System File
BIS,Skills Funding Agency,13/05/2016,16-18 Apprenticeships - Centralised Contract Management,Main Funding,ABINGDON & WITNEY COLLEGE,AP16R_9403,"42,835.14",Programme System File
BIS,Skills Funding Agency,13/05/2016,16-18 Apprenticeships - Centralised Contract Management,Main Funding,ACACIA TRAINING & DEVELOPMENT LTD,AP16R_10583,"32,183.17",Programme System File
BIS,Skills Funding Agency,13/05/2016,16-18 Apprenticeships - Centralised Contract Management,Main Funding,ACACIA TRAINING LTD,AP16R_10586,"6,866.91",Programme System File
BIS,Skills Funding Agency,13/05/2016,16-18 Apprenticeships - Centralised Contract Management,Main Funding,ACADEMIES ENTERPRISE,AP16C_1742,"-6,093.64",Programme System File
BIS,Skills Funding Agency,13/05/2016,16-18 Apprenticeships - Centralised Contract Management,Main Funding,ACADEMIES ENTERPRISE,AP16C_821,"-4,098.19",Programme System File
BIS,Skills Funding Agency,13/05/2016,16-18 Apprenticeships - Centralised Contract Management,Main Funding,ACADEMIES ENTERPRISE,AP16R_10034,"8,249.76",Programme System File
BIS,Skills Funding Agency,13/05/2016,16-18 Apprenticeships - Centralised Contract Management,Main Funding,ACADEMY EDUCATION LTD,AP16C_2056,"-19,095.47",Programme System File
BIS,Skills Funding Agency,13/05/2016,16-18 Apprenticeships - Centralised Contract Management,Main Funding,ACADEMY EDUCATION LTD,AP16R_10597,"70,140.50",Programme System File
BIS,Skills Funding Agency,13/05/2016,16-18 Apprenticeships - Centralised Contract Management,Main Funding,ACADEMY HAIR & BEAUTY LTD,AP16C_1380,"-14,341.31",Programme System File
BIS,Skills Funding Agency,13/05/2016,16-18 Apprenticeships - Centralised Contract Management,Main Funding,ACADEMY HAIR & BEAUTY LTD,AP16C_1580,"-18,302.50",Programme System File
BIS,Skills Funding Agency,13/05/2016,16-18 Apprenticeships - Centralised Contract Management,Main Funding,ACADEMY HAIR & BEAUTY LTD,AP16R_9703,"29,876.65",Programme System File
BIS,Skills Funding Agency,13/05/2016,16-18 Apprenticeships - Centralised Contract Management,Main Funding,ACADEMY TRANSFORMATION TRUST,AP16C_1764,"-8,443.73",Programme System File
BIS,Skills Funding Agency,13/05/2016,16-18 Apprenticeships - Centralised Contract Management,Main Funding,ACADEMY TRANSFORMATION TRUST,AP16C_831,"-5,990.05",Programme System File
BIS,Skills Funding Agency,13/05/2016,16-18 Apprenticeships - Centralised Contract Management,Main Funding,ACADEMY TRANSFORMATION TRUST,AP16R_10071,"11,590.74",Programme System File
BIS,Skills Funding Agency,13/05/2016,16-18 Apprenticeships - Centralised Contract Management,Main Funding,ACCESS TRAINING EAST MIDLANDS LTD,AP16C_1411,"-42,340.68",Programme System File
BIS,Skills Funding Agency,13/05/2016,16-18 Apprenticeships - Centralised Contract Management,Main Funding,ACCESS TRAINING EAST MIDLANDS LTD,AP16C_1635,"-42,290.43",Programme System File
BIS,Skills Funding Agency,13/05/2016,16-18 Apprenticeships - Centralised Contract Management,Main Funding,ACCESS TRAINING EAST MIDLANDS LTD,AP16R_9807,"90,147.15",Programme System File
BIS,Skills Funding Agency,13/05/2016,16-18 Apprenticeships - Centralised Contract Management,Main Funding,ACCESS TRAINING LTD,AP16C_1404,"-28,008.31",Programme System File
BIS,Skills Funding Agency,13/05/2016,16-18 Apprenticeships - Centralised Contract Management,Main Funding,ACCESS TRAINING LTD,AP16C_1622,"-26,072.33",Programme System File
BIS,Skills Funding Agency,13/05/2016,16-18 Apprenticeships - Centralised Contract Management,Main Funding,ACCESS TRAINING LTD,AP16R_9786,"76,675.85",Programme System File
BIS,Skills Funding Agency,13/05/2016,16-18 Apprenticeships - Centralised Contract Management,Main Funding,ACCRINGTON & ROSSENDALE COLLEGE,AP16C_1173,"-25,616.68",Programme System File
BIS,Skills Funding Agency,13/05/2016,16-18 Apprenticeships - Centralised Contract Management,Main Funding,ACCRINGTON & ROSSENDALE COLLEGE,AP16C_1829,"-29,017.85",Programme System File
BIS,Skills Funding Agency,13/05/2016,16-18 Apprenticeships - Centralised Contract Management,Main Funding,ACCRINGTON & ROSSENDALE COLLEGE,AP16R_10275,"85,479.08",Programme System File
BIS,Skills Funding Agency,13/05/2016,16-18 Apprenticeships - Centralised Contract Management,Main Funding,ACHIEVEMENT TRAINING LIMITED,AP16R_10591,"28,641.37",Programme System File
BIS,Skills Funding Agency,13/05/2016,16-18 Apprenticeships - Centralised Contract Management,Main Funding,ALDER TRAINING LTD,AP16R_10600,"46,481.57",Programme System File
BIS,Skills Funding Agency,13/05/2016,16-18 Apprenticeships - Centralised Contract Management,Main Funding,ALL TRADES TRAINING LIMITED,AP16R_9976,"2,259.84",Programme System File
BIS,Skills Funding Agency,13/05/2016,16-18 Apprenticeships - Centralised Contract Management,Main Funding,ALLIANCE LEARNING LTD,AP16C_1293,"-2,236.01",Programme System File
BIS,Skills Funding Agency,13/05/2016,16-18 Apprenticeships - Centralised Contract Management,Main Funding,ALLIANCE LEARNING LTD,AP16C_2064,"-9,628.46",Programme System File
BIS,Skills Funding Agency,13/05/2016,16-18 Apprenticeships - Centralised Contract Management,Main Funding,ALLIANCE LEARNING LTD,AP16R_10611,94754.6,Programme System File
BIS,Skills Funding Agency,13/05/2016,16-18 Apprenticeships - Centralised Contract Management,Main Funding,ALT VALLEY COMMUNITY TRUST LTD,AP16R_10687,"6,685.41",Programme System File
BIS,Skills Funding Agency,13/05/2016,16-18 Apprenticeships - Centralised Contract Management,Main Funding,AMERSHAM & WYCOMBE COLLEGE,AP16C_2030,"-45,256.95",Programme System File
BIS,Skills Funding Agency,13/05/2016,16-18 Apprenticeships - Centralised Contract Management,Main Funding,AMERSHAM & WYCOMBE COLLEGE,AP16R_10623,"67,390.90",Programme System File
BIS,Skills Funding Agency,13/05/2016,16-18 Apprenticeships - Centralised Contract Management,Main Funding,ANDERSON STOCKLEY ACCREDITED TRAINING LTD,AP16R_9944,"17,469.66",Programme System File
BIS,Skills Funding Agency,13/05/2016,16-18 Apprenticeships - Centralised Contract Management,Main Funding,ANDREW COLLINGE TRAINING LTD,AP16R_10598,"44,218.70",Programme System File
BIS,Skills Funding Agency,13/05/2016,16-18 Apprenticeships - Centralised Contract Management,Main Funding,ANNE CLARKE ASSOCIATES LTD,AP16R_9902,"11,776.48",Programme System File
BIS,Skills Funding Agency,13/05/2016,16-18 Apprenticeships - Centralised Contract Management,Main Funding,APPRENTICE FUNDING ASSISTANT LTD,AP16R_9984,"80,509.18",Programme System File
BIS,Skills Funding Agency,13/05/2016,16-18 Apprenticeships - Centralised Contract Management,Main Funding,APPRENTICE SCHOOL CHARITABLE TRUST,AP16C_2082,"-37,476.78",Programme System File
BIS,Skills Funding Agency,13/05/2016,16-18 Apprenticeships - Centralised Contract Management,Main Funding,APPRENTICE SCHOOL CHARITABLE TRUST,AP16R_10649,"64,750.55",Programme System File
BIS,Skills Funding Agency,13/05/2016,16-18 Apprenticeships - Centralised Contract Management,Main Funding,APPRENTICESHIPS & TRAINING SERVICES CONSORTIUM LIMITED,AP16C_1734,"-135,699.93",Programme System File
BIS,Skills Funding Agency,13/05/2016,16-18 Apprenticeships - Centralised Contract Management,Main Funding,APPRENTICESHIPS & TRAINING SERVICES CONSORTIUM LIMITED,AP16R_10023,"235,761.80",Programme System File
BIS,Skills Funding Agency,13/05/2016,16-18 Apprenticeships - Centralised Contract Management,Main Funding,APPRIS CHARITY LIMITED,AP16R_10653,"75,033.17",Programme System File
BIS,Skills Funding Agency,13/05/2016,16-18 Apprenticeships - Centralised Contract Management,Main Funding,ASHTON UNDER LYNE SIXTH FORM COLLEGE,AP16R_10019,438.04,Programme System File
BIS,Skills Funding Agency,13/05/2016,16-18 Apprenticeships - Centralised Contract Management,Main Funding,ASKHAM BRYAN COLLEGE,AP16C_1355,"-177,279.23",Programme System File
BIS,Skills Funding Agency,13/05/2016,16-18 Apprenticeships - Centralised Contract Management,Main Funding,ASKHAM BRYAN COLLEGE,AP16C_1526,"-180,918.12",Programme System File
BIS,Skills Funding Agency,13/05/2016,16-18 Apprenticeships - Centralised Contract Management,Main Funding,ASKHAM BRYAN COLLEGE,AP16R_9640,"262,890.93",Programme System File
BIS,Skills Funding Agency,13/05/2016,16-18 Apprenticeships - Centralised Contract Management,Main Funding,ASPIRATION TRAINING LTD,AP16C_1292,"-126,385.68",Programme System File
BIS,Skills Funding Agency,13/05/2016,16-18 Apprenticeships - Centralised Contract Management,Main Funding,ASPIRATION TRAINING LTD,AP16C_2060,"-118,192.18",Programme System File
BIS,Skills Funding Agency,13/05/2016,16-18 Apprenticeships - Centralised Contract Management,Main Funding,ASPIRATION TRAINING LTD,AP16R_10604,"183,296.07",Programme System File
BIS,Skills Funding Agency,13/05/2016,16-18 Apprenticeships - Centralised Contract Management,Main Funding,ASPIRE ACHIEVE ADVANCE LIMITED,AP16C_1727,"-3,283,748.72",Programme System File
BIS,Skills Funding Agency,13/05/2016,16-18 Apprenticeships - Centralised Contract Management,Main Funding,ASPIRE ACHIEVE ADVANCE LIMITED,AP16C_813,"-3,582,141.62",Programme System File
BIS,Skills Funding Agency,13/05/2016,16-18 Apprenticeships - Centralised Contract Management,Main Funding,ASPIRE ACHIEVE ADVANCE LIMITED,AP16R_10009,"4,526,444.52",Programme System File
BIS,Skills Funding Agency,13/05/2016,16-18 Apprenticeships - Centralised Contract Management,Main Funding,ASPIRE TRAINING TEAM,AP16C_1388,"-1,437.25",Programme System File
BIS,Skills Funding Agency,13/05/2016,16-18 Apprenticeships - Centralised Contract Management,Main Funding,ASPIRE TRAINING TEAM,AP16C_1594,"-1,944.74",Programme System File
BIS,Skills Funding Agency,13/05/2016,16-18 Apprenticeships - Centralised Contract Management,Main Funding,ASPIRE TRAINING TEAM,AP16R_9730,"38,617.30",Programme System File
BIS,Skills Funding Agency,13/05/2016,16-18 Apprenticeships - Centralised Contract Management,Main Funding,ASSET TRAINING & CONSULTANCY LTD,AP16R_10606,"44,070.03",Programme System File
BIS,Skills Funding Agency,13/05/2016,16-18 Apprenticeships - Centralised Contract Management,Main Funding,ASTUTE MINDS LTD,AP16C_1431,"-39,725.86",Programme System File
BIS,Skills Funding Agency,13/05/2016,16-18 Apprenticeships - Centralised Contract Management,Main Funding,ASTUTE MINDS LTD,AP16C_1668,"-29,428.28",Programme System File
BIS,Skills Funding Agency,13/05/2016,16-18 Apprenticeships - Centralised Contract Management,Main Funding,ASTUTE MINDS LTD,AP16R_9879,"125,635.26",Programme System File
BIS,Skills Funding Agency,13/05/2016,16-18 Apprenticeships - Centralised Contract Management,Main Funding,ATG TRAINING,AP16R_10628,"64,118.17",Programme System File
BIS,Skills Funding Agency,13/05/2016,16-18 Apprenticeships - Centralised Contract Management,Main Funding,AURELIA TRAINING LTD,AP16C_1294,"-11,258.90",Programme System File
BIS,Skills Funding Agency,13/05/2016,16-18 Apprenticeships - Centralised Contract Management,Main Funding,AURELIA TRAINING LTD,AP16C_2070,"-12,922.56",Programme System File
BIS,Skills Funding Agency,13/05/2016,16-18 Apprenticeships - Centralised Contract Management,Main Funding,AURELIA TRAINING LTD,AP16R_10617,"18,503.31",Programme System File
BIS,Skills Funding Agency,13/05/2016,16-18 Apprenticeships - Centralised Contract Management,Main Funding,AVANT PARTNERSHIP LTD,AP16R_9917,"31,065.84",Programme System File
BIS,Skills Funding Agency,13/05/2016,16-18 Apprenticeships - Centralised Contract Management,Main Funding,AVANTA ENTERPRISE LTD,AP16C_1761,"-176,590.17",Programme System File
BIS,Skills Funding Agency,13/05/2016,16-18 Apprenticeships - Centralised Contract Management,Main Funding,AVANTA ENTERPRISE LTD,AP16C_830,"-174,784.44",Programme System File
BIS,Skills Funding Agency,13/05/2016,16-18 Apprenticeships - Centralised Contract Management,Main Funding,AVANTA ENTERPRISE LTD,AP16R_10065,"256,813.08",Programme System File
BIS,Skills Funding Agency,13/05/2016,16-18 Apprenticeships - Centralised Contract Management,Main Funding,AXIA SOLUTIONS LTD,AP16R_10622,"16,459.68",Programme System File
BIS,Skills Funding Agency,13/05/2016,16-18 Apprenticeships - Centralised Contract Management,Main Funding,AYLESBURY COLLEGE,AP16C_1795,"-81,400.82",Programme System File
BIS,Skills Funding Agency,13/05/2016,16-18 Apprenticeships - Centralised Contract Management,Main Funding,AYLESBURY COLLEGE,AP16C_882,"-77,202.21",Programme System File
BIS,Skills Funding Agency,13/05/2016,16-18 Apprenticeships - Centralised Contract Management,Main Funding,AYLESBURY COLLEGE,AP16R_10143,"167,751.12",Programme System File
BIS,Skills Funding Agency,13/05/2016,16-18 Apprenticeships - Centralised Contract Management,Main Funding,B SKILL LTD,AP16C_1298,"-51,033.25",Programme System File
BIS,Skills Funding Agency,13/05/2016,16-18 Apprenticeships - Centralised Contract Management,Main Funding,B SKILL LTD,AP16C_2077,"-44,342.35",Programme System File
BIS,Skills Funding Agency,13/05/2016,16-18 Apprenticeships - Centralised Contract Management,Main Funding,B SKILL LTD,AP16R_10637,"61,115.77",Programme System File
BIS,Skills Funding Agency,13/05/2016,16-18 Apprenticeships - Centralised Contract Management,Main Funding,B2B ENGAGE LTD,AP16R_9993,"68,244.76",Programme System File
BIS,Skills Funding Agency,13/05/2016,16-18 Apprenticeships - Centralised Contract Management,Main Funding,BABCOCK SKILLS DEVELOPMENT & TRAINING LTD,AP16R_10064,"113,060.27",Programme System File
BIS,Skills Funding Agency,13/05/2016,16-18 Apprenticeships - Centralised Contract Management,Main Funding,BABCOCK TRAINING LTD,AP16R_9450,"674,426.37",Programme System File
BIS,Skills Funding Agency,13/05/2016,16-18 Apprenticeships - Centralised Contract Management,Main Funding,BABINGTON BUSINESS COLLEGE LTD,AP16C_1295,"-110,762.10",Programme System File
BIS,Skills Funding Agency,13/05/2016,16-18 Apprenticeships - Centralised Contract Management,Main Funding,BABINGTON BUSINESS COLLEGE LTD,AP16R_10618,"357,608.63",Programme System File
BIS,Skills Funding Agency,13/05/2016,16-18 Apprenticeships - Centralised Contract Management,Main Funding,BAE SYSTEMS PLC,AP16C_1297,"-333,544.94",Programme System File
BIS,Skills Funding Agency,13/05/2016,16-18 Apprenticeships - Centralised Contract Management,Main Funding,BAE SYSTEMS PLC,AP16C_2073,"-353,001.83",Programme System File
BIS,Skills Funding Agency,13/05/2016,16-18 Apprenticeships - Centralised Contract Management,Main Funding,BAE SYSTEMS PLC,AP16R_10626,"530,192.67",Programme System File
BIS,Skills Funding Agency,13/05/2016,16-18 Apprenticeships - Centralised Contract Management,Main Funding,BALTIC TRAINING SERVICES LTD,AP16C_1425,"-1,114,532.34",Programme System File
BIS,Skills Funding Agency,13/05/2016,16-18 Apprenticeships - Centralised Contract Management,Main Funding,BALTIC TRAINING SERVICES LTD,AP16R_9861,"1,524,862.76",Programme System File
BIS,Skills Funding Agency,13/05/2016,16-18 Apprenticeships - Centralised Contract Management,Main Funding,BARCHESTER HEALTHCARE LTD,AP16R_10630,"7,870.79",Programme System File
BIS,Skills Funding Agency,13/05/2016,16-18 Apprenticeships - Centralised Contract Management,Main Funding,BARKING & DAGENHAM COLLEGE,AP16R_10171,"113,169.77",Programme System File
BIS,Skills Funding Agency,13/05/2016,16-18 Apprenticeships - Centralised Contract Management,Main Funding,BARKING & DAGENHAM LONDON BOROUGH COUNCIL,AP16R_10486,"2,282.77",Programme System File
BIS,Skills Funding Agency,13/05/2016,16-18 Apprenticeships - Centralised Contract Management,Main Funding,BARNET AND SOUTHGATE COLLEGE,AP16C_1770,"-139,009.58",Programme System File
BIS,Skills Funding Agency,13/05/2016,16-18 Apprenticeships - Centralised Contract Management,Main Funding,BARNET AND SOUTHGATE COLLEGE,AP16C_808,"-136,773.74",Programme System File
BIS,Skills Funding Agency,13/05/2016,16-18 Apprenticeships - Centralised Contract Management,Main Funding,BARNET AND SOUTHGATE COLLEGE,AP16R_10130,"182,729.08",Programme System File
BIS,Skills Funding Agency,13/05/2016,16-18 Apprenticeships - Centralised Contract Management,Main Funding,BARNFIELD COLLEGE,AP16R_10163,"36,765.96",Programme System File
BIS,Skills Funding Agency,13/05/2016,16-18 Apprenticeships - Centralised Contract Management,Main Funding,BARNSLEY COLLEGE,AP16C_1199,"-84,369.91",Programme System File
BIS,Skills Funding Agency,13/05/2016,16-18 Apprenticeships - Centralised Contract Management,Main Funding,BARNSLEY COLLEGE,AP16C_1822,"-117,702.66",Programme System File
BIS,Skills Funding Agency,13/05/2016,16-18 Apprenticeships - Centralised Contract Management,Main Funding,BARNSLEY COLLEGE,AP16R_10193,"326,745.11",Programme System File
BIS,Skills Funding Agency,13/05/2016,16-18 Apprenticeships - Centralised Contract Management,Main Funding,BASINGSTOKE COLLEGE,AP16C_998,"-135,127.42",Programme System File
BIS,Skills Funding Agency,13/05/2016,16-18 Apprenticeships - Centralised Contract Management,Main Funding,BASINGSTOKE COLLEGE,AP16R_10229,"237,081.85",Programme System File
BIS,Skills Funding Agency,13/05/2016,16-18 Apprenticeships - Centralised Contract Management,Main Funding,BASINGSTOKE YOUTH ACTION TRUST LTD,AP16R_10638,"24,525.61",Programme System File
BIS,Skills Funding Agency,13/05/2016,16-18 Apprenticeships - Centralised Contract Management,Main Funding,BC ARCH LTD T/A ARCH APPRENTICES,AP16C_1167,"-438,769.84",Programme System File
BIS,Skills Funding Agency,13/05/2016,16-18 Apprenticeships - Centralised Contract Management,Main Funding,BC ARCH LTD T/A ARCH APPRENTICES,AP16C_1775,"-432,960.58",Programme System File
BIS,Skills Funding Agency,13/05/2016,16-18 Apprenticeships - Centralised Contract Management,Main Funding,BC ARCH LTD T/A ARCH APPRENTICES,AP16R_10097,"631,834.60",Programme System File
BIS,Skills Funding Agency,13/05/2016,16-18 Apprenticeships - Centralised Contract Management,Main Funding,BCTG LIMITED,AP16C_1381,"-399,998.23",Programme System File
BIS,Skills Funding Agency,13/05/2016,16-18 Apprenticeships - Centralised Contract Management,Main Funding,BCTG LIMITED,AP16C_1582,"-410,381.40",Programme System File
BIS,Skills Funding Agency,13/05/2016,16-18 Apprenticeships - Centralised Contract Management,Main Funding,BCTG LIMITED,AP16R_9707,"601,757.77",Programme System File
BIS,Skills Funding Agency,13/05/2016,16-18 Apprenticeships - Centralised Contract Management,Main Funding,BE TOTALLY YOU,AP16R_9871,"10,637.67",Programme System File
BIS,Skills Funding Agency,13/05/2016,16-18 Apprenticeships - Centralised Contract Management,Main Funding,BE WISER INSURANCE SERVICES LIMITED,AP16R_10090,"11,162.91",Programme System File
BIS,Skills Funding Agency,13/05/2016,16-18 Apprenticeships - Centralised Contract Management,Main Funding,BEDFORD COLLEGE,AP16C_1161,"-135,065.98",Programme System File
BIS,Skills Funding Agency,13/05/2016,16-18 Apprenticeships - Centralised Contract Management,Main Funding,BEDFORD COLLEGE,AP16C_1857,"-151,168.55",Programme System File
BIS,Skills Funding Agency,13/05/2016,16-18 Apprenticeships - Centralised Contract Management,Main Funding,BEDFORD COLLEGE,AP16R_10258,"393,386.02",Programme System File
BIS,Skills Funding Agency,13/05/2016,16-18 Apprenticeships - Centralised Contract Management,Main Funding,BERKSHIRE COLLEGE OF AGRICULTURE,AP16C_1840,"-3,840.03",Programme System File
BIS,Skills Funding Agency,13/05/2016,16-18 Apprenticeships - Centralised Contract Management,Main Funding,BERKSHIRE COLLEGE OF AGRICULTURE,AP16R_10221,"17,111.35",Programme System File
BIS,Skills Funding Agency,13/05/2016,16-18 Apprenticeships - Centralised Contract Management,Main Funding,BESTLAND SOLUTIONS LTD,AP16R_9866,"55,490.23",Programme System File
BIS,Skills Funding Agency,13/05/2016,16-18 Apprenticeships - Centralised Contract Management,Main Funding,BEXHILL COLLEGE,AP16C_1081,"-2,291.73",Programme System File
BIS,Skills Funding Agency,13/05/2016,16-18 Apprenticeships - Centralised Contract Management,Main Funding,BEXHILL COLLEGE,AP16C_1849,"-2,646.42",Programme System File
BIS,Skills Funding Agency,13/05/2016,16-18 Apprenticeships - Centralised Contract Management,Main Funding,BEXHILL COLLEGE,AP16R_10243,"8,077.75",Programme System File
BIS,Skills Funding Agency,13/05/2016,16-18 Apprenticeships - Centralised Contract Management,Main Funding,BEXLEY COLLEGE,AP16C_1176,"-167,605.47",Programme System File
BIS,Skills Funding Agency,13/05/2016,16-18 Apprenticeships - Centralised Contract Management,Main Funding,BEXLEY COLLEGE,AP16C_1878,"-168,988.95",Programme System File
BIS,Skills Funding Agency,13/05/2016,16-18 Apprenticeships - Centralised Contract Management,Main Funding,BEXLEY COLLEGE,AP16R_10303,"227,371.04",Programme System File
BIS,Skills Funding Agency,13/05/2016,16-18 Apprenticeships - Centralised Contract Management,Main Funding,BEXLEY YOUTH TRAINING GROUP,AP16R_10639,"100,500.07",Programme System File
BIS,Skills Funding Agency,13/05/2016,16-18 Apprenticeships - Centralised Contract Management,Main Funding,BHS LTD,AP16R_9873,"-2,466.70",Programme System File
BIS,Skills Funding Agency,13/05/2016,16-18 Apprenticeships - Centralised Contract Management,Main Funding,BIRMINGHAM ELECTRICAL TRAINING LTD,AP16C_2078,"-21,699.32",Programme System File
BIS,Skills Funding Agency,13/05/2016,16-18 Apprenticeships - Centralised Contract Management,Main Funding,BIRMINGHAM ELECTRICAL TRAINING LTD,AP16R_10644,"64,022.79",Programme System File
BIS,Skills Funding Agency,13/05/2016,16-18 Apprenticeships - Centralised Contract Management,Main Funding,BIRMINGHAM METROPOLITAN COLLEGE,AP16C_1955,"-64,472.33",Programme System File
BIS,Skills Funding Agency,13/05/2016,16-18 Apprenticeships - Centralised Contract Management,Main Funding,BIRMINGHAM METROPOLITAN COLLEGE,AP16R_10436,"246,006.87",Programme System File
BIS,Skills Funding Agency,13/05/2016,16-18 Apprenticeships - Centralised Contract Management,Main Funding,BISHOP AUCKLAND COLLEGE,AP16C_1910,"-4,438.10",Programme System File
BIS,Skills Funding Agency,13/05/2016,16-18 Apprenticeships - Centralised Contract Management,Main Funding,BISHOP AUCKLAND COLLEGE,AP16R_10362,"41,817.65",Programme System File
BIS,Skills Funding Agency,13/05/2016,16-18 Apprenticeships - Centralised Contract Management,Main Funding,BISHOP BURTON COLLEGE,AP16C_1216,"-27,473.85",Programme System File
BIS,Skills Funding Agency,13/05/2016,16-18 Apprenticeships - Centralised Contract Management,Main Funding,BISHOP BURTON COLLEGE,AP16C_1928,"-28,451.46",Programme System File
BIS,Skills Funding Agency,13/05/2016,16-18 Apprenticeships - Centralised Contract Management,Main Funding,BISHOP BURTON COLLEGE,AP16R_10387,"79,454.51",Programme System File
BIS,Skills Funding Agency,13/05/2016,16-18 Apprenticeships - Centralised Contract Management,Main Funding,BL TRAINING LTD,AP16R_10631,"72,477.67",Programme System File
BIS,Skills Funding Agency,13/05/2016,16-18 Apprenticeships - Centralised Contract Management,Main Funding,BLACKBURN COLLEGE,AP16R_10451,"87,890.87",Programme System File
BIS,Skills Funding Agency,13/05/2016,16-18 Apprenticeships - Centralised Contract Management,Main Funding,BLACKPOOL & FLYDE COLLEGE,AP16C_1239,"-44,420.93",Programme System File
BIS,Skills Funding Agency,13/05/2016,16-18 Apprenticeships - Centralised Contract Management,Main Funding,BLACKPOOL & FLYDE COLLEGE,AP16C_1970,"-5,242.22",Programme System File
BIS,Skills Funding Agency,13/05/2016,16-18 Apprenticeships - Centralised Contract Management,Main Funding,BLACKPOOL & FLYDE COLLEGE,AP16R_10467,"146,248.34",Programme System File
BIS,Skills Funding Agency,13/05/2016,16-18 Apprenticeships - Centralised Contract Management,Main Funding,BOLTON COMMUNITY COLLEGE,AP16C_1191,"-47,674.73",Programme System File
BIS,Skills Funding Agency,13/05/2016,16-18 Apprenticeships - Centralised Contract Management,Main Funding,BOLTON COMMUNITY COLLEGE,AP16C_1891,"-1,116.14",Programme System File
BIS,Skills Funding Agency,13/05/2016,16-18 Apprenticeships - Centralised Contract Management,Main Funding,BOLTON COMMUNITY COLLEGE,AP16R_10336,"130,470.76",Programme System File
BIS,Skills Funding Agency,13/05/2016,16-18 Apprenticeships - Centralised Contract Management,Main Funding,BOROUGH OF POOLE,AP16C_1205,"-1,442.48",Programme System File
BIS,Skills Funding Agency,13/05/2016,16-18 Apprenticeships - Centralised Contract Management,Main Funding,BOROUGH OF POOLE,AP16C_1897,"-2,996.68",Programme System File
BIS,Skills Funding Agency,13/05/2016,16-18 Apprenticeships - Centralised Contract Management,Main Funding,BOROUGH OF POOLE,AP16R_10340,"6,482.15",Programme System File
BIS,Skills Funding Agency,13/05/2016,16-18 Apprenticeships - Centralised Contract Management,Main Funding,BOSCH AUTOMOTIVE SERVICE SOLUTIONS LTD,AP16C_1766,"-230,607.29",Programme System File
BIS,Skills Funding Agency,13/05/2016,16-18 Apprenticeships - Centralised Contract Management,Main Funding,BOSCH AUTOMOTIVE SERVICE SOLUTIONS LTD,AP16C_832,"-227,683.79",Programme System File
BIS,Skills Funding Agency,13/05/2016,16-18 Apprenticeships - Centralised Contract Management,Main Funding,BOSCH AUTOMOTIVE SERVICE SOLUTIONS LTD,AP16R_10080,"336,448.64",Programme System File
BIS,Skills Funding Agency,13/05/2016,16-18 Apprenticeships - Centralised Contract Management,Main Funding,BOSTON COLLEGE,AP16R_10412,"65,726.31",Programme System File
BIS,Skills Funding Agency,13/05/2016,16-18 Apprenticeships - Centralised Contract Management,Main Funding,BOURNEMOUTH & POOLE COLLEGE,AP16C_1227,"-61,401.24",Programme System File
BIS,Skills Funding Agency,13/05/2016,16-18 Apprenticeships - Centralised Contract Management,Main Funding,BOURNEMOUTH & POOLE COLLEGE,AP16C_1948,"-85,339.09",Programme System File
BIS,Skills Funding Agency,13/05/2016,16-18 Apprenticeships - Centralised Contract Management,Main Funding,BOURNEMOUTH & POOLE COLLEGE,AP16R_10433,"318,611.56",Programme System File
BIS,Skills Funding Agency,13/05/2016,16-18 Apprenticeships - Centralised Contract Management,Main Funding,BOURNVILLE COLLEGE OF HIGHER EDUCATION,AP16R_10487,"109,476.86",Programme System File
BIS,Skills Funding Agency,13/05/2016,16-18 Apprenticeships - Centralised Contract Management,Main Funding,BPP HOLDINGS PLC,AP16C_1303,"-564,339.59",Programme System File
BIS,Skills Funding Agency,13/05/2016,16-18 Apprenticeships - Centralised Contract Management,Main Funding,BPP HOLDINGS PLC,AP16C_2083,"-557,322.60",Programme System File
BIS,Skills Funding Agency,13/05/2016,16-18 Apprenticeships - Centralised Contract Management,Main Funding,BPP HOLDINGS PLC,AP16R_10650,"767,972.58",Programme System File
BIS,Skills Funding Agency,13/05/2016,16-18 Apprenticeships - Centralised Contract Management,Main Funding,BRACKNELL & WOKINGHAM COLLEGE,AP16R_10519,"38,348.07",Programme System File
BIS,Skills Funding Agency,13/05/2016,16-18 Apprenticeships - Centralised Contract Management,Main Funding,BRADFORD CITY COUNCIL,AP16R_10555,"10,107.28",Programme System File
BIS,Skills Funding Agency,13/05/2016,16-18 Apprenticeships - Centralised Contract Management,Main Funding,BRADFORD COLLEGE,AP16C_1992,"-24,043.46",Programme System File
BIS,Skills Funding Agency,13/05/2016,16-18 Apprenticeships - Centralised Contract Management,Main Funding,BRADFORD COLLEGE,AP16R_10500,"216,479.84",Programme System File
BIS,Skills Funding Agency,13/05/2016,16-18 Apprenticeships - Centralised Contract Management,Main Funding,BRIDGWATER COLLEGE,AP16C_1268,"-178,354.39",Programme System File
BIS,Skills Funding Agency,13/05/2016,16-18 Apprenticeships - Centralised Contract Management,Main Funding,BRIDGWATER COLLEGE,AP16C_2035,"-225,060.04",Programme System File
BIS,Skills Funding Agency,13/05/2016,16-18 Apprenticeships - Centralised Contract Management,Main Funding,BRIDGWATER COLLEGE,AP16R_10568,"417,031.76",Programme System File
BIS,Skills Funding Agency,13/05/2016,16-18 Apprenticeships - Centralised Contract Management,Main Funding,BRIGHT HORIZONS FAMILY SOLUTIONS LTD,AP16C_1337,"-5,595.75",Programme System File
BIS,Skills Funding Agency,13/05/2016,16-18 Apprenticeships - Centralised Contract Management,Main Funding,BRIGHT HORIZONS FAMILY SOLUTIONS LTD,AP16C_1503,"-5,595.75",Programme System File
BIS,Skills Funding Agency,13/05/2016,16-18 Apprenticeships - Centralised Contract Management,Main Funding,BRIGHT HORIZONS FAMILY SOLUTIONS LTD,AP16R_9506,"11,947.59",Programme System File
BIS,Skills Funding Agency,13/05/2016,16-18 Apprenticeships - Centralised Contract Management,Main Funding,BRINSWORTH TRAINING LIMITED,AP16R_9910,"42,442.96",Programme System File
BIS,Skills Funding Agency,13/05/2016,16-18 Apprenticeships - Centralised Contract Management,Main Funding,BRISTOL CITY COUNCIL,AP16C_1286,"-32,319.18",Programme System File
BIS,Skills Funding Agency,13/05/2016,16-18 Apprenticeships - Centralised Contract Management,Main Funding,BRISTOL CITY COUNCIL,AP16C_2069,"-50,184.67",Programme System File
BIS,Skills Funding Agency,13/05/2016,16-18 Apprenticeships - Centralised Contract Management,Main Funding,BRISTOL CITY COUNCIL,AP16R_10624,"109,446.86",Programme System File
BIS,Skills Funding Agency,13/05/2016,16-18 Apprenticeships - Centralised Contract Management,Main Funding,BRITISH ARMY,AP16R_10017,"874,620.13",Programme System File
BIS,Skills Funding Agency,13/05/2016,16-18 Apprenticeships - Centralised Contract Management,Main Funding,BRITISH GAS SERVICES LIMITED,AP16R_10642,"8,020.30",Programme System File
BIS,Skills Funding Agency,13/05/2016,16-18 Apprenticeships - Centralised Contract Management,Main Funding,BRITISH NUCLEAR FUELS PLC,AP16R_9809,"10,814.60",Programme System File
BIS,Skills Funding Agency,13/05/2016,16-18 Apprenticeships - Centralised Contract Management,Main Funding,BRITISH PRINTING INDUSTRIES FEDERATION LTD,AP16C_2079,"-36,295.94",Programme System File
BIS,Skills Funding Agency,13/05/2016,16-18 Apprenticeships - Centralised Contract Management,Main Funding,BRITISH PRINTING INDUSTRIES FEDERATION LTD,AP16R_10645,"65,854.91",Programme System File
BIS,Skills Funding Agency,13/05/2016,16-18 Apprenticeships - Centralised Contract Management,Main Funding,BRITISH TELECOM PLC,AP16C_1709,"-74,141.70",Programme System File
BIS,Skills Funding Agency,13/05/2016,16-18 Apprenticeships - Centralised Contract Management,Main Funding,BRITISH TELECOM PLC,AP16R_9975,"155,276.78",Programme System File
BIS,Skills Funding Agency,13/05/2016,16-18 Apprenticeships - Centralised Contract Management,Main Funding,BROADLAND DISTRICT COUNCIL,AP16R_10665,"46,989.24",Programme System File
BIS,Skills Funding Agency,13/05/2016,16-18 Apprenticeships - Centralised Contract Management,Main Funding,BROCKENHURST COLLEGE,AP16R_10533,"33,699.85",Programme System File
BIS,Skills Funding Agency,13/05/2016,16-18 Apprenticeships - Centralised Contract Management,Main Funding,BROMLEY COLLEGE OF FURTHER & HIGHER EDUCATION,AP16C_1278,"-14,078.58",Programme System File
BIS,Skills Funding Agency,13/05/2016,16-18 Apprenticeships - Centralised Contract Management,Main Funding,BROMLEY COLLEGE OF FURTHER & HIGHER EDUCATION,AP16C_2052,"-21,446.60",Programme System File
BIS,Skills Funding Agency,13/05/2016,16-18 Apprenticeships - Centralised Contract Management,Main Funding,BROMLEY COLLEGE OF FURTHER & HIGHER EDUCATION,AP16R_10596,"126,487.37",Programme System File
BIS,Skills Funding Agency,13/05/2016,16-18 Apprenticeships - Centralised Contract Management,Main Funding,BROOKLANDS TECHNICAL COLLEGE,AP16R_10633,"588,699.54",Programme System File
BIS,Skills Funding Agency,13/05/2016,16-18 Apprenticeships - Centralised Contract Management,Main Funding,BROOKSBY MELTON COLLEGE,AP16R_10648,"26,635.74",Programme System File
BIS,Skills Funding Agency,13/05/2016,16-18 Apprenticeships - Centralised Contract Management,Main Funding,BUCKINGHAMSHIRE COUNTY COUNCIL,AP16R_10685,"10,426.24",Programme System File
BIS,Skills Funding Agency,13/05/2016,16-18 Apprenticeships - Centralised Contract Management,Main Funding,BUILDING CRAFTS COLLEGE,AP16C_1406,"-27,716.27",Programme System File
BIS,Skills Funding Agency,13/05/2016,16-18 Apprenticeships - Centralised Contract Management,Main Funding,BUILDING CRAFTS COLLEGE,AP16C_1626,"-27,716.27",Programme System File
BIS,Skills Funding Agency,13/05/2016,16-18 Apprenticeships - Centralised Contract Management,Main Funding,BUILDING CRAFTS COLLEGE,AP16R_9794,"38,764.68",Programme System File
BIS,Skills Funding Agency,13/05/2016,16-18 Apprenticeships - Centralised Contract Management,Main Funding,BURNLEY COLLEGE,AP16C_1305,"-329,374.32",Programme System File
BIS,Skills Funding Agency,13/05/2016,16-18 Apprenticeships - Centralised Contract Management,Main Funding,BURNLEY COLLEGE,AP16C_2097,"-339,099.11",Programme System File
BIS,Skills Funding Agency,13/05/2016,16-18 Apprenticeships - Centralised Contract Management,Main Funding,BURNLEY COLLEGE,AP16R_9404,"468,729.75",Programme System File
BIS,Skills Funding Agency,13/05/2016,16-18 Apprenticeships - Centralised Contract Management,Main Funding,BURTON & SOUTH DERBYSHIRE COLLEGE,AP16C_1474,"-105,414.30",Programme System File
BIS,Skills Funding Agency,13/05/2016,16-18 Apprenticeships - Centralised Contract Management,Main Funding,BURTON & SOUTH DERBYSHIRE COLLEGE,AP16R_9454,"182,120.67",Programme System File
BIS,Skills Funding Agency,13/05/2016,16-18 Apprenticeships - Centralised Contract Management,Main Funding,BURY COLLEGE,AP16C_1318,"-155,306.38",Programme System File
BIS,Skills Funding Agency,13/05/2016,16-18 Apprenticeships - Centralised Contract Management,Main Funding,BURY COLLEGE,AP16C_1498,"-164,645.40",Programme System File
BIS,Skills Funding Agency,13/05/2016,16-18 Apprenticeships - Centralised Contract Management,Main Funding,BURY COLLEGE,AP16R_9498,"275,521.91",Programme System File
BIS,Skills Funding Agency,13/05/2016,16-18 Apprenticeships - Centralised Contract Management,Main Funding,BUSINESS MANAGEMENT RESOURCES UK LTD,AP16R_10652,"4,379.29",Programme System File
BIS,Skills Funding Agency,13/05/2016,16-18 Apprenticeships - Centralised Contract Management,Main Funding,BUSY BEES NURSERIES,AP16C_1720,"-109,188.29",Programme System File
BIS,Skills Funding Agency,13/05/2016,16-18 Apprenticeships - Centralised Contract Management,Main Funding,BUSY BEES NURSERIES,AP16C_814,"-108,494.67",Programme System File
BIS,Skills Funding Agency,13/05/2016,16-18 Apprenticeships - Centralised Contract Management,Main Funding,BUSY BEES NURSERIES,AP16R_9996,"182,668.72",Programme System File
BIS,Skills Funding Agency,13/05/2016,16-18 Apprenticeships - Centralised Contract Management,Main Funding,CABLECOM TRAINING LTD,AP16R_10654,"6,761.51",Programme System File
BIS,Skills Funding Agency,13/05/2016,16-18 Apprenticeships - Centralised Contract Management,Main Funding,CALDERDALE COLLEGE,AP16C_1334,"-133,175.04",Programme System File
BIS,Skills Funding Agency,13/05/2016,16-18 Apprenticeships - Centralised Contract Management,Main Funding,CALDERDALE COLLEGE,AP16C_1519,"-131,950.71",Programme System File
BIS,Skills Funding Agency,13/05/2016,16-18 Apprenticeships - Centralised Contract Management,Main Funding,CALDERDALE COLLEGE,AP16R_9543,"204,725.03",Programme System File
BIS,Skills Funding Agency,13/05/2016,16-18 Apprenticeships - Centralised Contract Management,Main Funding,CAMBRIDGE REGIONAL COLLEGE,AP16R_9428,"294,243.43",Programme System File
BIS,Skills Funding Agency,13/05/2016,16-18 Apprenticeships - Centralised Contract Management,Main Funding,CANTERBURY COLLEGE,AP16C_1325,"-179,178.38",Programme System File
BIS,Skills Funding Agency,13/05/2016,16-18 Apprenticeships - Centralised Contract Management,Main Funding,CANTERBURY COLLEGE,AP16C_1511,"-195,372.92",Programme System File
BIS,Skills Funding Agency,13/05/2016,16-18 Apprenticeships - Centralised Contract Management,Main Funding,CANTERBURY COLLEGE,AP16R_9525,"257,959.99",Programme System File
BIS,Skills Funding Agency,13/05/2016,16-18 Apprenticeships - Centralised Contract Management,Main Funding,CAPEL MANOR COLLEGE,AP16R_9570,"18,792.56",Programme System File
BIS,Skills Funding Agency,13/05/2016,16-18 Apprenticeships - Centralised Contract Management,Main Funding,CAPITA PLC,AP16R_10664,"132,394.73",Programme System File
BIS,Skills Funding Agency,13/05/2016,16-18 Apprenticeships - Centralised Contract Management,Main Funding,CAPITAL ENGINEERING GROUP HOLDINGS LTD,AP16R_9912,"38,596.17",Programme System File
BIS,Skills Funding Agency,13/05/2016,16-18 Apprenticeships - Centralised Contract Management,Main Funding,CARE LEARNING CENTRE ISLE OF WIGHT LTD,AP16R_9710,"9,045.12",Programme System File
BIS,Skills Funding Agency,13/05/2016,16-18 Apprenticeships - Centralised Contract Management,Main Funding,CARE TRAINING EAST MIDLANDS LIMITED,AP16C_1304,"-29,272.27",Programme System File
BIS,Skills Funding Agency,13/05/2016,16-18 Apprenticeships - Centralised Contract Management,Main Funding,CARE TRAINING EAST MIDLANDS LIMITED,AP16R_10668,"66,513.93",Programme System File
BIS,Skills Funding Agency,13/05/2016,16-18 Apprenticeships - Centralised Contract Management,Main Funding,CARILLION CONSTRUCTION LTD,AP16R_10673,"642,048.61",Programme System File
BIS,Skills Funding Agency,13/05/2016,16-18 Apprenticeships - Centralised Contract Management,Main Funding,CARLISLE COLLEGE,AP16C_1349,"-23,621.02",Programme System File
BIS,Skills Funding Agency,13/05/2016,16-18 Apprenticeships - Centralised Contract Management,Main Funding,CARLISLE COLLEGE,AP16R_9597,"89,151.23",Programme System File
BIS,Skills Funding Agency,13/05/2016,16-18 Apprenticeships - Centralised Contract Management,Main Funding,CARSHALTON COLLEGE,AP16R_9641,"57,992.58",Programme System File
BIS,Skills Funding Agency,13/05/2016,16-18 Apprenticeships - Centralised Contract Management,Main Funding,CATCH 22 CHARITY LTD,AP16R_9961,"169,832.61",Programme System File
BIS,Skills Funding Agency,13/05/2016,16-18 Apprenticeships - Centralised Contract Management,Main Funding,CENTRAL BEDFORDSHIRE COLLEGE,AP16C_1796,"-86,022.15",Programme System File
BIS,Skills Funding Agency,13/05/2016,16-18 Apprenticeships - Centralised Contract Management,Main Funding,CENTRAL BEDFORDSHIRE COLLEGE,AP16R_10140,"108,155.77",Programme System File
BIS,Skills Funding Agency,13/05/2016,16-18 Apprenticeships - Centralised Contract Management,Main Funding,CENTRAL BEDFORDSHIRE COUNCIL,AP16C_1285,"-3,051.86",Programme System File
BIS,Skills Funding Agency,13/05/2016,16-18 Apprenticeships - Centralised Contract Management,Main Funding,CENTRAL BEDFORDSHIRE COUNCIL,AP16C_2048,-51.86,Programme System File
BIS,Skills Funding Agency,13/05/2016,16-18 Apprenticeships - Centralised Contract Management,Main Funding,CENTRAL BEDFORDSHIRE COUNCIL,AP16R_10578,"5,775.65",Programme System File
BIS,Skills Funding Agency,13/05/2016,16-18 Apprenticeships - Centralised Contract Management,Main Funding,CENTRAL COLLEGE NOTTINGHAM,AP16C_1225,"-42,486.93",Programme System File
BIS,Skills Funding Agency,13/05/2016,16-18 Apprenticeships - Centralised Contract Management,Main Funding,CENTRAL COLLEGE NOTTINGHAM,AP16R_10393,"264,282.49",Programme System File
BIS,Skills Funding Agency,13/05/2016,16-18 Apprenticeships - Centralised Contract Management,Main Funding,CENTRAL SUSSEX COLLEGE,AP16C_1721,"-20,322.17",Programme System File
BIS,Skills Funding Agency,13/05/2016,16-18 Apprenticeships - Centralised Contract Management,Main Funding,CENTRAL SUSSEX COLLEGE,AP16C_812,"-10,669.63",Programme System File
BIS,Skills Funding Agency,13/05/2016,16-18 Apprenticeships - Centralised Contract Management,Main Funding,CENTRAL SUSSEX COLLEGE,AP16R_10003,"94,525.95",Programme System File
BIS,Skills Funding Agency,13/05/2016,16-18 Apprenticeships - Centralised Contract Management,Main Funding,CENTRAL TRAINING ACADEMY LTD,AP16R_10661,"161,746.02",Programme System File
BIS,Skills Funding Agency,13/05/2016,16-18 Apprenticeships - Centralised Contract Management,Main Funding,CHAMBER TRAINING HUMBER LTD,AP16R_10675,"34,162.37",Programme System File
BIS,Skills Funding Agency,13/05/2016,16-18 Apprenticeships - Centralised Contract Management,Main Funding,CHAPMAN BENNETT ASSOCIATES LIMITED,AP16R_9954,"10,837.02",Programme System File
BIS,Skills Funding Agency,13/05/2016,16-18 Apprenticeships - Centralised Contract Management,Main Funding,CHELMSFORD COLLEGE,AP16C_1356,"-4,823.82",Programme System File
BIS,Skills Funding Agency,13/05/2016,16-18 Apprenticeships - Centralised Contract Management,Main Funding,CHELMSFORD COLLEGE,AP16C_1538,"-13,292.34",Programme System File
BIS,Skills Funding Agency,13/05/2016,16-18 Apprenticeships - Centralised Contract Management,Main Funding,CHELMSFORD COLLEGE,AP16R_9620,"64,618.09",Programme System File
BIS,Skills Funding Agency,13/05/2016,16-18 Apprenticeships - Centralised Contract Management,Main Funding,CHESTERFIELD COLLEGE,AP16R_9655,"257,832.08",Programme System File
BIS,Skills Funding Agency,13/05/2016,16-18 Apprenticeships - Centralised Contract Management,Main Funding,CHEYNES MANAGEMENT LTD,AP16C_1399,"-112,585.85",Programme System File
BIS,Skills Funding Agency,13/05/2016,16-18 Apprenticeships - Centralised Contract Management,Main Funding,CHEYNES MANAGEMENT LTD,AP16C_1614,"-120,145.13",Programme System File
BIS,Skills Funding Agency,13/05/2016,16-18 Apprenticeships - Centralised Contract Management,Main Funding,CHEYNES MANAGEMENT LTD,AP16R_9774,"225,526.70",Programme System File
BIS,Skills Funding Agency,13/05/2016,16-18 Apprenticeships - Centralised Contract Management,Main Funding,CHICHESTER COLLEGE,AP16C_1270,"-185,795.82",Programme System File
BIS,Skills Funding Agency,13/05/2016,16-18 Apprenticeships - Centralised Contract Management,Main Funding,CHICHESTER COLLEGE,AP16R_10536,"321,721.79",Programme System File
BIS,Skills Funding Agency,13/05/2016,16-18 Apprenticeships - Centralised Contract Management,Main Funding,CHILDRENS LINKS,AP16C_1306,"-6,727.17",Programme System File
BIS,Skills Funding Agency,13/05/2016,16-18 Apprenticeships - Centralised Contract Management,Main Funding,CHILDRENS LINKS,AP16C_2087,"-4,750.47",Programme System File
BIS,Skills Funding Agency,13/05/2016,16-18 Apprenticeships - Centralised Contract Management,Main Funding,CHILDRENS LINKS,AP16R_10678,"19,984.09",Programme System File
BIS,Skills Funding Agency,13/05/2016,16-18 Apprenticeships - Centralised Contract Management,Main Funding,CHILTERN TRAINING LTD,AP16R_10681,"74,548.08",Programme System File
BIS,Skills Funding Agency,13/05/2016,16-18 Apprenticeships - Centralised Contract Management,Main Funding,CIRENCESTER TERTIARY COLLEGE,AP16R_9679,"17,428.38",Programme System File
BIS,Skills Funding Agency,13/05/2016,16-18 Apprenticeships - Centralised Contract Management,Main Funding,CITB CONSTRUCTIONSKILLS,AP16C_1307,"-1,710,311.61",Programme System File
BIS,Skills Funding Agency,13/05/2016,16-18 Apprenticeships - Centralised Contract Management,Main Funding,CITB CONSTRUCTIONSKILLS,AP16C_2088,"-1,825,851.28",Programme System File
BIS,Skills Funding Agency,13/05/2016,16-18 Apprenticeships - Centralised Contract Management,Main Funding,CITB CONSTRUCTIONSKILLS,AP16R_10684,"3,803,329.28",Programme System File
BIS,Skills Funding Agency,13/05/2016,16-18 Apprenticeships - Centralised Contract Management,Main Funding,CITROEN UK LTD,AP16R_9865,"43,557.54",Programme System File
BIS,Skills Funding Agency,13/05/2016,16-18 Apprenticeships - Centralised Contract Management,Main Funding,CITY AND ISLINGTON COLLEGE,AP16R_9670,"13,555.87",Programme System File
BIS,Skills Funding Agency,13/05/2016,16-18 Apprenticeships - Centralised Contract Management,Main Funding,CITY COLLEGE BRIGHTON & HOVE,AP16R_9686,"45,520.54",Programme System File
BIS,Skills Funding Agency,13/05/2016,16-18 Apprenticeships - Centralised Contract Management,Main Funding,CITY COLLEGE COVENTRY,AP16R_9718,"71,391.41",Programme System File
BIS,Skills Funding Agency,13/05/2016,16-18 Apprenticeships - Centralised Contract Management,Main Funding,CITY COLLEGE PLYMOUTH,AP16C_1204,"-42,015.70",Programme System File
BIS,Skills Funding Agency,13/05/2016,16-18 Apprenticeships - Centralised Contract Management,Main Funding,CITY COLLEGE PLYMOUTH,AP16C_1894,"-39,565.75",Programme System File
BIS,Skills Funding Agency,13/05/2016,16-18 Apprenticeships - Centralised Contract Management,Main Funding,CITY COLLEGE PLYMOUTH,AP16R_10337,"305,867.42",Programme System File
BIS,Skills Funding Agency,13/05/2016,16-18 Apprenticeships - Centralised Contract Management,Main Funding,CITY GATEWAY LTD,AP16R_9872,"16,508.87",Programme System File
BIS,Skills Funding Agency,13/05/2016,16-18 Apprenticeships - Centralised Contract Management,Main Funding,CITY OF BATH COLLEGE,AP16R_9704,"61,981.72",Programme System File
BIS,Skills Funding Agency,13/05/2016,16-18 Apprenticeships - Centralised Contract Management,Main Funding,CITY OF BRISTOL COLLEGE,AP16R_9726,"219,665.65",Programme System File
BIS,Skills Funding Agency,13/05/2016,16-18 Apprenticeships - Centralised Contract Management,Main Funding,CITY OF LONDON ADULT EDUCATION,AP16C_1276,-876.97,Programme System File
BIS,Skills Funding Agency,13/05/2016,16-18 Apprenticeships - Centralised Contract Management,Main Funding,CITY OF LONDON ADULT EDUCATION,AP16C_2029,"-1,147.99",Programme System File
BIS,Skills Funding Agency,13/05/2016,16-18 Apprenticeships - Centralised Contract Management,Main Funding,CITY OF LONDON ADULT EDUCATION,AP16R_10554,"12,019.50",Programme System File
BIS,Skills Funding Agency,13/05/2016,16-18 Apprenticeships - Centralised Contract Management,Main Funding,CITY OF SUNDERLAND COLLEGE,AP16C_1390,"-256,268.98",Programme System File
BIS,Skills Funding Agency,13/05/2016,16-18 Apprenticeships - Centralised Contract Management,Main Funding,CITY OF SUNDERLAND COLLEGE,AP16R_9764,"236,929.83",Programme System File
BIS,Skills Funding Agency,13/05/2016,16-18 Apprenticeships - Centralised Contract Management,Main Funding,CITY OF WESTMINSTER COLLEGE,AP16C_1410,"-27,150.15",Programme System File
BIS,Skills Funding Agency,13/05/2016,16-18 Apprenticeships - Centralised Contract Management,Main Funding,CITY OF WESTMINSTER COLLEGE,AP16C_1646,"-22,043.51",Programme System File
BIS,Skills Funding Agency,13/05/2016,16-18 Apprenticeships - Centralised Contract Management,Main Funding,CITY OF WESTMINSTER COLLEGE,AP16R_9836,"38,761.51",Programme System File
BIS,Skills Funding Agency,13/05/2016,16-18 Apprenticeships - Centralised Contract Management,Main Funding,CITY OF WOLVERHAMPTON COLLEGE,AP16R_10516,"109,771.22",Programme System File
BIS,Skills Funding Agency,13/05/2016,16-18 Apprenticeships - Centralised Contract Management,Main Funding,CITY OF YORK COUNCIL,AP16R_9779,"9,314.87",Programme System File
BIS,Skills Funding Agency,13/05/2016,16-18 Apprenticeships - Centralised Contract Management,Main Funding,CLARKSON EVANS TRAINING LIMITED,AP16R_9957,"23,579.78",Programme System File
BIS,Skills Funding Agency,13/05/2016,16-18 Apprenticeships - Centralised Contract Management,Main Funding,CLEVELAND YOUTH ASSOCIATION,AP16C_1370,"-31,248.74",Programme System File
BIS,Skills Funding Agency,13/05/2016,16-18 Apprenticeships - Centralised Contract Management,Main Funding,CLEVELAND YOUTH ASSOCIATION,AP16C_1568,"-32,134.40",Programme System File
BIS,Skills Funding Agency,13/05/2016,16-18 Apprenticeships - Centralised Contract Management,Main Funding,CLEVELAND YOUTH ASSOCIATION,AP16R_9667,"54,705.61",Programme System File
BIS,Skills Funding Agency,13/05/2016,16-18 Apprenticeships - Centralised Contract Management,Main Funding,COLCHESTER INSTITUTE,AP16C_1401,"-125,772.04",Programme System File
BIS,Skills Funding Agency,13/05/2016,16-18 Apprenticeships - Centralised Contract Management,Main Funding,COLCHESTER INSTITUTE,AP16C_1621,"-164,803.78",Programme System File
BIS,Skills Funding Agency,13/05/2016,16-18 Apprenticeships - Centralised Contract Management,Main Funding,COLCHESTER INSTITUTE,AP16R_9793,"367,459.34",Programme System File
BIS,Skills Funding Agency,13/05/2016,16-18 Apprenticeships - Centralised Contract Management,Main Funding,COLLEGE OF ANIMAL WELFARE LTD,AP16C_2090,"-17,470.02",Programme System File
BIS,Skills Funding Agency,13/05/2016,16-18 Apprenticeships - Centralised Contract Management,Main Funding,COLLEGE OF ANIMAL WELFARE LTD,AP16R_10688,"36,174.34",Programme System File
BIS,Skills Funding Agency,13/05/2016,16-18 Apprenticeships - Centralised Contract Management,Main Funding,COLLEGE OF NORTH EAST LONDON,AP16R_9845,"50,942.62",Programme System File
BIS,Skills Funding Agency,13/05/2016,16-18 Apprenticeships - Centralised Contract Management,Main Funding,COLLEGE OF NORTH WEST LONDON,AP16C_1423,"-56,459.57",Programme System File
BIS,Skills Funding Agency,13/05/2016,16-18 Apprenticeships - Centralised Contract Management,Main Funding,COLLEGE OF NORTH WEST LONDON,AP16C_1658,"-80,241.40",Programme System File
BIS,Skills Funding Agency,13/05/2016,16-18 Apprenticeships - Centralised Contract Management,Main Funding,COLLEGE OF NORTH WEST LONDON,AP16R_9867,"143,982.60",Programme System File
BIS,Skills Funding Agency,13/05/2016,16-18 Apprenticeships - Centralised Contract Management,Main Funding,COLLEGE OF RICHARD COLLYER,AP16R_9919,"2,392.00",Programme System File
BIS,Skills Funding Agency,13/05/2016,16-18 Apprenticeships - Centralised Contract Management,Main Funding,COLLEGE OF WEST ANGLIA,AP16C_1272,"-17,404.75",Programme System File
BIS,Skills Funding Agency,13/05/2016,16-18 Apprenticeships - Centralised Contract Management,Main Funding,COLLEGE OF WEST ANGLIA,AP16R_10543,"158,881.20",Programme System File
BIS,Skills Funding Agency,13/05/2016,16-18 Apprenticeships - Centralised Contract Management,Main Funding,COMMUNITY TRAINING SERVICES LTD,AP16R_10695,"26,298.56",Programme System File
BIS,Skills Funding Agency,13/05/2016,16-18 Apprenticeships - Centralised Contract Management,Main Funding,COMPASS GROUP UK & IRELAND LTD,AP16R_9948,"3,215.96",Programme System File
BIS,Skills Funding Agency,13/05/2016,16-18 Apprenticeships - Centralised Contract Management,Main Funding,CONSORTIA TRAINING LIMITED,AP16C_1736,"-77,884.62",Programme System File
BIS,Skills Funding Agency,13/05/2016,16-18 Apprenticeships - Centralised Contract Management,Main Funding,CONSORTIA TRAINING LIMITED,AP16R_10025,"151,745.91",Programme System File
BIS,Skills Funding Agency,13/05/2016,16-18 Apprenticeships - Centralised Contract Management,Main Funding,CORNWALL COLLEGE,AP16C_1430,"-86,632.56",Programme System File
BIS,Skills Funding Agency,13/05/2016,16-18 Apprenticeships - Centralised Contract Management,Main Funding,CORNWALL COLLEGE,AP16C_1675,"-57,295.20",Programme System File
BIS,Skills Funding Agency,13/05/2016,16-18 Apprenticeships - Centralised Contract Management,Main Funding,CORNWALL COLLEGE,AP16R_9895,"362,075.82",Programme System File
BIS,Skills Funding Agency,13/05/2016,16-18 Apprenticeships - Centralised Contract Management,Main Funding,COVENTRY & WARWICKSHIRE CHAMBERS OF COMMERCE TRAINING LIMITED,AP16R_10670,"78,022.02",Programme System File
BIS,Skills Funding Agency,13/05/2016,16-18 Apprenticeships - Centralised Contract Management,Main Funding,COVET LTD,AP16C_1739,"-23,485.53",Programme System File
BIS,Skills Funding Agency,13/05/2016,16-18 Apprenticeships - Centralised Contract Management,Main Funding,COVET LTD,AP16C_823,"-26,707.91",Programme System File
BIS,Skills Funding Agency,13/05/2016,16-18 Apprenticeships - Centralised Contract Management,Main Funding,COVET LTD,AP16R_10028,"44,987.97",Programme System File
BIS,Skills Funding Agency,13/05/2016,16-18 Apprenticeships - Centralised Contract Management,Main Funding,CRACKERJACK TRAINING LTD,AP16R_10683,"33,010.71",Programme System File
BIS,Skills Funding Agency,13/05/2016,16-18 Apprenticeships - Centralised Contract Management,Main Funding,CRAVEN COLLEGE,AP16C_1444,"-59,836.98",Programme System File
BIS,Skills Funding Agency,13/05/2016,16-18 Apprenticeships - Centralised Contract Management,Main Funding,CRAVEN COLLEGE,AP16C_1692,"-72,776.36",Programme System File
BIS,Skills Funding Agency,13/05/2016,16-18 Apprenticeships - Centralised Contract Management,Main Funding,CRAVEN COLLEGE,AP16R_9933,"176,403.59",Programme System File
BIS,Skills Funding Agency,13/05/2016,16-18 Apprenticeships - Centralised Contract Management,Main Funding,CREATIVE PROCESS,AP16R_9941,"15,216.75",Programme System File
BIS,Skills Funding Agency,13/05/2016,16-18 Apprenticeships - Centralised Contract Management,Main Funding,CROYDON COLLEGE,AP16C_1451,"-266,681.43",Programme System File
BIS,Skills Funding Agency,13/05/2016,16-18 Apprenticeships - Centralised Contract Management,Main Funding,CROYDON COLLEGE,AP16C_1704,"-160,856.86",Programme System File
BIS,Skills Funding Agency,13/05/2016,16-18 Apprenticeships - Centralised Contract Management,Main Funding,CROYDON COLLEGE,AP16R_9968,"330,403.23",Programme System File
BIS,Skills Funding Agency,13/05/2016,16-18 Apprenticeships - Centralised Contract Management,Main Funding,CSM CONSULTING LTD,AP16C_1309,"-19,952.99",Programme System File
BIS,Skills Funding Agency,13/05/2016,16-18 Apprenticeships - Centralised Contract Management,Main Funding,CSM CONSULTING LTD,AP16C_2092,"-59,617.35",Programme System File
BIS,Skills Funding Agency,13/05/2016,16-18 Apprenticeships - Centralised Contract Management,Main Funding,CSM CONSULTING LTD,AP16R_10690,"74,972.69",Programme System File
BIS,Skills Funding Agency,13/05/2016,16-18 Apprenticeships - Centralised Contract Management,Main Funding,CUMBRIA COUNTY COUNCIL,AP16R_9989,879.15,Programme System File
BIS,Skills Funding Agency,13/05/2016,16-18 Apprenticeships - Centralised Contract Management,Main Funding,D M T BUSINESS SERVICES LTD,AP16R_9407,"12,457.94",Programme System File
BIS,Skills Funding Agency,13/05/2016,16-18 Apprenticeships - Centralised Contract Management,Main Funding,D MANTLE LIMITED,AP16R_10008,"3,911.36",Programme System File
BIS,Skills Funding Agency,13/05/2016,16-18 Apprenticeships - Centralised Contract Management,Main Funding,DAMAR LTD,AP16C_1310,"-365,521.31",Programme System File
BIS,Skills Funding Agency,13/05/2016,16-18 Apprenticeships - Centralised Contract Management,Main Funding,DAMAR LTD,AP16C_2094,"-363,704.01",Programme System File
BIS,Skills Funding Agency,13/05/2016,16-18 Apprenticeships - Centralised Contract Management,Main Funding,DAMAR LTD,AP16R_10697,"522,859.18",Programme System File
BIS,Skills Funding Agency,13/05/2016,16-18 Apprenticeships - Centralised Contract Management,Main Funding,DARLINGTON BOROUGH COUNCIL,AP16C_1753,"-11,789.23",Programme System File
BIS,Skills Funding Agency,13/05/2016,16-18 Apprenticeships - Centralised Contract Management,Main Funding,DARLINGTON BOROUGH COUNCIL,AP16C_822,"-8,555.68",Programme System File
BIS,Skills Funding Agency,13/05/2016,16-18 Apprenticeships - Centralised Contract Management,Main Funding,DARLINGTON BOROUGH COUNCIL,AP16R_10060,"24,390.28",Programme System File
BIS,Skills Funding Agency,13/05/2016,16-18 Apprenticeships - Centralised Contract Management,Main Funding,DARLINGTON COLLEGE,AP16C_1762,"-270,216.06",Programme System File
BIS,Skills Funding Agency,13/05/2016,16-18 Apprenticeships - Centralised Contract Management,Main Funding,DARLINGTON COLLEGE,AP16R_10075,"340,885.34",Programme System File
BIS,Skills Funding Agency,13/05/2016,16-18 Apprenticeships - Centralised Contract Management,Main Funding,DART LTD,AP16R_10693,"31,091.68",Programme System File
BIS,Skills Funding Agency,13/05/2016,16-18 Apprenticeships - Centralised Contract Management,Main Funding,DAVIDSON TRAINING UK LIMITED,AP16R_10696,"9,729.04",Programme System File
BIS,Skills Funding Agency,13/05/2016,16-18 Apprenticeships - Centralised Contract Management,Main Funding,DAWN HODGE ASSOCIATES LTD,AP16R_9899,"16,145.03",Programme System File
BIS,Skills Funding Agency,13/05/2016,16-18 Apprenticeships - Centralised Contract Management,Main Funding,DEARNE VALLEY COLLEGE,AP16C_1789,"-50,717.89",Programme System File
BIS,Skills Funding Agency,13/05/2016,16-18 Apprenticeships - Centralised Contract Management,Main Funding,DEARNE VALLEY COLLEGE,AP16C_854,"-37,334.94",Programme System File
BIS,Skills Funding Agency,13/05/2016,16-18 Apprenticeships - Centralised Contract Management,Main Funding,DEARNE VALLEY COLLEGE,AP16R_10131,"94,968.81",Programme System File
BIS,Skills Funding Agency,13/05/2016,16-18 Apprenticeships - Centralised Contract Management,Main Funding,DERBY CITY COUNCIL,AP16C_1737,"-14,599.50",Programme System File
BIS,Skills Funding Agency,13/05/2016,16-18 Apprenticeships - Centralised Contract Management,Main Funding,DERBY CITY COUNCIL,AP16C_841,"-14,177.80",Programme System File
BIS,Skills Funding Agency,13/05/2016,16-18 Apprenticeships - Centralised Contract Management,Main Funding,DERBY CITY COUNCIL,AP16R_10032,"29,574.73",Programme System File
BIS,Skills Funding Agency,13/05/2016,16-18 Apprenticeships - Centralised Contract Management,Main Funding,DERBY COLLEGE,AP16C_1768,"-150,189.14",Programme System File
BIS,Skills Funding Agency,13/05/2016,16-18 Apprenticeships - Centralised Contract Management,Main Funding,DERBY COLLEGE,AP16C_834,"-159,210.23",Programme System File
BIS,Skills Funding Agency,13/05/2016,16-18 Apprenticeships - Centralised Contract Management,Main Funding,DERBY COLLEGE,AP16R_10092,"350,454.39",Programme System File
BIS,Skills Funding Agency,13/05/2016,16-18 Apprenticeships - Centralised Contract Management,Main Funding,DERBYSHIRE & NOTTINGHAMSHIRE CHAMBER OF COMMERCE & INDUSTRY,AP16R_10701,"22,685.17",Programme System File
BIS,Skills Funding Agency,13/05/2016,16-18 Apprenticeships - Centralised Contract Management,Main Funding,DERBYSHIRE COUNTY COUNCIL,AP16C_1785,"-35,930.29",Programme System File
BIS,Skills Funding Agency,13/05/2016,16-18 Apprenticeships - Centralised Contract Management,Main Funding,DERBYSHIRE COUNTY COUNCIL,AP16C_847,"-36,237.15",Programme System File
BIS,Skills Funding Agency,13/05/2016,16-18 Apprenticeships - Centralised Contract Management,Main Funding,DERBYSHIRE COUNTY COUNCIL,AP16R_10121,"42,479.31",Programme System File
BIS,Skills Funding Agency,13/05/2016,16-18 Apprenticeships - Centralised Contract Management,Main Funding,DERBYSHIRE NETWORK,AP16R_9716,"28,795.44",Programme System File
BIS,Skills Funding Agency,13/05/2016,16-18 Apprenticeships - Centralised Contract Management,Main Funding,DERWENTSIDE COLLEGE,AP16C_1793,"-92,254.69",Programme System File
BIS,Skills Funding Agency,13/05/2016,16-18 Apprenticeships - Centralised Contract Management,Main Funding,DERWENTSIDE COLLEGE,AP16R_10135,"182,593.66",Programme System File
BIS,Skills Funding Agency,13/05/2016,16-18 Apprenticeships - Centralised Contract Management,Main Funding,DHL INTERNATIONAL UK LTD,AP16C_1703,"-73,611.35",Programme System File
BIS,Skills Funding Agency,13/05/2016,16-18 Apprenticeships - Centralised Contract Management,Main Funding,DHL INTERNATIONAL UK LTD,AP16R_9959,"83,273.05",Programme System File
BIS,Skills Funding Agency,13/05/2016,16-18 Apprenticeships - Centralised Contract Management,Main Funding,DIDAC LTD,AP16R_10705,"19,491.63",Programme System File
BIS,Skills Funding Agency,13/05/2016,16-18 Apprenticeships - Centralised Contract Management,Main Funding,DIMENSIONS TRAINING SOLUTIONS LTD,AP16R_9405,"21,225.76",Programme System File
BIS,Skills Funding Agency,13/05/2016,16-18 Apprenticeships - Centralised Contract Management,Main Funding,DONCASTER COLLEGE,AP16C_1791,"-2,116.29",Programme System File
BIS,Skills Funding Agency,13/05/2016,16-18 Apprenticeships - Centralised Contract Management,Main Funding,DONCASTER COLLEGE,AP16R_10133,"116,167.31",Programme System File
BIS,Skills Funding Agency,13/05/2016,16-18 Apprenticeships - Centralised Contract Management,Main Funding,DONCASTER METRO BOROUGH COUNCIL,AP16R_10137,"6,065.22",Programme System File
BIS,Skills Funding Agency,13/05/2016,16-18 Apprenticeships - Centralised Contract Management,Main Funding,DONCASTER ROTHERHAM & DISTRICT MOTOR TRADES GROUP TRAINING ASSOCIATION LTD,AP16C_1311,"-6,042.37",Programme System File
BIS,Skills Funding Agency,13/05/2016,16-18 Apprenticeships - Centralised Contract Management,Main Funding,DONCASTER ROTHERHAM & DISTRICT MOTOR TRADES GROUP TRAINING ASSOCIATION LTD,AP16C_2096,"-6,042.37",Programme System File
BIS,Skills Funding Agency,13/05/2016,16-18 Apprenticeships - Centralised Contract Management,Main Funding,DONCASTER ROTHERHAM & DISTRICT MOTOR TRADES GROUP TRAINING ASSOCIATION LTD,AP16R_10699,"75,534.19",Programme System File
BIS,Skills Funding Agency,13/05/2016,16-18 Apprenticeships - Centralised Contract Management,Main Funding,DOOSAN BABCOCK LTD,AP16R_9562,"60,452.94",Programme System File
BIS,Skills Funding Agency,13/05/2016,16-18 Apprenticeships - Centralised Contract Management,Main Funding,DUDLEY COLLEGE OF TECHNOLOGY,AP16C_1274,"-388,204.37",Programme System File
BIS,Skills Funding Agency,13/05/2016,16-18 Apprenticeships - Centralised Contract Management,Main Funding,DUDLEY COLLEGE OF TECHNOLOGY,AP16C_2025,"-396,033.45",Programme System File
BIS,Skills Funding Agency,13/05/2016,16-18 Apprenticeships - Centralised Contract Management,Main Funding,DUDLEY COLLEGE OF TECHNOLOGY,AP16R_10547,"802,055.18",Programme System File
BIS,Skills Funding Agency,13/05/2016,16-18 Apprenticeships - Centralised Contract Management,Main Funding,DURHAM COUNTY COUNCIL,AP16C_1800,"-6,099.02",Programme System File
BIS,Skills Funding Agency,13/05/2016,16-18 Apprenticeships - Centralised Contract Management,Main Funding,DURHAM COUNTY COUNCIL,AP16C_892,"-4,515.06",Programme System File
BIS,Skills Funding Agency,13/05/2016,16-18 Apprenticeships - Centralised Contract Management,Main Funding,DURHAM COUNTY COUNCIL,AP16R_10145,"12,035.30",Programme System File
BIS,Skills Funding Agency,13/05/2016,16-18 Apprenticeships - Centralised Contract Management,Main Funding,E TRAINING LTD,AP16R_10703,"6,617.82",Programme System File
BIS,Skills Funding Agency,13/05/2016,16-18 Apprenticeships - Centralised Contract Management,Main Funding,EALING HAMMERSMITH & WEST LONDON COLLEGE,AP16R_10148,"16,893.02",Programme System File
BIS,Skills Funding Agency,13/05/2016,16-18 Apprenticeships - Centralised Contract Management,Main Funding,EAST BERKSHIRE COLLEGE,AP16R_10138,"94,288.72",Programme System File
BIS,Skills Funding Agency,13/05/2016,16-18 Apprenticeships - Centralised Contract Management,Main Funding,EAST DURHAM COLLEGE,AP16C_1798,"-23,244.22",Programme System File
BIS,Skills Funding Agency,13/05/2016,16-18 Apprenticeships - Centralised Contract Management,Main Funding,EAST DURHAM COLLEGE,AP16C_886,"-25,566.04",Programme System File
BIS,Skills Funding Agency,13/05/2016,16-18 Apprenticeships - Centralised Contract Management,Main Funding,EAST DURHAM COLLEGE,AP16R_10142,"50,900.10",Programme System File
BIS,Skills Funding Agency,13/05/2016,16-18 Apprenticeships - Centralised Contract Management,Main Funding,EAST KENT COLLEGE,AP16R_10458,"58,666.32",Programme System File
BIS,Skills Funding Agency,13/05/2016,16-18 Apprenticeships - Centralised Contract Management,Main Funding,EAST LINDSEY INFORMATION TECHNOLOGY CENTRE,AP16R_9416,"32,686.04",Programme System File
BIS,Skills Funding Agency,13/05/2016,16-18 Apprenticeships - Centralised Contract Management,Main Funding,EAST RIDING COLLEGE,AP16C_1801,"-123,556.09",Programme System File
BIS,Skills Funding Agency,13/05/2016,16-18 Apprenticeships - Centralised Contract Management,Main Funding,EAST RIDING COLLEGE,AP16C_901,"-121,327.55",Programme System File
BIS,Skills Funding Agency,13/05/2016,16-18 Apprenticeships - Centralised Contract Management,Main Funding,EAST RIDING COLLEGE,AP16R_10146,"165,578.57",Programme System File
BIS,Skills Funding Agency,13/05/2016,16-18 Apprenticeships - Centralised Contract Management,Main Funding,EAST RIDING OF YORKSHIRE COUNCIL,AP16R_10558,"5,085.30",Programme System File
BIS,Skills Funding Agency,13/05/2016,16-18 Apprenticeships - Centralised Contract Management,Main Funding,EAST SURREY COLLEGE,AP16C_1804,"-127,700.62",Programme System File
BIS,Skills Funding Agency,13/05/2016,16-18 Apprenticeships - Centralised Contract Management,Main Funding,EAST SURREY COLLEGE,AP16C_915,"-114,391.42",Programme System File
BIS,Skills Funding Agency,13/05/2016,16-18 Apprenticeships - Centralised Contract Management,Main Funding,EAST SURREY COLLEGE,AP16R_10150,"171,309.61",Programme System File
BIS,Skills Funding Agency,13/05/2016,16-18 Apprenticeships - Centralised Contract Management,Main Funding,EASTLEIGH COLLEGE,AP16C_1805,"-239,651.70",Programme System File
BIS,Skills Funding Agency,13/05/2016,16-18 Apprenticeships - Centralised Contract Management,Main Funding,EASTLEIGH COLLEGE,AP16C_926,"-186,102.08",Programme System File
BIS,Skills Funding Agency,13/05/2016,16-18 Apprenticeships - Centralised Contract Management,Main Funding,EASTLEIGH COLLEGE,AP16R_10152,"348,573.32",Programme System File
BIS,Skills Funding Agency,13/05/2016,16-18 Apprenticeships - Centralised Contract Management,Main Funding,EASTON & OTLEY COLLEGE,AP16C_2038,"-3,469.36",Programme System File
BIS,Skills Funding Agency,13/05/2016,16-18 Apprenticeships - Centralised Contract Management,Main Funding,EASTON & OTLEY COLLEGE,AP16R_10566,"64,769.66",Programme System File
BIS,Skills Funding Agency,13/05/2016,16-18 Apprenticeships - Centralised Contract Management,Main Funding,ECONOMIC SOLUTIONS LTD,AP16R_9546,"469,175.70",Programme System File
BIS,Skills Funding Agency,13/05/2016,16-18 Apprenticeships - Centralised Contract Management,Main Funding,EDEN TRAINING SOLUTIONS LTD,AP16C_1453,-488.42,Programme System File
BIS,Skills Funding Agency,13/05/2016,16-18 Apprenticeships - Centralised Contract Management,Main Funding,EDEN TRAINING SOLUTIONS LTD,AP16C_1712,-250.41,Programme System File
BIS,Skills Funding Agency,13/05/2016,16-18 Apprenticeships - Centralised Contract Management,Main Funding,EDEN TRAINING SOLUTIONS LTD,AP16R_9978,"28,070.10",Programme System File
BIS,Skills Funding Agency,13/05/2016,16-18 Apprenticeships - Centralised Contract Management,Main Funding,EDUCATION & TRAINING SKILLS LTD,AP16C_1314,"-49,156.04",Programme System File
BIS,Skills Funding Agency,13/05/2016,16-18 Apprenticeships - Centralised Contract Management,Main Funding,EDUCATION & TRAINING SKILLS LTD,AP16C_1462,"-49,210.41",Programme System File
BIS,Skills Funding Agency,13/05/2016,16-18 Apprenticeships - Centralised Contract Management,Main Funding,EDUCATION & TRAINING SKILLS LTD,AP16R_9412,"72,294.98",Programme System File
BIS,Skills Funding Agency,13/05/2016,16-18 Apprenticeships - Centralised Contract Management,Main Funding,EEF LTD,AP16R_9969,"107,283.77",Programme System File
BIS,Skills Funding Agency,13/05/2016,16-18 Apprenticeships - Centralised Contract Management,Main Funding,ELATT,AP16C_1313,"-17,025.46",Programme System File
BIS,Skills Funding Agency,13/05/2016,16-18 Apprenticeships - Centralised Contract Management,Main Funding,ELATT,AP16C_2099,"-15,992.51",Programme System File
BIS,Skills Funding Agency,13/05/2016,16-18 Apprenticeships - Centralised Contract Management,Main Funding,ELATT,AP16R_10706,"29,334.72",Programme System File
BIS,Skills Funding Agency,13/05/2016,16-18 Apprenticeships - Centralised Contract Management,Main Funding,ENFIELD LONDON BOROUGH COUNCIL,AP16R_10154,"5,721.50",Programme System File
BIS,Skills Funding Agency,13/05/2016,16-18 Apprenticeships - Centralised Contract Management,Main Funding,ENGLAND & WALES CRICKET BOARD LTD,AP16C_1421,"-7,702.12",Programme System File
BIS,Skills Funding Agency,13/05/2016,16-18 Apprenticeships - Centralised Contract Management,Main Funding,ENGLAND & WALES CRICKET BOARD LTD,AP16C_1654,"-7,702.12",Programme System File
BIS,Skills Funding Agency,13/05/2016,16-18 Apprenticeships - Centralised Contract Management,Main Funding,ENGLAND & WALES CRICKET BOARD LTD,AP16R_9855,"38,472.40",Programme System File
BIS,Skills Funding Agency,13/05/2016,16-18 Apprenticeships - Centralised Contract Management,Main Funding,EON UK PLC,AP16C_1699,"-47,388.92",Programme System File
BIS,Skills Funding Agency,13/05/2016,16-18 Apprenticeships - Centralised Contract Management,Main Funding,EON UK PLC,AP16R_9939,"56,289.67",Programme System File
BIS,Skills Funding Agency,13/05/2016,16-18 Apprenticeships - Centralised Contract Management,Main Funding,EPPING FOREST COLLEGE,AP16C_1809,"-41,190.45",Programme System File
BIS,Skills Funding Agency,13/05/2016,16-18 Apprenticeships - Centralised Contract Management,Main Funding,EPPING FOREST COLLEGE,AP16R_10158,"63,432.60",Programme System File
BIS,Skills Funding Agency,13/05/2016,16-18 Apprenticeships - Centralised Contract Management,Main Funding,EQL SOLUTIONS LTD,AP16C_1773,"-543,386.15",Programme System File
BIS,Skills Funding Agency,13/05/2016,16-18 Apprenticeships - Centralised Contract Management,Main Funding,EQL SOLUTIONS LTD,AP16C_837,"-556,185.41",Programme System File
BIS,Skills Funding Agency,13/05/2016,16-18 Apprenticeships - Centralised Contract Management,Main Funding,EQL SOLUTIONS LTD,AP16R_10095,"769,529.14",Programme System File
BIS,Skills Funding Agency,13/05/2016,16-18 Apprenticeships - Centralised Contract Management,Main Funding,ESG (SKILLS) LIMITED,AP16R_10041,"325,100.13",Programme System File
BIS,Skills Funding Agency,13/05/2016,16-18 Apprenticeships - Centralised Contract Management,Main Funding,ESSEX COUNTY COUNCIL,AP16C_953,"-12,201.30",Programme System File
BIS,Skills Funding Agency,13/05/2016,16-18 Apprenticeships - Centralised Contract Management,Main Funding,ESSEX COUNTY COUNCIL,AP16R_10160,"26,822.09",Programme System File
BIS,Skills Funding Agency,13/05/2016,16-18 Apprenticeships - Centralised Contract Management,Main Funding,EXETER COLLEGE,AP16C_1807,"-223,946.37",Programme System File
BIS,Skills Funding Agency,13/05/2016,16-18 Apprenticeships - Centralised Contract Management,Main Funding,EXETER COLLEGE,AP16C_937,"-219,368.42",Programme System File
BIS,Skills Funding Agency,13/05/2016,16-18 Apprenticeships - Centralised Contract Management,Main Funding,EXETER COLLEGE,AP16R_10155,"393,379.20",Programme System File
BIS,Skills Funding Agency,13/05/2016,16-18 Apprenticeships - Centralised Contract Management,Main Funding,FAREHAM COLLEGE,AP16C_2023,"-62,689.79",Programme System File
BIS,Skills Funding Agency,13/05/2016,16-18 Apprenticeships - Centralised Contract Management,Main Funding,FAREHAM COLLEGE,AP16R_10545,"198,433.79",Programme System File
BIS,Skills Funding Agency,13/05/2016,16-18 Apprenticeships - Centralised Contract Management,Main Funding,FAREPORT TRAINING ORGANISATION LTD,AP16C_1316,"-17,022.10",Programme System File
BIS,Skills Funding Agency,13/05/2016,16-18 Apprenticeships - Centralised Contract Management,Main Funding,FAREPORT TRAINING ORGANISATION LTD,AP16C_1466,"-18,533.76",Programme System File
BIS,Skills Funding Agency,13/05/2016,16-18 Apprenticeships - Centralised Contract Management,Main Funding,FAREPORT TRAINING ORGANISATION LTD,AP16R_9422,"55,628.08",Programme System File
BIS,Skills Funding Agency,13/05/2016,16-18 Apprenticeships - Centralised Contract Management,Main Funding,FARNBOROUGH COLLEGE,AP16C_1811,"-16,313.70",Programme System File
BIS,Skills Funding Agency,13/05/2016,16-18 Apprenticeships - Centralised Contract Management,Main Funding,FARNBOROUGH COLLEGE,AP16C_970,"-1,335.78",Programme System File
BIS,Skills Funding Agency,13/05/2016,16-18 Apprenticeships - Centralised Contract Management,Main Funding,FARNBOROUGH COLLEGE,AP16R_10162,"96,289.97",Programme System File
BIS,Skills Funding Agency,13/05/2016,16-18 Apprenticeships - Centralised Contract Management,Main Funding,FASHION RETAIL ACADEMY,AP16R_9795,985.52,Programme System File
BIS,Skills Funding Agency,13/05/2016,16-18 Apprenticeships - Centralised Contract Management,Main Funding,FINMECCANICA UK LTD,AP16C_1435,"-102,185.38",Programme System File
BIS,Skills Funding Agency,13/05/2016,16-18 Apprenticeships - Centralised Contract Management,Main Funding,FINMECCANICA UK LTD,AP16C_1664,"-111,862.24",Programme System File
BIS,Skills Funding Agency,13/05/2016,16-18 Apprenticeships - Centralised Contract Management,Main Funding,FINMECCANICA UK LTD,AP16R_9874,"136,653.91",Programme System File
BIS,Skills Funding Agency,13/05/2016,16-18 Apprenticeships - Centralised Contract Management,Main Funding,FINNING (UK) LTD,AP16R_9415,"16,670.62",Programme System File
BIS,Skills Funding Agency,13/05/2016,16-18 Apprenticeships - Centralised Contract Management,Main Funding,FIRST CITY TRAINING LTD,AP16R_9811,998.39,Programme System File
BIS,Skills Funding Agency,13/05/2016,16-18 Apprenticeships - Centralised Contract Management,Main Funding,FIRST4SKILLS LIMITED,AP16R_10069,"316,701.41",Programme System File
BIS,Skills Funding Agency,13/05/2016,16-18 Apprenticeships - Centralised Contract Management,Main Funding,FNTC TRAINING & CONSULTANCY LTD,AP16R_9426,"29,732.60",Programme System File
BIS,Skills Funding Agency,13/05/2016,16-18 Apprenticeships - Centralised Contract Management,Main Funding,FOCUS TRAINING & DEVELOPMENT LTD,AP16R_9805,"16,976.50",Programme System File
BIS,Skills Funding Agency,13/05/2016,16-18 Apprenticeships - Centralised Contract Management,Main Funding,FOCUS TRAINING (SW) LTD,AP16C_1449,"-132,157.60",Programme System File
BIS,Skills Funding Agency,13/05/2016,16-18 Apprenticeships - Centralised Contract Management,Main Funding,FOCUS TRAINING (SW) LTD,AP16C_1706,"-121,959.87",Programme System File
BIS,Skills Funding Agency,13/05/2016,16-18 Apprenticeships - Centralised Contract Management,Main Funding,FOCUS TRAINING (SW) LTD,AP16R_9971,"186,134.39",Programme System File
BIS,Skills Funding Agency,13/05/2016,16-18 Apprenticeships - Centralised Contract Management,Main Funding,FOOTBALL ASSOCIATION PREMIER LEAGUE LTD,AP16C_1778,"-16,671.66",Programme System File
BIS,Skills Funding Agency,13/05/2016,16-18 Apprenticeships - Centralised Contract Management,Main Funding,FOOTBALL ASSOCIATION PREMIER LEAGUE LTD,AP16R_10099,"167,199.30",Programme System File
BIS,Skills Funding Agency,13/05/2016,16-18 Apprenticeships - Centralised Contract Management,Main Funding,FRANCESCO GROUP HOLDINGS LTD,AP16C_1315,"-14,358.28",Programme System File
BIS,Skills Funding Agency,13/05/2016,16-18 Apprenticeships - Centralised Contract Management,Main Funding,FRANCESCO GROUP HOLDINGS LTD,AP16C_1465,"-26,047.10",Programme System File
BIS,Skills Funding Agency,13/05/2016,16-18 Apprenticeships - Centralised Contract Management,Main Funding,FRANCESCO GROUP HOLDINGS LTD,AP16R_9421,"99,377.55",Programme System File
BIS,Skills Funding Agency,13/05/2016,16-18 Apprenticeships - Centralised Contract Management,Main Funding,FRANKLIN COLLEGE,AP16C_1813,"-14,050.49",Programme System File
BIS,Skills Funding Agency,13/05/2016,16-18 Apprenticeships - Centralised Contract Management,Main Funding,FRANKLIN COLLEGE,AP16C_978,"-13,960.69",Programme System File
BIS,Skills Funding Agency,13/05/2016,16-18 Apprenticeships - Centralised Contract Management,Main Funding,FRANKLIN COLLEGE,AP16R_10165,"18,981.39",Programme System File
BIS,Skills Funding Agency,13/05/2016,16-18 Apprenticeships - Centralised Contract Management,Main Funding,FURNESS COLLEGE,AP16R_10169,"42,227.62",Programme System File
BIS,Skills Funding Agency,13/05/2016,16-18 Apprenticeships - Centralised Contract Management,Main Funding,G B TRAINING UK LTD,AP16R_9431,"25,154.96",Programme System File
BIS,Skills Funding Agency,13/05/2016,16-18 Apprenticeships - Centralised Contract Management,Main Funding,GATESHEAD COLLEGE,AP16R_10173,"129,066.42",Programme System File
BIS,Skills Funding Agency,13/05/2016,16-18 Apprenticeships - Centralised Contract Management,Main Funding,GATESHEAD COUNCIL,AP16C_1815,"-47,124.49",Programme System File
BIS,Skills Funding Agency,13/05/2016,16-18 Apprenticeships - Centralised Contract Management,Main Funding,GATESHEAD COUNCIL,AP16C_992,"-230,889.79",Programme System File
BIS,Skills Funding Agency,13/05/2016,16-18 Apprenticeships - Centralised Contract Management,Main Funding,GATESHEAD COUNCIL,AP16R_10172,"299,087.82",Programme System File
BIS,Skills Funding Agency,13/05/2016,16-18 Apprenticeships - Centralised Contract Management,Main Funding,GEN II ENGINEERING & TECHNOLOGY TRAINING LTD,AP16C_1317,"-232,393.22",Programme System File
BIS,Skills Funding Agency,13/05/2016,16-18 Apprenticeships - Centralised Contract Management,Main Funding,GEN II ENGINEERING & TECHNOLOGY TRAINING LTD,AP16C_1468,"-256,850.30",Programme System File
BIS,Skills Funding Agency,13/05/2016,16-18 Apprenticeships - Centralised Contract Management,Main Funding,GEN II ENGINEERING & TECHNOLOGY TRAINING LTD,AP16R_9429,"487,725.93",Programme System File
BIS,Skills Funding Agency,13/05/2016,16-18 Apprenticeships - Centralised Contract Management,Main Funding,GHQ TRAINING LTD,AP16R_9825,"28,333.72",Programme System File
BIS,Skills Funding Agency,13/05/2016,16-18 Apprenticeships - Centralised Contract Management,Main Funding,GI GROUP RECRUITMENT LTD,AP16R_10073,"16,486.50",Programme System File
BIS,Skills Funding Agency,13/05/2016,16-18 Apprenticeships - Centralised Contract Management,Main Funding,GLOUCESTERSHIRE COLLEGE OF ARTS & TECHNOLOGY,AP16C_1005,"-179,121.65",Programme System File
BIS,Skills Funding Agency,13/05/2016,16-18 Apprenticeships - Centralised Contract Management,Main Funding,GLOUCESTERSHIRE COLLEGE OF ARTS & TECHNOLOGY,AP16C_1816,"-179,589.46",Programme System File
BIS,Skills Funding Agency,13/05/2016,16-18 Apprenticeships - Centralised Contract Management,Main Funding,GLOUCESTERSHIRE COLLEGE OF ARTS & TECHNOLOGY,AP16R_10174,"336,349.51",Programme System File
BIS,Skills Funding Agency,13/05/2016,16-18 Apprenticeships - Centralised Contract Management,Main Funding,GLOUCESTERSHIRE COUNTY COUNCIL,AP16R_10177,"1,768.40",Programme System File
BIS,Skills Funding Agency,13/05/2016,16-18 Apprenticeships - Centralised Contract Management,Main Funding,GLOUCESTERSHIRE ENGINEERING TRAINING LTD,AP16R_9432,"85,905.01",Programme System File
BIS,Skills Funding Agency,13/05/2016,16-18 Apprenticeships - Centralised Contract Management,Main Funding,GORDON FRANKS TRAINING LIMITED,AP16R_10086,"18,843.71",Programme System File
BIS,Skills Funding Agency,13/05/2016,16-18 Apprenticeships - Centralised Contract Management,Main Funding,GP STRATEGIES TRAINING LTD,AP16C_1755,"-830,942.08",Programme System File
BIS,Skills Funding Agency,13/05/2016,16-18 Apprenticeships - Centralised Contract Management,Main Funding,GP STRATEGIES TRAINING LTD,AP16R_10057,"997,213.68",Programme System File
BIS,Skills Funding Agency,13/05/2016,16-18 Apprenticeships - Centralised Contract Management,Main Funding,GR & MM BLACKLEDGE PLC,AP16C_2081,"-43,245.02",Programme System File
BIS,Skills Funding Agency,13/05/2016,16-18 Apprenticeships - Centralised Contract Management,Main Funding,GR & MM BLACKLEDGE PLC,AP16R_10647,"57,464.74",Programme System File
BIS,Skills Funding Agency,13/05/2016,16-18 Apprenticeships - Centralised Contract Management,Main Funding,GRANTHAM COLLEGE,AP16R_10181,"51,602.85",Programme System File
BIS,Skills Funding Agency,13/05/2016,16-18 Apprenticeships - Centralised Contract Management,Main Funding,GREAT YARMOUTH COLLEGE,AP16R_10183,"27,548.82",Programme System File
BIS,Skills Funding Agency,13/05/2016,16-18 Apprenticeships - Centralised Contract Management,Main Funding,GREENBANK SERVICES LTD,AP16R_9963,"1,626.20",Programme System File
BIS,Skills Funding Agency,13/05/2016,16-18 Apprenticeships - Centralised Contract Management,Main Funding,GREENWICH COMMUNITY COLLEGE AT PLUMSTEAD CENTRE,AP16R_10176,729.62,Programme System File
BIS,Skills Funding Agency,13/05/2016,16-18 Apprenticeships - Centralised Contract Management,Main Funding,GRIMSBY INSTITUTE OF FURTHER & HIGHER EDUCATION,AP16R_10551,"127,634.38",Programme System File
BIS,Skills Funding Agency,13/05/2016,16-18 Apprenticeships - Centralised Contract Management,Main Funding,GUILDFORD COLLEGE OF FURTHER & HIGHER EDUCATION,AP16C_1818,"-62,964.99",Programme System File
BIS,Skills Funding Agency,13/05/2016,16-18 Apprenticeships - Centralised Contract Management,Main Funding,GUILDFORD COLLEGE OF FURTHER & HIGHER EDUCATION,AP16R_10179,"129,793.63",Programme System File
BIS,Skills Funding Agency,13/05/2016,16-18 Apprenticeships - Centralised Contract Management,Main Funding,HACKNEY COMMUNITY COLLEGE,AP16C_1039,"-410,191.40",Programme System File
BIS,Skills Funding Agency,13/05/2016,16-18 Apprenticeships - Centralised Contract Management,Main Funding,HACKNEY COMMUNITY COLLEGE,AP16C_1823,"-420,749.63",Programme System File
BIS,Skills Funding Agency,13/05/2016,16-18 Apprenticeships - Centralised Contract Management,Main Funding,HACKNEY COMMUNITY COLLEGE,AP16R_10187,"517,650.16",Programme System File
BIS,Skills Funding Agency,13/05/2016,16-18 Apprenticeships - Centralised Contract Management,Main Funding,HADDON TRAINING LTD,AP16C_1320,"-217,612.63",Programme System File
BIS,Skills Funding Agency,13/05/2016,16-18 Apprenticeships - Centralised Contract Management,Main Funding,HADDON TRAINING LTD,AP16R_9446,"319,787.10",Programme System File
BIS,Skills Funding Agency,13/05/2016,16-18 Apprenticeships - Centralised Contract Management,Main Funding,HADLOW COLLEGE,AP16R_10115,"10,229.95",Programme System File
BIS,Skills Funding Agency,13/05/2016,16-18 Apprenticeships - Centralised Contract Management,Main Funding,HAIR & BEAUTY INDUSTRY TRAINING LTD,AP16R_9442,"17,824.15",Programme System File
BIS,Skills Funding Agency,13/05/2016,16-18 Apprenticeships - Centralised Contract Management,Main Funding,HAIR ACADEMY SOUTH WEST LIMITED,AP16R_9433,"42,960.29",Programme System File
BIS,Skills Funding Agency,13/05/2016,16-18 Apprenticeships - Centralised Contract Management,Main Funding,HALESOWEN COLLEGE,AP16R_10190,"15,460.23",Programme System File
BIS,Skills Funding Agency,13/05/2016,16-18 Apprenticeships - Centralised Contract Management,Main Funding,HALFORDS LTD,AP16C_1772,"-18,593.31",Programme System File
BIS,Skills Funding Agency,13/05/2016,16-18 Apprenticeships - Centralised Contract Management,Main Funding,HALFORDS LTD,AP16C_836,"-18,751.79",Programme System File
BIS,Skills Funding Agency,13/05/2016,16-18 Apprenticeships - Centralised Contract Management,Main Funding,HALFORDS LTD,AP16R_10094,"64,618.97",Programme System File
BIS,Skills Funding Agency,13/05/2016,16-18 Apprenticeships - Centralised Contract Management,Main Funding,HARLOW COLLEGE,AP16R_10191,"101,185.42",Programme System File
BIS,Skills Funding Agency,13/05/2016,16-18 Apprenticeships - Centralised Contract Management,Main Funding,HARROW COLLEGE,AP16R_10194,"35,030.30",Programme System File
BIS,Skills Funding Agency,13/05/2016,16-18 Apprenticeships - Centralised Contract Management,Main Funding,HARTLEPOOL BOROUGH COUNCIL,AP16R_10197,"1,076.48",Programme System File
BIS,Skills Funding Agency,13/05/2016,16-18 Apprenticeships - Centralised Contract Management,Main Funding,HARTLEPOOL COLLEGE OF HIGHER EDUCATION,AP16R_10195,"126,389.43",Programme System File
BIS,Skills Funding Agency,13/05/2016,16-18 Apprenticeships - Centralised Contract Management,Main Funding,HARTLEPOOL SIXTH FORM COLLEGE,AP16R_10198,"1,427.49",Programme System File
BIS,Skills Funding Agency,13/05/2016,16-18 Apprenticeships - Centralised Contract Management,Main Funding,HARTPURY COLLEGE,AP16C_1082,"-35,430.26",Programme System File
BIS,Skills Funding Agency,13/05/2016,16-18 Apprenticeships - Centralised Contract Management,Main Funding,HARTPURY COLLEGE,AP16C_1827,"-35,152.48",Programme System File
BIS,Skills Funding Agency,13/05/2016,16-18 Apprenticeships - Centralised Contract Management,Main Funding,HARTPURY COLLEGE,AP16R_10200,"51,741.06",Programme System File
BIS,Skills Funding Agency,13/05/2016,16-18 Apprenticeships - Centralised Contract Management,Main Funding,HAVANT COLLEGE,AP16C_1833,"-10,007.39",Programme System File
BIS,Skills Funding Agency,13/05/2016,16-18 Apprenticeships - Centralised Contract Management,Main Funding,HAVANT COLLEGE,AP16R_10205,"11,554.52",Programme System File
BIS,Skills Funding Agency,13/05/2016,16-18 Apprenticeships - Centralised Contract Management,Main Funding,HAVERING COLLEGE OF FURTHER & HIGHER EDUCATION,AP16C_1071,"-64,927.79",Programme System File
BIS,Skills Funding Agency,13/05/2016,16-18 Apprenticeships - Centralised Contract Management,Main Funding,HAVERING COLLEGE OF FURTHER & HIGHER EDUCATION,AP16C_1826,"-66,087.06",Programme System File
BIS,Skills Funding Agency,13/05/2016,16-18 Apprenticeships - Centralised Contract Management,Main Funding,HAVERING COLLEGE OF FURTHER & HIGHER EDUCATION,AP16R_10199,"165,573.41",Programme System File
BIS,Skills Funding Agency,13/05/2016,16-18 Apprenticeships - Centralised Contract Management,Main Funding,HAWK MANAGEMENT UK LTD,AP16C_1412,"-268,609.85",Programme System File
BIS,Skills Funding Agency,13/05/2016,16-18 Apprenticeships - Centralised Contract Management,Main Funding,HAWK MANAGEMENT UK LTD,AP16C_1632,"-264,181.51",Programme System File
BIS,Skills Funding Agency,13/05/2016,16-18 Apprenticeships - Centralised Contract Management,Main Funding,HAWK MANAGEMENT UK LTD,AP16R_9801,"433,786.35",Programme System File
BIS,Skills Funding Agency,13/05/2016,16-18 Apprenticeships - Centralised Contract Management,Main Funding,HAYS TRAVEL LIMITED,AP16C_1458,"-146,317.94",Programme System File
BIS,Skills Funding Agency,13/05/2016,16-18 Apprenticeships - Centralised Contract Management,Main Funding,HAYS TRAVEL LIMITED,AP16C_1722,"-148,341.32",Programme System File
BIS,Skills Funding Agency,13/05/2016,16-18 Apprenticeships - Centralised Contract Management,Main Funding,HAYS TRAVEL LIMITED,AP16R_9998,"168,617.05",Programme System File
BIS,Skills Funding Agency,13/05/2016,16-18 Apprenticeships - Centralised Contract Management,Main Funding,HEADMASTERS PARTNERSHIP LTD,AP16C_1407,"-178,890.25",Programme System File
BIS,Skills Funding Agency,13/05/2016,16-18 Apprenticeships - Centralised Contract Management,Main Funding,HEADMASTERS PARTNERSHIP LTD,AP16C_1627,"-181,743.26",Programme System File
BIS,Skills Funding Agency,13/05/2016,16-18 Apprenticeships - Centralised Contract Management,Main Funding,HEADMASTERS PARTNERSHIP LTD,AP16R_9281,"178,283.65",Programme System File
BIS,Skills Funding Agency,13/05/2016,16-18 Apprenticeships - Centralised Contract Management,Main Funding,HEADMASTERS PARTNERSHIP LTD,AP16R_9796,"228,392.30",Programme System File
BIS,Skills Funding Agency,13/05/2016,16-18 Apprenticeships - Centralised Contract Management,Main Funding,HEALTH EDUCATION NORTH EAST,AP16C_1765,"-77,096.22",Programme System File
BIS,Skills Funding Agency,13/05/2016,16-18 Apprenticeships - Centralised Contract Management,Main Funding,HEALTH EDUCATION NORTH EAST,AP16C_833,"-66,140.48",Programme System File
BIS,Skills Funding Agency,13/05/2016,16-18 Apprenticeships - Centralised Contract Management,Main Funding,HEALTH EDUCATION NORTH EAST,AP16R_10078,"126,748.09",Programme System File
BIS,Skills Funding Agency,13/05/2016,16-18 Apprenticeships - Centralised Contract Management,Main Funding,HEART OF ENGLAND TRAINING LTD,AP16C_1319,"-190,796.37",Programme System File
BIS,Skills Funding Agency,13/05/2016,16-18 Apprenticeships - Centralised Contract Management,Main Funding,HEART OF ENGLAND TRAINING LTD,AP16C_1470,"-119,047.89",Programme System File
BIS,Skills Funding Agency,13/05/2016,16-18 Apprenticeships - Centralised Contract Management,Main Funding,HEART OF ENGLAND TRAINING LTD,AP16R_9435,"336,824.44",Programme System File
BIS,Skills Funding Agency,13/05/2016,16-18 Apprenticeships - Centralised Contract Management,Main Funding,HEATHERCROFT TRAINING SERVICES LTD,AP16R_9438,"14,889.87",Programme System File
BIS,Skills Funding Agency,13/05/2016,16-18 Apprenticeships - Centralised Contract Management,Main Funding,HENLEY COLLEGE COVENTRY,AP16C_1092,"-35,562.17",Programme System File
BIS,Skills Funding Agency,13/05/2016,16-18 Apprenticeships - Centralised Contract Management,Main Funding,HENLEY COLLEGE COVENTRY,AP16C_1828,"-32,805.25",Programme System File
BIS,Skills Funding Agency,13/05/2016,16-18 Apprenticeships - Centralised Contract Management,Main Funding,HENLEY COLLEGE COVENTRY,AP16R_10201,"64,828.55",Programme System File
BIS,Skills Funding Agency,13/05/2016,16-18 Apprenticeships - Centralised Contract Management,Main Funding,HENLEY COLLEGE,AP16C_1831,"-141,420.05",Programme System File
BIS,Skills Funding Agency,13/05/2016,16-18 Apprenticeships - Centralised Contract Management,Main Funding,HENLEY COLLEGE,AP16R_10203,"172,197.93",Programme System File
BIS,Skills Funding Agency,13/05/2016,16-18 Apprenticeships - Centralised Contract Management,Main Funding,HEREFORDSHIRE & LUDLOW COLLEGE,AP16C_1834,"-33,574.53",Programme System File
BIS,Skills Funding Agency,13/05/2016,16-18 Apprenticeships - Centralised Contract Management,Main Funding,HEREFORDSHIRE & LUDLOW COLLEGE,AP16R_10208,"90,563.88",Programme System File
BIS,Skills Funding Agency,13/05/2016,16-18 Apprenticeships - Centralised Contract Management,Main Funding,HEREFORDSHIRE GROUP TRAINING ASSOCIATION LTD,AP16R_9444,"76,391.34",Programme System File
BIS,Skills Funding Agency,13/05/2016,16-18 Apprenticeships - Centralised Contract Management,Main Funding,HEREWARD COLLEGE OF HIGHER EDUCATION,AP16C_1151,"-2,689.52",Programme System File
BIS,Skills Funding Agency,13/05/2016,16-18 Apprenticeships - Centralised Contract Management,Main Funding,HEREWARD COLLEGE OF HIGHER EDUCATION,AP16C_1837,"-1,745.51",Programme System File
BIS,Skills Funding Agency,13/05/2016,16-18 Apprenticeships - Centralised Contract Management,Main Funding,HEREWARD COLLEGE OF HIGHER EDUCATION,AP16R_10211,"2,894.10",Programme System File
BIS,Skills Funding Agency,13/05/2016,16-18 Apprenticeships - Centralised Contract Management,Main Funding,HERTFORD REGIONAL COLLEGE,AP16R_10206,"104,732.38",Programme System File
BIS,Skills Funding Agency,13/05/2016,16-18 Apprenticeships - Centralised Contract Management,Main Funding,HIGHBURY COLLEGE,AP16C_1277,"-221,387.25",Programme System File
BIS,Skills Funding Agency,13/05/2016,16-18 Apprenticeships - Centralised Contract Management,Main Funding,HIGHBURY COLLEGE,AP16C_2031,"-279,332.05",Programme System File
BIS,Skills Funding Agency,13/05/2016,16-18 Apprenticeships - Centralised Contract Management,Main Funding,HIGHBURY COLLEGE,AP16R_10556,"445,970.74",Programme System File
BIS,Skills Funding Agency,13/05/2016,16-18 Apprenticeships - Centralised Contract Management,Main Funding,HILLINGDON TRAINING LTD,AP16C_1321,"-106,684.81",Programme System File
BIS,Skills Funding Agency,13/05/2016,16-18 Apprenticeships - Centralised Contract Management,Main Funding,HILLINGDON TRAINING LTD,AP16C_1475,"-11,719.23",Programme System File
BIS,Skills Funding Agency,13/05/2016,16-18 Apprenticeships - Centralised Contract Management,Main Funding,HILLINGDON TRAINING LTD,AP16R_9449,"148,411.09",Programme System File
BIS,Skills Funding Agency,13/05/2016,16-18 Apprenticeships - Centralised Contract Management,Main Funding,HIT TRAINING LTD,AP16R_9831,"239,249.14",Programme System File
BIS,Skills Funding Agency,13/05/2016,16-18 Apprenticeships - Centralised Contract Management,Main Funding,HOB SALON LIMITED,AP16R_10088,"46,357.11",Programme System File
BIS,Skills Funding Agency,13/05/2016,16-18 Apprenticeships - Centralised Contract Management,Main Funding,HOLTS ACADEMY OF JEWELLERY LIMITED,AP16R_10125,"2,304.28",Programme System File
BIS,Skills Funding Agency,13/05/2016,16-18 Apprenticeships - Centralised Contract Management,Main Funding,HONDA MOTOR EUROPE LTD,AP16C_1417,-518.31,Programme System File
BIS,Skills Funding Agency,13/05/2016,16-18 Apprenticeships - Centralised Contract Management,Main Funding,HONDA MOTOR EUROPE LTD,AP16C_1644,-518.31,Programme System File
BIS,Skills Funding Agency,13/05/2016,16-18 Apprenticeships - Centralised Contract Management,Main Funding,HONDA MOTOR EUROPE LTD,AP16R_9824,"34,705.50",Programme System File
BIS,Skills Funding Agency,13/05/2016,16-18 Apprenticeships - Centralised Contract Management,Main Funding,HOOPLE LTD,AP16R_10055,"20,768.68",Programme System File
BIS,Skills Funding Agency,13/05/2016,16-18 Apprenticeships - Centralised Contract Management,Main Funding,HOPWOOD HALL COLLEGE,AP16C_1835,"-16,593.89",Programme System File
BIS,Skills Funding Agency,13/05/2016,16-18 Apprenticeships - Centralised Contract Management,Main Funding,HOPWOOD HALL COLLEGE,AP16R_10209,"47,885.21",Programme System File
BIS,Skills Funding Agency,13/05/2016,16-18 Apprenticeships - Centralised Contract Management,Main Funding,HOSPITALITY TRAINING PARTNERSHIP IOW LTD,AP16C_1322,"-38,569.67",Programme System File
BIS,Skills Funding Agency,13/05/2016,16-18 Apprenticeships - Centralised Contract Management,Main Funding,HOSPITALITY TRAINING PARTNERSHIP IOW LTD,AP16C_1478,"-2,268.60",Programme System File
BIS,Skills Funding Agency,13/05/2016,16-18 Apprenticeships - Centralised Contract Management,Main Funding,HOSPITALITY TRAINING PARTNERSHIP IOW LTD,AP16R_9457,"119,910.87",Programme System File
BIS,Skills Funding Agency,13/05/2016,16-18 Apprenticeships - Centralised Contract Management,Main Funding,HOUSE OF CLIVE HAIR & BEAUTY LTD,AP16C_1362,"-30,450.39",Programme System File
BIS,Skills Funding Agency,13/05/2016,16-18 Apprenticeships - Centralised Contract Management,Main Funding,HOUSE OF CLIVE HAIR & BEAUTY LTD,AP16C_1548,"-26,152.46",Programme System File
BIS,Skills Funding Agency,13/05/2016,16-18 Apprenticeships - Centralised Contract Management,Main Funding,HOUSE OF CLIVE HAIR & BEAUTY LTD,AP16R_9631,"192,168.77",Programme System File
BIS,Skills Funding Agency,13/05/2016,16-18 Apprenticeships - Centralised Contract Management,Main Funding,HSBC BANK PLC,AP16C_1418,"-24,648.30",Programme System File
BIS,Skills Funding Agency,13/05/2016,16-18 Apprenticeships - Centralised Contract Management,Main Funding,HSBC BANK PLC,AP16C_1645,"-31,810.51",Programme System File
BIS,Skills Funding Agency,13/05/2016,16-18 Apprenticeships - Centralised Contract Management,Main Funding,HSBC BANK PLC,AP16R_9827,"51,974.51",Programme System File
BIS,Skills Funding Agency,13/05/2016,16-18 Apprenticeships - Centralised Contract Management,Main Funding,HUDDERSFIELD TEXTILE TRAINING LTD,AP16R_9461,"12,675.85",Programme System File
BIS,Skills Funding Agency,13/05/2016,16-18 Apprenticeships - Centralised Contract Management,Main Funding,HUDSON & HUGHES TRAINING LTD,AP16R_9465,"7,653.15",Programme System File
BIS,Skills Funding Agency,13/05/2016,16-18 Apprenticeships - Centralised Contract Management,Main Funding,HUGH BAIRD COLLEGE,AP16C_1168,"-11,071.54",Programme System File
BIS,Skills Funding Agency,13/05/2016,16-18 Apprenticeships - Centralised Contract Management,Main Funding,HUGH BAIRD COLLEGE,AP16C_1841,"-14,685.92",Programme System File
BIS,Skills Funding Agency,13/05/2016,16-18 Apprenticeships - Centralised Contract Management,Main Funding,HUGH BAIRD COLLEGE,AP16R_10216,"52,775.52",Programme System File
BIS,Skills Funding Agency,13/05/2016,16-18 Apprenticeships - Centralised Contract Management,Main Funding,HULL BUSINESS TRAINING CENTRE LTD,AP16C_1329,"-5,767.49",Programme System File
BIS,Skills Funding Agency,13/05/2016,16-18 Apprenticeships - Centralised Contract Management,Main Funding,HULL BUSINESS TRAINING CENTRE LTD,AP16C_1487,"-4,483.67",Programme System File
BIS,Skills Funding Agency,13/05/2016,16-18 Apprenticeships - Centralised Contract Management,Main Funding,HULL BUSINESS TRAINING CENTRE LTD,AP16R_9471,"43,663.32",Programme System File
BIS,Skills Funding Agency,13/05/2016,16-18 Apprenticeships - Centralised Contract Management,Main Funding,HULL COLLEGE,AP16R_10214,"262,380.13",Programme System File
BIS,Skills Funding Agency,13/05/2016,16-18 Apprenticeships - Centralised Contract Management,Main Funding,HUMBER LEARNING CONSORTIUM,AP16C_1323,"-54,790.15",Programme System File
